Workbook

Sheet Hospitality - Configuration (hidden)
B1: Tax Rates | D1: Breakfast | E1: Break | F1: Lunch | G1: Break | H1: Dinner | I1: Réception | M1: Meal allowances | R1: Tax description EN | S1: Tax description FR
A2: Tax Rate ID | B2: Tax description | C2: Rate | D2: 1.5 | E2: 0.5 | F2: 2 | G2: 0.5 | H2: 1.75 | I2: 2 | M2: Canada & É.-U. | N2: Yukon & Alaska | O2: T.N.O. | P2: Nunavut | R2: HST 13% - Ontario | S2: 13% TVH - Ontario
A3: 1 | B3: GST 5% - Alberta | C3: 0.05 | D3: =ROUNDDOWN($D$2*$M$3,2) -> 32.02 | E3: =ROUNDDOWN($E$2*$M$3,2) -> 10.67 | F3: =$F$2*$M$4 -> 43.2 | G3: =ROUNDDOWN($G$2*$M$3,2) -> 10.67 | H3: =ROUNDDOWN($H$2*$M$5,2) -> 92.75 | I3: =$I$2*$M$3 -> 42.7 | J3: 1 | L3: Breakfast | M3: 21.35 | N3: 22.9 | O3: 24.8 | P3: 28.25 | R3: HST 15% - New Brunswick | S3: 15% TVH - Nouveau Brunswick
A4: 2 | B4: GST 5% - British Columbia | C4: 0.05 | D4: =ROUNDDOWN($D$2*$M$3,2) -> 32.02 | E4: =ROUNDDOWN($E$2*$M$3,2) -> 10.67 | F4: =$F$2*$M$4 -> 43.2 | G4: =ROUNDDOWN($G$2*$M$3,2) -> 10.67 | H4: =ROUNDDOWN($H$2*$M$5,2) -> 92.75 | I4: =$I$2*$M$3 -> 42.7 | J4: 2 | L4: Lunch | M4: 21.6 | N4: 21.05 | O4: 30.05 | P4: 34.3 | R4: HST 15% - Newfoundland and Labrador | S4: 15% TVH - Terre-Neuve et Labrador
A5: 3 | B5: HST 5% - Manitoba (GST only) | C5: 0.05 | D5: =ROUNDDOWN($D$2*$M$3,2) -> 32.02 | E5: =ROUNDDOWN($E$2*$M$3,2) -> 10.67 | F5: 43.2 | G5: =ROUNDDOWN($G$2*$M$3,2) -> 10.67 | H5: =ROUNDDOWN($H$2*$M$5,2) -> 92.75 | I5: 42.7 | J5: 3 | L5: Dinner | M5: 53 | N5: 60.65 | O5: 64.35 | P5: 91.35 | R5: GST 5% - Alberta | S5: 5% TPS - Alberta
A6: 4 | B6: HST 15% - New Brunswick | C6: 0.15 | D6: =ROUNDDOWN($D$2*$M$3,2) -> 32.02 | E6: =ROUNDDOWN($E$2*$M$3,2) -> 10.67 | F6: 43.2 | G6: =ROUNDDOWN($G$2*$M$3,2) -> 10.67 | H6: =ROUNDDOWN($H$2*$M$5,2) -> 92.75 | I6: 42.7 | J6: 4 | R6: GST 5% - British Columbia | S6: 5% TPS - Colombie-Britannique
A7: 5 | B7: HST 15% - Newfoundland and Labrador | C7: 0.15 | D7: =ROUNDDOWN($D$2*$M$3,2) -> 32.02 | E7: =ROUNDDOWN($E$2*$M$3,2) -> 10.67 | F7: 43.2 | G7: =ROUNDDOWN($G$2*$M$3,2) -> 10.67 | H7: =ROUNDDOWN($H$2*$M$5,2) -> 92.75 | I7: 42.7 | J7: 5 | R7: GST 5% - Northwest Territories | S7: 5% TPS - Territoires du Nord-Ouest
A8: 6 | B8: GST 5% - Northwest Territories | C8: 0.05 | D8: =ROUNDDOWN($D$2*$O$3,2) -> 37.2 | E8: =ROUNDDOWN($E$2*$O$3,2) -> 12.4 | F8: =$F$2*$O$4 -> 60.1 | G8: =ROUNDDOWN($G$2*$O$3,2) -> 12.4 | H8: =ROUNDDOWN($H$2*$O$5,2) -> 112.61 | I8: =$I$2*$O$3 -> 49.6 | J8: 5 | R8: GST 5% - Nunavut | S8: 5% TPS - Nunavut
A9: 7 | B9: HST 15% - Nova Scotia | C9: 0.15 | D9: =ROUNDDOWN($D$2*$M$3,2) -> 32.02 | E9: =ROUNDDOWN($E$2*$M$3,2) -> 10.67 | F9: 43.2 | G9: =ROUNDDOWN($G$2*$M$3,2) -> 10.67 | H9: =ROUNDDOWN($H$2*$M$5,2) -> 92.75 | I9: 42.7 | J9: 6 | R9: GST 5% - Yukon, Alaska | S9: 5% TPS - Yukon, Alaska
A10: 8 | B10: GST 5% - Nunavut | C10: 0.05 | D10: =ROUNDDOWN($D$2*$P$3,2) -> 42.37 | E10: =ROUNDDOWN($E$2*$P$3,2) -> 14.12 | F10: =$F$2*$P$4 -> 68.6 | G10: =ROUNDDOWN($G$2*$P$3,2) -> 14.12 | H10: =ROUNDDOWN($H$2*$P$5,2) -> 159.86 | I10: =$I$2*$P$3 -> 56.5 | J10: 7 | R10: HST 14.975% - Quebec | S10: 14.975% TVH - Québec
A11: 9 | B11: HST 13% - Ontario | C11: 0.13 | D11: =ROUNDDOWN($D$2*$M$3,2) -> 32.02 | E11: =ROUNDDOWN($E$2*$M$3,2) -> 10.67 | F11: 43.2 | G11: =ROUNDDOWN($G$2*$M$3,2) -> 10.67 | H11: =ROUNDDOWN($H$2*$M$5,2) -> 92.75 | I11: 42.7 | J11: 8 | R11: HST 15% - Nova Scotia | S11: 15% TVH - Nouvelle-Écosse
A12: 10 | B12: HST 15% - PEI | C12: 0.15 | D12: =ROUNDDOWN($D$2*$M$3,2) -> 32.02 | E12: =ROUNDDOWN($E$2*$M$3,2) -> 10.67 | F12: 43.2 | G12: =ROUNDDOWN($G$2*$M$3,2) -> 10.67 | H12: =ROUNDDOWN($H$2*$M$5,2) -> 92.75 | I12: 42.7 | J12: 9 | R12: HST 15% - PEI | S12: 15% TVH - Île-du-Prince-Édouard
A13: 11 | B13: HST 14.975% - Quebec | C13: 0.14975 | D13: =ROUNDDOWN($D$2*$M$3,2) -> 32.02 | E13: =ROUNDDOWN($E$2*$M$3,2) -> 10.67 | F13: 43.2 | G13: =ROUNDDOWN($G$2*$M$3,2) -> 10.67 | H13: =ROUNDDOWN($H$2*$M$5,2) -> 92.75 | I13: 42.7 | J13: 10 | R13: HST 5% - Manitoba (GST only) | S13: 5% TVH - Manitoba (TPS seulement)
A14: 12 | B14: HST 5% - Saskatchewan (GST only) | C14: 0.05 | D14: =ROUNDDOWN($D$2*$M$3,2) -> 32.02 | E14: =ROUNDDOWN($E$2*$M$3,2) -> 10.67 | F14: 43.2 | G14: =ROUNDDOWN($G$2*$M$3,2) -> 10.67 | H14: =ROUNDDOWN($H$2*$M$5,2) -> 92.75 | I14: 42.7 | J14: 11 | R14: HST 5% - Saskatchewan (GST only) | S14: 5% TVH - Saskatchewan (TPS seulement)
A15: 13 | B15: GST 5% - Yukon | C15: 0.05 | D15: =ROUNDDOWN($D$2*$N$3,2) -> 34.35 | E15: =ROUNDDOWN($E$2*$N$3,2) -> 11.45 | F15: =$F$2*$N$4 -> 42.1 | G15: =ROUNDDOWN($G$2*$N$3,2) -> 11.45 | H15: =ROUNDDOWN($H$2*$N$5,2) -> 106.13 | I15: =$I$2*$N$3 -> 45.8 | J15: 12
A16: =IF(B16="","",A15+1) -> 
A17: =IF(B17="","",A16+1) -> 
A18: =IF(B18="","",A17+1) -> 
A19: =IF(B19="","",A18+1) -> 
A20: =IF(B20="","",A19+1) -> 
A60: =IF(B60="","",A59+1) -> 

Sheet Hospitality - System (hidden)
A1: Tax Rates Range | B1: =CONCATENATE("'Configuration - Hospitality'!B3:B",MAX('Hospitality - Configuration'!A3:A53)+2) -> 'Configuration - Hospitality'!B3:B15 | E1: Column Name | G1: Row | H1: Colum | I1: Calculation | J1: Row | K1: Column | L1: Form Control
A2: Selected Tax Range | B2: =OFFSET('Hospitality - DATA'!AQ3,Selected_Day-1,0) -> 1 | E2: Selected Function Meal Rate B - Breakfast | G2: 11 | H2: 2 | I2: =OFFSET('Hospitality - DATA'!$A$1,'Hospitality - System'!$B$4+1,1) -> 0 | J2: =$B$4+2 -> 3 | K2: 2 | L2: txtBreakFastMealRate
A3: Selected Tax Rate | B3: =OFFSET('Hospitality - Configuration'!A3,'Hospitality - System'!B2-1,2) -> 0.05 | E3: Selected Public Servants D - Breakfast | G3: 11 | H3: 4 | I3: =OFFSET('Hospitality - DATA'!$A$1,'Hospitality - System'!$B$4+1,2) -> 0 | J3: 3 | K3: 3 | L3: txtBreakFastPS
A4: Selected Day | B4: 1 | C4: 0 | E4: Selected Non-Public Servants F - Breakfast | G4: 11 | H4: 6 | I4: =OFFSET('Hospitality - DATA'!$A$1,'Hospitality - System'!$B$4+1,3) -> 0 | J4: 3 | K4: 4 | L4: txtBreakFastNonPS
A5: Number of Days | B5: 6 | E5: Selected Cost of Service N - Breakfast | G5: 11 | H5: 14 | I5: =OFFSET('Hospitality - DATA'!$A$1,'Hospitality - System'!$B$4+1,4) -> 0 | J5: 3 | K5: 5 | L5: txtBreakFastServCost
A6: Selected Breakfast rate | B6: =OFFSET('Hospitality - Configuration'!A3,'Hospitality - System'!B2-1,3) -> 32.02 | E6: Selected Function Meal Rate B - Break | G6: 13 | H6: 2 | I6: =OFFSET('Hospitality - DATA'!$A$1,'Hospitality - System'!$B$4+1,5) -> 0 | J6: 3 | K6: 6 | L6: txtAMBreakMealRate
A7: Selected Morning Break Rate | B7: =OFFSET('Hospitality - Configuration'!A3,'Hospitality - System'!B2-1,4) -> 10.67 | E7: Selected Public Servants D - Break | G7: 13 | H7: 4 | I7: =OFFSET('Hospitality - DATA'!$A$1,'Hospitality - System'!$B$4+1,6) -> 0 | J7: 3 | K7: 7 | L7: txtAMBreakPS
A8: Selected Lunch Rate | B8: =OFFSET('Hospitality - Configuration'!A3,'Hospitality - System'!B2-1,5) -> 43.2 | E8: Selected Non-Public Servants F - Break | G8: 13 | H8: 6 | I8: =OFFSET('Hospitality - DATA'!$A$1,'Hospitality - System'!$B$4+1,7) -> 0 | J8: 3 | K8: 8 | L8: txtAMBreakNonPS
A9: Selected Afternoon Break Rate | B9: =OFFSET('Hospitality - Configuration'!A3,'Hospitality - System'!B2-1,6) -> 10.67 | E9: Selected Cost of Service N - Break | G9: 13 | H9: 14 | I9: =OFFSET('Hospitality - DATA'!$A$1,'Hospitality - System'!$B$4+1,8) -> 0 | J9: 3 | K9: 9 | L9: txtAMBreakServCost
A10: Selected Dinner Rate | B10: =OFFSET('Hospitality - Configuration'!A3,'Hospitality - System'!B2-1,7) -> 92.75 | E10: Selected Function Meal Rate B - Lunch | G10: 15 | H10: 2 | I10: =OFFSET('Hospitality - DATA'!$A$1,'Hospitality - System'!$B$4+1,9) -> 0 | J10: 3 | K10: 10 | L10: txtLunchMealRate
A11: Selected Reception Rate | B11: =OFFSET('Hospitality - Configuration'!A3,'Hospitality - System'!B2-1,8) -> 42.7 | E11: Selected Public Servants D - Lunch | G11: 15 | H11: 4 | I11: =OFFSET('Hospitality - DATA'!$A$1,'Hospitality - System'!$B$4+1,10) -> 0 | J11: 3 | K11: 11 | L11: txtLunchPS
A12: Hospitality_BreakFast_Rate | B12: ="'Hospitality - DATA'!B$3:B" & B$5+2 -> 'Hospitality - DATA'!B$3:B8 | E12: Selected Non-Public Servants F - Lunch | G12: 15 | H12: 6 | I12: =OFFSET('Hospitality - DATA'!$A$1,'Hospitality - System'!$B$4+1,11) -> 0 | J12: 3 | K12: 12 | L12: txtLunchNonPS
A13: Hospitality_BreakFast_PS | B13: ="'Hospitality - DATA'!C$3:C" & B$5+2 -> 'Hospitality - DATA'!C$3:C8 | E13: Selected Cost of Service N - Lunch | G13: 15 | H13: 14 | I13: =OFFSET('Hospitality - DATA'!$A$1,'Hospitality - System'!$B$4+1,12) -> 0 | J13: 3 | K13: 13 | L13: txtLunchServCost
A14: Hospitality_BreakFast_NonPS | B14: ="'Hospitality - DATA'!D$3:D" & B$5+2 -> 'Hospitality - DATA'!D$3:D8 | E14: Selected Function Meal Rate B - Break | G14: 17 | H14: 2 | I14: =OFFSET('Hospitality - DATA'!$A$1,'Hospitality - System'!$B$4+1,13) -> 0 | J14: 3 | K14: 14 | L14: txtPMBreakMealRate
A15: Hospitality_BreakFast_Service | B15: ="'Hospitality - DATA'!E$3:E" & B$5+2 -> 'Hospitality - DATA'!E$3:E8 | E15: Selected Public Servants D - Break | G15: 17 | H15: 4 | I15: =OFFSET('Hospitality - DATA'!$A$1,'Hospitality - System'!$B$4+1,14) -> 0 | J15: 3 | K15: 15 | L15: txtPMBreakPS
A16: Hospitality_AMBreak_Rate | B16: ="'Hospitality - DATA'!F$3:F" & B$5+2 -> 'Hospitality - DATA'!F$3:F8 | E16: Selected Non-Public Servants F - Break | G16: 17 | H16: 6 | I16: =OFFSET('Hospitality - DATA'!$A$1,'Hospitality - System'!$B$4+1,15) -> 0 | J16: 3 | K16: 16 | L16: txtPMBreakNonPS
A17: Hospitality_AMBreak_PS | B17: ="'Hospitality - DATA'!G$3:G" & B$5+2 -> 'Hospitality - DATA'!G$3:G8 | E17: Selected Cost of Service N - Break | G17: 17 | H17: 14 | I17: =OFFSET('Hospitality - DATA'!$A$1,'Hospitality - System'!$B$4+1,16) -> 0 | J17: 3 | K17: 17 | L17: txtPMBreakServCost
A18: Hospitality_AMBreak_NonPS | B18: ="'Hospitality - DATA'!H$3:H" & B$5+2 -> 'Hospitality - DATA'!H$3:H8 | E18: Selected Function Meal Rate B - Dinner | G18: 19 | H18: 2 | I18: =OFFSET('Hospitality - DATA'!$A$1,'Hospitality - System'!$B$4+1,17) -> 0 | J18: 3 | K18: 18 | L18: txtDinnerMealRate
A19: Hospitality_AMBreak_Service | B19: ="'Hospitality - DATA'!I$3:I" & B$5+2 -> 'Hospitality - DATA'!I$3:I8 | E19: Selected Public Servants D - Dinner | G19: 19 | H19: 4 | I19: =OFFSET('Hospitality - DATA'!$A$1,'Hospitality - System'!$B$4+1,18) -> 0 | J19: 3 | K19: 19 | L19: txtDinnerPS
A20: Hospitality_Lunch_Rate | B20: ="'Hospitality - DATA'!J$3:J" & B$5+2 -> 'Hospitality - DATA'!J$3:J8 | E20: Selected Non-Public Servants F - Dinner | G20: 19 | H20: 6 | I20: =OFFSET('Hospitality - DATA'!$A$1,'Hospitality - System'!$B$4+1,19) -> 0 | J20: 3 | K20: 20 | L20: txtDinnerNonPS
A21: Hospitality_Lunch_PS | B21: ="'Hospitality - DATA'!K$3:K" & B$5+2 -> 'Hospitality - DATA'!K$3:K8 | E21: Selected Cost of Service N - Dinner | G21: 19 | H21: 14 | I21: =OFFSET('Hospitality - DATA'!$A$1,'Hospitality - System'!$B$4+1,20) -> 0 | J21: 3 | K21: 21 | L21: txtDinnerServCost
A22: Hospitality_Lunch_NonPS | B22: ="'Hospitality - DATA'!L$3:L" & B$5+2 -> 'Hospitality - DATA'!L$3:L8 | E22: Selected Function Meal Rate B - Reception | G22: 21 | H22: 2 | I22: =OFFSET('Hospitality - DATA'!$A$1,'Hospitality - System'!$B$4+1,21) -> 0 | J22: 3 | K22: 22 | L22: txtreceptionMealRate
A23: Hospitality_Lunch_Service | B23: ="'Hospitality - DATA'!M$3:M" & B$5+2 -> 'Hospitality - DATA'!M$3:M8 | E23: Selected Public Servants D - Reception | G23: 21 | H23: 4 | I23: =OFFSET('Hospitality - DATA'!$A$1,'Hospitality - System'!$B$4+1,22) -> 0 | J23: 3 | K23: 23 | L23: txtReceptionPS
A24: Hospitality_PMBreak_Rate | B24: ="'Hospitality - DATA'!N$3:N" & B$5+2 -> 'Hospitality - DATA'!N$3:N8 | E24: Selected Non-Public Servants F - Reception | G24: 21 | H24: 6 | I24: =OFFSET('Hospitality - DATA'!$A$1,'Hospitality - System'!$B$4+1,23) -> 0 | J24: 3 | K24: 24 | L24: txtReceptionNonPS
A25: Hospitality_PMBreak_PS | B25: ="'Hospitality - DATA'!O$3:O" & B$5+2 -> 'Hospitality - DATA'!O$3:O8 | E25: Selected Cost of Service N - Reception | G25: 21 | H25: 14 | I25: =OFFSET('Hospitality - DATA'!$A$1,'Hospitality - System'!$B$4+1,24) -> 0 | J25: 3 | K25: 25 | L25: txtReceptionServCost
A26: Hospitality_PMBreak_NonPS | B26: ="'Hospitality - DATA'!P$3:P" & B$5+2 -> 'Hospitality - DATA'!P$3:P8 | E26: Selected Function Meal Rate B - Alcohol | G26: 23 | H26: 2 | I26: =OFFSET('Hospitality - DATA'!$A$1,'Hospitality - System'!$B$4+1,25) -> 0 | J26: 3 | K26: 26 | L26: txtAlcoholMealRate
A27: Hospitality_PMBreak_Service | B27: ="'Hospitality - DATA'!Q$3:Q" & B$5+2 -> 'Hospitality - DATA'!Q$3:Q8 | E27: Selected Public Servants D - Alcohol | G27: 23 | H27: 4 | I27: =OFFSET('Hospitality - DATA'!$A$1,'Hospitality - System'!$B$4+1,26) -> 0 | J27: 3 | K27: 27 | L27: txtAlcoholPS
A28: Hospitality_Dinner_Rate | B28: ="'Hospitality - DATA'!R$3:R" & B$5+2 -> 'Hospitality - DATA'!R$3:R8 | E28: Selected Non-Public Servants F - Alcohol | G28: 23 | H28: 6 | I28: =OFFSET('Hospitality - DATA'!$A$1,'Hospitality - System'!$B$4+1,27) -> 0 | J28: 3 | K28: 28 | L28: txtAlcoholNonPS
A29: Hospitality_Dinner_PS | B29: ="'Hospitality - DATA'!S$3:S" & B$5+2 -> 'Hospitality - DATA'!S$3:S8 | E29: Selected Cost of Service N - Alcohol | G29: 23 | H29: 14 | I29: =OFFSET('Hospitality - DATA'!$A$1,'Hospitality - System'!$B$4+1,28) -> 0 | J29: 3 | K29: 29 | L29: txtAlcoholServCost
A30: Hospitality_Dinner_NonPS | B30: ="'Hospitality - DATA'!T$3:T" & B$5+2 -> 'Hospitality - DATA'!T$3:T8 | E30: Selected Public Servants D - Others | G30: 25 | H30: 4 | I30: =OFFSET('Hospitality - DATA'!$A$1,'Hospitality - System'!$B$4+1,29) -> 0 | J30: 3 | K30: 30 | L30: txtOtherPS
A31: Hospitality_Dinner_Service | B31: ="'Hospitality - DATA'!U$3:U" & B$5+2 -> 'Hospitality - DATA'!U$3:U8 | E31: Selected Non-Public Servants F - Others | G31: 25 | H31: 6 | I31: =OFFSET('Hospitality - DATA'!$A$1,'Hospitality - System'!$B$4+1,30) -> 0 | J31: 3 | K31: 31 | L31: txtOtherNonPS
A32: Hospitality_Reception_Rate | B32: ="'Hospitality - DATA'!V$3:V" & B$5+2 -> 'Hospitality - DATA'!V$3:V8 | E32: Selected Total Cost - Others | G32: 25 | H32: 18 | I32: =OFFSET('Hospitality - DATA'!$A$1,'Hospitality - System'!$B$4+1,31) -> 0 | J32: 3 | K32: 32 | L32: txtOtherTotalCost
A33: Hospitality_Reception_PS | B33: ="'Hospitality - DATA'!W$3:W" & B$5+2 -> 'Hospitality - DATA'!W$3:W8 | E33: Selected Public Servants D - Others Exceptional | I33: =OFFSET('Hospitality - DATA'!$A$1,'Hospitality - System'!$B$4+1,32) -> 0 | J33: 3 | K33: 33 | L33: txtOtherExceptionalPS
A34: Hospitality_Reception_NonPS | B34: ="'Hospitality - DATA'!X$3:X" & B$5+2 -> 'Hospitality - DATA'!X$3:X8 | E34: Selected Non-Public Servants F - Others Exceptional | I34: =OFFSET('Hospitality - DATA'!$A$1,'Hospitality - System'!$B$4+1,33) -> 0 | J34: 3 | K34: 34 | L34: txtOtherExceptionalNonPS
A35: Hospitality_Reception_Service | B35: ="'Hospitality - DATA'!Y$3:Y" & B$5+2 -> 'Hospitality - DATA'!Y$3:Y8 | E35: Selected Total Cost - Others Exceptional | I35: =OFFSET('Hospitality - DATA'!$A$1,'Hospitality - System'!$B$4+1,34) -> 0 | J35: 3 | K35: 35 | L35: txtOtherExceptionalTotalCost
A36: Hospitality_Alcohol_Rate | B36: ="'Hospitality - DATA'!Z$3:Z" & B$5+2 -> 'Hospitality - DATA'!Z$3:Z8 | E36: BreakFast Total Cost | G36: 11 | H36: 22 | I36: =OFFSET('Hospitality - DATA'!$A$1,'Hospitality - System'!$B$4+1,43) -> 0 | J36: 3 | K36: 44 | L36: txtBreakFastTotalCost
A37: Hospitality_Alcohol_PS | B37: ="'Hospitality - DATA'!AA$3:AA" & B$5+2 -> 'Hospitality - DATA'!AA$3:AA8 | E37: AM Break Total Cost | G37: 13 | H37: 22 | I37: =OFFSET('Hospitality - DATA'!$A$1,'Hospitality - System'!$B$4+1,44) -> 0 | J37: 3 | K37: 45 | L37: txtAMBreakTotalCost
A38: Hospitality_Alcohol_NonPS | B38: ="'Hospitality - DATA'!AB$3:AB" & B$5+2 -> 'Hospitality - DATA'!AB$3:AB8 | E38: Lunch Total Cost | G38: 15 | H38: 22 | I38: =OFFSET('Hospitality - DATA'!$A$1,'Hospitality - System'!$B$4+1,45) -> 0 | J38: 3 | K38: 46 | L38: txtLunchTotalCost
A39: Hospitality_Alcohol_Service | B39: ="'Hospitality - DATA'!AC$3:AC" & B$5+2 -> 'Hospitality - DATA'!AC$3:AC8 | E39: PM Break Total Cost | G39: 17 | H39: 22 | I39: =OFFSET('Hospitality - DATA'!$A$1,'Hospitality - System'!$B$4+1,46) -> 0 | J39: 3 | K39: 47 | L39: txtPMBreakTotalCost
A40: Hospitality_Others_PS | B40: ="'Hospitality - DATA'!AD$3:AD" & B$5+2 -> 'Hospitality - DATA'!AD$3:AD8 | E40: Dinner Total Cost | G40: 19 | H40: 22 | I40: =OFFSET('Hospitality - DATA'!$A$1,'Hospitality - System'!$B$4+1,47) -> 0 | J40: 3 | K40: 48 | L40: txtDinnerTotalCost
A41: Hospitality_Others_NonPS | B41: ="'Hospitality - DATA'!AE$3:AE" & B$5+2 -> 'Hospitality - DATA'!AE$3:AE8 | E41: Reception Total Cost | G41: 21 | H41: 22 | I41: =OFFSET('Hospitality - DATA'!$A$1,'Hospitality - System'!$B$4+1,48) -> 0 | J41: 3 | K41: 49 | L41: txtReceptionTotalCost
A42: Hospitality_Others_TotalCost | B42: ="'Hospitality - DATA'!AF$3:AF" & B$5+2 -> 'Hospitality - DATA'!AF$3:AF8 | E42: Alcohol Total Cost | G42: 23 | H42: 22 | I42: =OFFSET('Hospitality - DATA'!$A$1,'Hospitality - System'!$B$4+1,49) -> 0 | J42: 3 | K42: 50 | L42: txtAlcoholTotalCost
A43: Hospitality_Others_Exceptional_PS | B43: ="'Hospitality - DATA'!AG$3:AG" & B$5+2 -> 'Hospitality - DATA'!AG$3:AG8
A44: Hospitality_Others_Exceptional_NonPS | B44: ="'Hospitality - DATA'!AH$3:AH" & B$5+2 -> 'Hospitality - DATA'!AH$3:AH8
A45: Hospitality_Others_Exceptional_TotalCost | B45: ="'Hospitality - DATA'!AI$3:AI" & B$5+2 -> 'Hospitality - DATA'!AI$3:AI8
A46: Hospitality_Selected_Tax_Rate | B46: ="'Hospitality - DATA'!AJ$3:AJ" & B$5+2 -> 'Hospitality - DATA'!AJ$3:AJ8
A47: Hospitality_Selected_Breakfast_Rate | B47: ="'Hospitality - DATA'!AK$3:AK" & B$5+2 -> 'Hospitality - DATA'!AK$3:AK8
A48: Hospitality_Morning_Break_Rate | B48: ="'Hospitality - DATA'!AL$3:AL" & B$5+2 -> 'Hospitality - DATA'!AL$3:AL8
A49: Hospitality_Selected_Lunch_Rate | B49: ="'Hospitality - DATA'!AM$3:AM" & B$5+2 -> 'Hospitality - DATA'!AM$3:AM8
A50: Hospitality_Afternoon_Break_Rate | B50: ="'Hospitality - DATA'!AN$3:AN" & B$5+2 -> 'Hospitality - DATA'!AN$3:AN8
A51: Hospitality_Selected_Dinner_Rate | B51: ="'Hospitality - DATA'!AO$3:AO" & B$5+2 -> 'Hospitality - DATA'!AO$3:AO8
A52: Hospitality_Selected_Reception_Rate | B52: ="'Hospitality - DATA'!AP$3:AP" & B$5+2 -> 'Hospitality - DATA'!AP$3:AP8
A53: Hospitality_Breakfast_Tcost | B53: ="'Hospitality - DATA'!AR$3:AR" & B$5+2 -> 'Hospitality - DATA'!AR$3:AR8
A54: Hospitality_Morning_Break_Tcost | B54: ="'Hospitality - DATA'!AS$3:AS" & B$5+2 -> 'Hospitality - DATA'!AS$3:AS8
A55: Hospitality_Lunch_Tcost | B55: ="'Hospitality - DATA'!AT$3:AT" & B$5+2 -> 'Hospitality - DATA'!AT$3:AT8
A56: Hospitality_Afternoon_Break_Tcost | B56: ="'Hospitality - DATA'!AU$3:AU" & B$5+2 -> 'Hospitality - DATA'!AU$3:AU8
A57: Hospitality_Dinner_Tcost | B57: ="'Hospitality - DATA'!AV$3:AV" & B$5+2 -> 'Hospitality - DATA'!AV$3:AV8
A58: Hospitality_Reception_Tcost | B58: ="'Hospitality - DATA'!AW$3:AW" & B$5+2 -> 'Hospitality - DATA'!AW$3:AW8
A59: Hospitality_Alcohol_Tcost | B59: ="'Hospitality - DATA'!AX$3:AX" & B$5+2 -> 'Hospitality - DATA'!AX$3:AX8
A60: Hospitality_BreakFast_Exceed_Standard | B60: =SUM(IF(NOT(Hospitality_BreakFast_NonPS+Hospitality_BreakFast_PS=0),IF((Hospitality_Breakfast_Tcost/(Hospitality_BreakFast_NonPS+Hospitality_BreakFast_PS))>Hospitality_Selected_Breakfast_Rate,1,0),0)) -> 0
A61: Hospitality_MornBreak_Exceed_Standard | B61: =SUM(IF(NOT(Hospitality_AMBreak_NonPS+Hospitality_AMBreak_PS=0),IF((Hospitality_Morning_Break_Tcost/(Hospitality_AMBreak_NonPS+Hospitality_AMBreak_PS))>Hospitality_Morning_Break_Rate,1,0),0)) -> 0
A62: Hospitality_lunch_Exceed_Standard | B62: =SUM(IF(NOT(Hospitality_Lunch_NonPS+Hospitality_Lunch_PS=0),IF((Hospitality_Lunch_Tcost/(Hospitality_Lunch_NonPS+Hospitality_Lunch_PS))>Hospitality_Selected_Lunch_Rate,1,0),0)) -> 0
A63: Hospitality_AftBreak_Exceed_Standard | B63: =SUM(IF(NOT(Hospitality_PMBreak_NonPS+Hospitality_PMBreak_PS=0),IF((Hospitality_Afternoon_Break_Tcost/(Hospitality_PMBreak_NonPS+Hospitality_PMBreak_PS))>Hospitality_Afternoon_Break_Rate,1,0),0)) -> 0
A64: Hospitality_Dinner_Exceed_Standard | B64: =SUM(IF(NOT(Hospitality_Dinner_NonPS+Hospitality_Dinner_PS=0),IF((Hospitality_Dinner_Tcost/(Hospitality_Dinner_NonPS+Hospitality_Dinner_PS))>Hospitality_Selected_Dinner_Rate,1,0),0)) -> 0
A65: Hospitality_Reception_Exceed_Standard | B65: =SUM(IF(NOT(Hospitality_Reception_NonPS+Hospitality_Reception_PS=0),IF((Hospitality_Reception_Tcost/(Hospitality_Reception_NonPS+Hospitality_Reception_PS))>Hospitality_Selected_Reception_Rate,1,0),0)) -> 0
A66: Hospitality_BreakFast_Exceed_Maximum | B66: =SUM(IF(NOT(Hospitality_BreakFast_NonPS+Hospitality_BreakFast_PS=0),IF((Hospitality_Breakfast_Tcost/(Hospitality_BreakFast_NonPS+Hospitality_BreakFast_PS))>(1.5*Hospitality_Selected_Breakfast_Rate),1,0),0)) -> 0
A67: Hospitality_MornBreak_Exceed_Maximum | B67: =SUM(IF(NOT(Hospitality_AMBreak_NonPS+Hospitality_AMBreak_PS=0),IF((Hospitality_Morning_Break_Tcost/(Hospitality_AMBreak_NonPS+Hospitality_AMBreak_PS))>(1.5*Hospitality_Morning_Break_Rate),1,0),0)) -> 0
A68: Hospitality_lunch_Exceed_Maximum | B68: =SUM(IF(NOT(Hospitality_Lunch_NonPS+Hospitality_Lunch_PS=0),IF((Hospitality_Lunch_Tcost/(Hospitality_Lunch_NonPS+Hospitality_Lunch_PS))>(1.5*Hospitality_Selected_Lunch_Rate),1,0),0)) -> 0
A69: Hospitality_AftBreak_Exceed_Maximum | B69: =SUM(IF(NOT(Hospitality_PMBreak_NonPS+Hospitality_PMBreak_PS=0),IF((Hospitality_Afternoon_Break_Tcost/(Hospitality_PMBreak_NonPS+Hospitality_PMBreak_PS))>(1.5*Hospitality_Afternoon_Break_Rate),1,0),0)) -> 0
A70: Hospitality_Dinner_Exceed_Maximum | B70: =SUM(IF(NOT(Hospitality_Dinner_NonPS+Hospitality_Dinner_PS=0),IF((Hospitality_Dinner_Tcost/(Hospitality_Dinner_NonPS+Hospitality_Dinner_PS))>(1.5*Hospitality_Selected_Dinner_Rate),1,0),0)) -> 0
A71: Hospitality_Reception_Exceed_Maximum | B71: =SUM(IF(NOT(Hospitality_Reception_NonPS+Hospitality_Reception_PS=0),IF((Hospitality_Reception_Tcost/(Hospitality_Reception_NonPS+Hospitality_Reception_PS))>(1.5*Hospitality_Selected_Reception_Rate),1,0),0)) -> 0
A72: Current_Tax_Range | B72: ="'Hospitality - DATA'!AQ"&Selected_Day+2 -> 'Hospitality - DATA'!AQ3

Sheet Hospitality - DATA (hidden)
B1: Breakfast | F1: Break | J1: Lunch | N1: Break | R1: Dinner | V1: Reception | Z1: Alcohol | AD1: Others | AG1: Exceptional
A2: Event date | B2: Function Meal Rate B | C2: Public Servants D | D2: Non-Public Servants F | E2: Cost of Service N | F2: Function Meal Rate B | G2: Public Servants D | H2: Non-Public Servants F | I2: Cost of Service N | J2: Function Meal Rate B | K2: Public Servants D | L2: Non-Public Servants F | M2: Cost of Service N | N2: Function Meal Rate B | O2: Public Servants D | P2: Non-Public Servants F | Q2: Cost of Service N | R2: Function Meal Rate B | S2: Public Servants D | T2: Non-Public Servants F | U2: Cost of Service N | V2: Function Meal Rate B | W2: Public Servants D | X2: Non-Public Servants F | Y2: Cost of Service N | Z2: Function Meal Rate B | AA2: Public Servants D | AB2: Non-Public Servants F | AC2: Cost of Service N | AD2: Public Servants D | AE2: Non-Public Servants F | AF2: Total Cost | AG2: Public Servants D | AH2: Non-Public Servants F | AI2: Total Cost | AJ2: Selected Tax Rate | AK2: Selected Breakfast Rate | AL2: Selected Morning Break Rate | AM2: Selected Lunch Rate | AN2: Selected Afternoon Break Rate | AO2: Selected Dinner Rate | AP2: Selected Reception Rate | AQ2: Selected Rate Package | AR2: Breakfast Total Cost | AS2: Morning Break Total Cost | AT2: Lunch Total Cost | AU2: Afternoon Break Total Cost | AV2: Dinner total Cost | AW2: Reception total Cost | AX2: Alcohol Total Cost
B3: 0 | C3: 0 | D3: 0 | E3: 0 | F3: 0 | G3: 0 | H3: 0 | I3: 0 | J3: 0 | K3: 0 | L3: 0 | M3: 0 | N3: 0 | O3: 0 | P3: 0 | Q3: 0 | R3: 0 | S3: 0 | T3: 0 | U3: 0 | V3: 0 | W3: 0 | X3: 0 | Y3: 0 | Z3: 0 | AA3: 0 | AB3: 0 | AC3: 0 | AD3: 0 | AE3: 0 | AF3: 0 | AG3: 0 | AH3: 0 | AI3: 0 | AJ3: =OFFSET('Hospitality - Configuration'!$A$3,AQ3-1,2) -> 0.05 | AK3: =OFFSET('Hospitality - Configuration'!$A$3,AQ3-1,3) -> 32.02 | AL3: =OFFSET('Hospitality - Configuration'!$A$3,AQ3-1,4) -> 10.67 | AM3: =OFFSET('Hospitality - Configuration'!$A$3,AQ3-1,5) -> 43.2 | AN3: =OFFSET('Hospitality - Configuration'!$A$3,AQ3-1,6) -> 10.67 | AO3: =OFFSET('Hospitality - Configuration'!$A$3,AQ3-1,7) -> 92.75 | AP3: =OFFSET('Hospitality - Configuration'!$A$3,AQ3-1,8) -> 42.7 | AQ3: 1 | AR3: =(((C3+D3)*B3)+E3)+((((C3+D3)*B3)+E3)*AJ3) -> 0 | AS3: =(((G3+H3)*F3)+I3)+((((G3+H3)*F3)+I3)*AJ3) -> 0 | AT3: =(((K3+L3)*J3)+M3)+((((K3+L3)*J3)+M3)*AJ3) -> 0 | AU3: =(((O3+P3)*N3)+Q3)+((((O3+P3)*N3)+Q3)*AJ3) -> 0 | AV3: =(((S3+T3)*R3)+U3)+((((S3+T3)*R3)+U3)*AJ3) -> 0 | AW3: =(((W3+X3)*V3)+Y3)+((((W3+X3)*V3)+Y3)*AJ3) -> 0 | AX3: =(((AA3+AB3)*Z3)+AC3)+((((AA3+AB3)*Z3)+AC3)*AJ3) -> 0
B4: 0 | C4: 0 | D4: 0 | E4: 0 | F4: 0 | G4: 0 | H4: 0 | I4: 0 | J4: 0 | K4: 0 | L4: 0 | M4: 0 | N4: 0 | O4: 0 | P4: 0 | Q4: 0 | R4: 0 | S4: 0 | T4: 0 | U4: 0 | V4: 0 | W4: 0 | X4: 0 | Y4: 0 | Z4: 0 | AA4: 0 | AB4: 0 | AC4: 0 | AD4: 0 | AE4: 0 | AF4: 0 | AG4: 0 | AH4: 0 | AI4: 0 | AJ4: =OFFSET('Hospitality - Configuration'!$A$3,AQ4-1,2) -> 0.05 | AK4: =OFFSET('Hospitality - Configuration'!$A$3,AQ4-1,3) -> 32.02 | AL4: =OFFSET('Hospitality - Configuration'!$A$3,AQ4-1,4) -> 10.67 | AM4: =OFFSET('Hospitality - Configuration'!$A$3,AQ4-1,5) -> 43.2 | AN4: =OFFSET('Hospitality - Configuration'!$A$3,AQ4-1,6) -> 10.67 | AO4: =OFFSET('Hospitality - Configuration'!$A$3,AQ4-1,7) -> 92.75 | AP4: =OFFSET('Hospitality - Configuration'!$A$3,AQ4-1,8) -> 42.7 | AQ4: 1 | AR4: 0 | AS4: 0 | AT4: 0 | AU4: 0 | AV4: 0 | AW4: 0 | AX4: 0
B5: 0 | C5: 0 | D5: 0 | E5: 0 | F5: 0 | G5: 0 | H5: 0 | I5: 0 | J5: 0 | K5: 0 | L5: 0 | M5: 0 | N5: 0 | O5: 0 | P5: 0 | Q5: 0 | R5: 0 | S5: 0 | T5: 0 | U5: 0 | V5: 0 | W5: 0 | X5: 0 | Y5: 0 | Z5: 0 | AA5: 0 | AB5: 0 | AC5: 0 | AD5: 0 | AE5: 0 | AF5: 0 | AG5: 0 | AH5: 0 | AI5: 0 | AJ5: =OFFSET('Hospitality - Configuration'!$A$3,AQ5-1,2) -> 0.05 | AK5: =OFFSET('Hospitality - Configuration'!$A$3,AQ5-1,3) -> 32.02 | AL5: =OFFSET('Hospitality - Configuration'!$A$3,AQ5-1,4) -> 10.67 | AM5: =OFFSET('Hospitality - Configuration'!$A$3,AQ5-1,5) -> 43.2 | AN5: =OFFSET('Hospitality - Configuration'!$A$3,AQ5-1,6) -> 10.67 | AO5: =OFFSET('Hospitality - Configuration'!$A$3,AQ5-1,7) -> 92.75 | AP5: =OFFSET('Hospitality - Configuration'!$A$3,AQ5-1,8) -> 42.7 | AQ5: 1 | AR5: 0 | AS5: 0 | AT5: 0 | AU5: 0 | AV5: 0 | AW5: 0 | AX5: 0
B6: 0 | C6: 0 | D6: 0 | E6: 0 | F6: 0 | G6: 0 | H6: 0 | I6: 0 | J6: 0 | K6: 0 | L6: 0 | M6: 0 | N6: 0 | O6: 0 | P6: 0 | Q6: 0 | R6: 0 | S6: 0 | T6: 0 | U6: 0 | V6: 0 | W6: 0 | X6: 0 | Y6: 0 | Z6: 0 | AA6: 0 | AB6: 0 | AC6: 0 | AD6: 0 | AE6: 0 | AF6: 0 | AG6: 0 | AH6: 0 | AI6: 0 | AJ6: =OFFSET('Hospitality - Configuration'!$A$3,AQ6-1,2) -> 0.05 | AK6: =OFFSET('Hospitality - Configuration'!$A$3,AQ6-1,3) -> 32.02 | AL6: =OFFSET('Hospitality - Configuration'!$A$3,AQ6-1,4) -> 10.67 | AM6: =OFFSET('Hospitality - Configuration'!$A$3,AQ6-1,5) -> 43.2 | AN6: =OFFSET('Hospitality - Configuration'!$A$3,AQ6-1,6) -> 10.67 | AO6: =OFFSET('Hospitality - Configuration'!$A$3,AQ6-1,7) -> 92.75 | AP6: =OFFSET('Hospitality - Configuration'!$A$3,AQ6-1,8) -> 42.7 | AQ6: 1 | AR6: 0 | AS6: 0 | AT6: 0 | AU6: 0 | AV6: 0 | AW6: 0 | AX6: 0
B7: 0 | C7: 0 | D7: 0 | E7: 0 | F7: 0 | G7: 0 | H7: 0 | I7: 0 | J7: 0 | K7: 0 | L7: 0 | M7: 0 | N7: 0 | O7: 0 | P7: 0 | Q7: 0 | R7: 0 | S7: 0 | T7: 0 | U7: 0 | V7: 0 | W7: 0 | X7: 0 | Y7: 0 | Z7: 0 | AA7: 0 | AB7: 0 | AC7: 0 | AD7: 0 | AE7: 0 | AF7: 0 | AG7: 0 | AH7: 0 | AI7: 0 | AJ7: =OFFSET('Hospitality - Configuration'!$A$3,AQ7-1,2) -> 0.05 | AK7: =OFFSET('Hospitality - Configuration'!$A$3,AQ7-1,3) -> 32.02 | AL7: =OFFSET('Hospitality - Configuration'!$A$3,AQ7-1,4) -> 10.67 | AM7: =OFFSET('Hospitality - Configuration'!$A$3,AQ7-1,5) -> 43.2 | AN7: =OFFSET('Hospitality - Configuration'!$A$3,AQ7-1,6) -> 10.67 | AO7: =OFFSET('Hospitality - Configuration'!$A$3,AQ7-1,7) -> 92.75 | AP7: =OFFSET('Hospitality - Configuration'!$A$3,AQ7-1,8) -> 42.7 | AQ7: 1 | AR7: 0 | AS7: 0 | AT7: 0 | AU7: 0 | AV7: 0 | AW7: 0 | AX7: 0
B8: 0 | C8: 0 | D8: 0 | E8: 0 | F8: 0 | G8: 0 | H8: 0 | I8: 0 | J8: 0 | K8: 0 | L8: 0 | M8: 0 | N8: 0 | O8: 0 | P8: 0 | Q8: 0 | R8: 0 | S8: 0 | T8: 0 | U8: 0 | V8: 0 | W8: 0 | X8: 0 | Y8: 0 | Z8: 0 | AA8: 0 | AB8: 0 | AC8: 0 | AD8: 0 | AE8: 0 | AF8: 0 | AG8: 0 | AH8: 0 | AI8: 0 | AJ8: =OFFSET('Hospitality - Configuration'!$A$3,AQ8-1,2) -> 0.05 | AK8: =OFFSET('Hospitality - Configuration'!$A$3,AQ8-1,3) -> 32.02 | AL8: =OFFSET('Hospitality - Configuration'!$A$3,AQ8-1,4) -> 10.67 | AM8: =OFFSET('Hospitality - Configuration'!$A$3,AQ8-1,5) -> 43.2 | AN8: =OFFSET('Hospitality - Configuration'!$A$3,AQ8-1,6) -> 10.67 | AO8: =OFFSET('Hospitality - Configuration'!$A$3,AQ8-1,7) -> 92.75 | AP8: =OFFSET('Hospitality - Configuration'!$A$3,AQ8-1,8) -> 42.7 | AQ8: 1 | AR8: 0 | AS8: 0 | AT8: 0 | AU8: 0 | AV8: 0 | AW8: 0 | AX8: 0

Sheet Travel DATA (hidden)
A1: General Information | B1: General Information | C1: General Information | D1: General Information | E1: General Information | F1: General Information | G1: General Information | H1: General Information | I1: General Information | J1: General Information | K1: Tansportation | L1: Tansportation | M1: Tansportation | N1: Tansportation | O1: Tansportation | P1: Tansportation | Q1: Tansportation | R1: Tansportation | S1: Tansportation | T1: Tansportation | U1: Tansportation | V1: Accommodations | W1: Accommodations | X1: Accommodations | Y1: Accommodations | Z1: Meals | AA1: Meals | AB1: Meals | AC1: Incidentals and other costs | AD1: Incidentals and other costs | AE1: Transportation | AF1: Accommodations | AG1: Meals | AH1: Incidentals and other costs | AI1: Sort Index | AJ1: General Information | AK1: General Information
A2: Name | B2: Branch | C2: Start Date | D2: End Date | E2: Origin | F2: Destination | G2: Objective | H2: Category | I2: Traveller | J2: Virtual presence or other remote meeting solutions | K2: Air | L2: Train | M2: Bus | N2: Ferry | O2: Taxi | P2: Personal Vehicle | Q2: Rental Vehicle | R2: Govt Vehicle | S2: Public Transit | T2: Parking | U2: Other Mode | V2: Commercial | W2: Unlisted Commercial | X2: Private | Y2: Other | Z2: Breakfast | AA2: Lunch | AB2: Dinner | AC2: Incidentals | AD2: Other Costs | AE2: Rationale - Mode of Transportation | AF2: Rationale - Accommodations | AG2: Excluded Meals Details | AH2: Additional Information - Incidentals and other costs | AI2: Sort Index | AJ2: Travel Date Unknown | AK2: CategoryOther
K3: 0 | L3: 0 | M3: 0 | N3: 0 | O3: 0 | P3: 0 | Q3: 0 | R3: 0 | S3: 0 | T3: 0 | U3: 0 | V3: 0 | W3: 0 | X3: 0 | Y3: 0 | Z3: 0 | AA3: 0 | AB3: 0 | AC3: 0 | AD3: 0 | AJ3: FALSE

Sheet Travel - Temp DATA (hidden)
K1: 0 | L1: 0 | M1: 0 | N1: 0 | O1: 0 | P1: 0 | Q1: 0 | R1: 0 | S1: 0 | T1: 0 | U1: 0 | V1: 0 | W1: 0 | X1: 0 | Y1: 0 | Z1: 0 | AA1: 0 | AB1: 0 | AC1: 0 | AD1: 0 | AJ1: FALSE

Sheet Travel plan Template (hidden)
A1: Report Header | D1: Activity Title Titre de l'activité | F1: =IF(Activity_Title=0,"",Activity_Title) -> 
A2: Section header | B2: Travel Plan Plan des voyages | E2: Branch / Direction générale :
A3: Section header | E3: Categorie / Catégorie :
A4: Section header | E4: Travel Objective / Objectif des voyages :
A5: Section header | B5: Rationale for transportation / Raison pour le transport :
A6: Section header | B6: Rationale for accomodations / Raison pour le logement :
A7: Section header | B7: Rationale for Meals / Raison pour les repas :
A8: Section header | B8: Rationale for Incidentals and other costs / Raison pour les faux frais ou autres coûts :
A9: Section header | B9: Rationale why virtual presence or other remote meeting solutions were not applied / Raison pour laquelle la présence virtuelle ou une autre solution de réunion à distance n'a pu être appliquée :
A10: Section header
A11: Section header | B11: Travellers Name / Nom des voyageurs | C11: Public Servant or Non Public Servant / Fonctionnaire ou non-Fonctionnaire | D11: Travel Dates / Dates du voyage | F11: (City, Country / Ville, Pays) | H11: Mode of Transportation / Mode de transport | S11: Accomodations / Logement | W11: Meals / Repas | Z11: Incidentals / Faux frais ** | AA11: Other costs / Autres coûts * | AB11: Total Travel Costs / Coût total du voyage
A12: Section header | D12: From / Du dd/mm/yyyy jj-mm-aaaa | E12: To / Au dd/mm/yyyy jj-mm-aaaa | F12: Origin / Origine | G12: Destination | H12: Air / Avion | I12: Rail / Train | J12: Bus / Autobus | K12: Ferry / Traversier | L12: Taxis / Taxi | M12: Personal Vehicle / Véhicule privé | N12: Rental vehicle / Véhicule loué | O12: Govt vehicle / Véhicule gouvernemantal | P12: Public transit / Transport en commun | Q12: Parking / Stationnement | R12: Other mode / Autre mode | S12: Commercial / Commercial | T12: Unlisted commercial / Non listé commercial | U12: Private / Privé | V12: Other / Autre | W12: Breakfast / Déjeuner | X12: Lunch / Dîner | Y12: Dinner / Souper
A13: Content | H13: 0 | I13: 0 | J13: 0 | K13: 0 | L13: 0 | M13: 0 | N13: 0 | O13: 0 | P13: 0 | Q13: 0 | R13: 0 | S13: 0 | T13: 0 | U13: 0 | V13: 0 | W13: 0 | X13: 0 | Y13: 0 | Z13: 0 | AA13: 0 | AB13: =SUM(H13:AA13) -> 0
A14: Section footer | B14: Total | H14: =SUM(H13:H13) -> 0 | I14: =SUM(I13:I13) -> 0 | J14: 0 | K14: 0 | L14: 0 | M14: 0 | N14: 0 | O14: 0 | P14: 0 | Q14: 0 | R14: 0 | S14: 0 | T14: 0 | U14: 0 | V14: 0 | W14: 0 | X14: 0 | Y14: 0 | Z14: 0 | AA14: 0 | AB14: 0
A15: Section footer
A16: Level2 Footer | B16: * Provide a description in the appropriate rationale above. / Fournir une description dans la raison approprié ci-dessus.
A17: Level2 Footer | B17: ** For Public Servant only / Pour fonctionnaires seulement
A18: Level2 Footer | B18: I certify that travel, hospitality, conferences and event expenditures are managed with prudence and probity and represent the most economic and efficient use of funds given the nature of the activity in relation to the achievement of our department's objectives.
A19: Level2 Footer | B19: Je certifie que les dépenses de voyages, d'accueil, de conférences et d'événements sont gérées avec prudence et probité, et elles représentent la façon la plus économique et la plus efficace d'utiliser les fonds publics, compte tenu de la nature de l'activité par rapport à la réalisation des objectifs de notre ministère.
A20: Level2 Footer
A21: Level2 Footer | B21: Recommender / Recommandation : (If needed / si nécessaire) | H21: Recommender / Recommandation : (If needed / si nécessaire) | P21: Approver / Approbation :
A22: Level2 Footer
A23: Level2 Footer
A24: Level2 Footer | B24: Recommended by / Recommandé par | E24: Position Title / Titre du poste | H24: Recommended by / Recommandé par | L24: Position Title / Titre du poste | P24: Approved by / Approuvé par | V24: Position Title / Titre du poste
A25: Level2 Footer
A26: Level2 Footer
A27: Level2 Footer | B27: Signature | E27: Date | H27: Signature | L27: Date | P27: Signature | V27: Date
A28: Level2 Footer
A29: Level2 Footer
A30: Report footer | B30: Grand Total | H30: =SUM(H28:H28) -> 0 | I30: =SUM(I28:I28) -> 0 | J30: 0 | K30: 0 | L30: 0 | M30: 0 | N30: 0 | O30: 0 | P30: 0 | Q30: 0 | R30: 0 | S30: 0 | T30: 0 | U30: 0 | V30: 0 | W30: 0 | X30: 0 | Y30: 0 | Z30: 0 | AA30: 0 | AB30: 0
A31: Report footer

Sheet Travel - System (hidden)
A1: Selected Traveller | B1: 1 | E1: Column Name | F1: Value | G1: Row Form | H1: Colum Form | I1: Calculation | J1: Row Database | K1: Column Database | L1: Default Value | M1: Form Control | N1: Category ID | O1: Category Drop Down | P1: Traveller ID | Q1: Traveller Drop Down | R1: Selected Branches PS (Calculated) | S1: Selected Branches Non PS (Calculated) | T1: ID | U1: Category Drop Down EN | V1: Category Drop Down FR | W1: ID | X1: Traveller Drop Down EN | Y1: Traveller Drop Down FR
A2: Number of Traveller | B2: 1 | E2: Selected Traveller Name | G2: 6 | H2: 5 | J2: =Selected_Traveller+2 -> 3 | K2: 1 | M2: txtName | R2: sf
E3: Branch | G3: 7 | H3: 5 | J3: 3 | K3: 2 | L3: =IF(Selected_Traveller>1,IF(INDIRECT("'Travel DATA'!B"&J3-1)="","",INDIRECT("'Travel DATA'!B"&J3-1)),"") ->  | M3: txtBranch | N3: 1 | O3: =IF(Language=French_Select,V3,U3) -> Activités opérationnelles – les voyages requis pour appuyer les activités opérationnelles du ministère (autres que les catégories suivantes), les exigences législatives ou juridiques | P3: 1 | Q3: =IF(Language=French_Select,Y3,X3) -> Fonctionnaire | T3: 1 | U3: Operational activities - Travel required to support the department’s operational activities (other than the following categories), legislative or legal requirements | V3: Activités opérationnelles – les voyages requis pour appuyer les activités opérationnelles du ministère (autres que les catégories suivantes), les exigences législatives ou juridiques | W3: 1 | X3: Public Servant | Y3: Fonctionnaire
E4: Origin | G4: 8 | H4: 9 | J4: 3 | K4: 5 | L4: =IF(Selected_Traveller>1,IF(INDIRECT("'Travel DATA'!E"&J4-1)="","",INDIRECT("'Travel DATA'!E"&J4-1)),"") ->  | M4: txtOrigin | N4: 2 | O4: =IF(Language=French_Select,V4,U4) -> Voyages nécessaires pour mobiliser des intervenants clés à l'égard du renouvellement ou de l'élaboration d'un règlement, d'une politique, un programme ou d'autres questions qui soutiennent les relations de travail ou les opérations continues des ministères avec ces communautés | P4: 2 | Q4: =IF(Language=French_Select,Y4,X4) -> Non-fonctionnaire | T4: 2 | U4: Travel that is necessary to engage key stakeholders in relation to policy, program or regulatory development or renewal or other matters that support the departments' ongoing working relationship or operations with such communities; | V4: Voyages nécessaires pour mobiliser des intervenants clés à l'égard du renouvellement ou de l'élaboration d'un règlement, d'une politique, un programme ou d'autres questions qui soutiennent les relations de travail ou les opérations continues des ministères avec ces communautés | W4: 2 | X4: Non-Public Servant | Y4: Non-fonctionnaire
E5: Destination | G5: 8 | H5: 10 | J5: 3 | K5: 6 | L5: =IF(Selected_Traveller>1,IF(INDIRECT("'Travel DATA'!F"&J5-1)="","",INDIRECT("'Travel DATA'!F"&J5-1)),"") ->  | M5: txtDestination | N5: 3 | O5: =IF(Language=French_Select,V5,U5) -> Voyages nécessaires pour appuyer la saine gouvernance interne d'un ministère, y compris pour des réunions de la direction et du comité ministériel de vérification, ou aux fins du recrutement ou de l'embauche d'employés | T5: 3 | U5: Travel that is necessary to support sound internal governance of a department including management meetings and Departmental Audit Committee meetings, or that is necessary for the recruitment or hiring of employees; | V5: Voyages nécessaires pour appuyer la saine gouvernance interne d'un ministère, y compris pour des réunions de la direction et du comité ministériel de vérification, ou aux fins du recrutement ou de l'embauche d'employés
A6: Traveller_Type | B6: ="'Travel DATA'!I3:I" & B2+2 -> 'Travel DATA'!I3:I3 | E6: Objective | G6: 12 | H6: 5 | J6: 3 | K6: 7 | L6: =IF(Selected_Traveller>1,IF(INDIRECT("'Travel DATA'!G"&J6-1)="","",INDIRECT("'Travel DATA'!G"&J6-1)),"") ->  | M6: txtObjective | N6: 4 | O6: =IF(Language=French_Select,V6,U6) -> Voyages d'employés aux fins d'une formation qui leur permettra de s'acquitter des fonctions propres à leur poste | T6: 4 | U6: Travel to enable the training of employees to meet the assigned duties of their positions; | V6: Voyages d'employés aux fins d'une formation qui leur permettra de s'acquitter des fonctions propres à leur poste
A7: Travel_Transportation | B7: ="'Travel DATA'!K3:U" & B2+2 -> 'Travel DATA'!K3:U3 | E7: Category | G7: 13 | H7: 5 | J7: 3 | K7: 8 | L7: =IF(Selected_Traveller>1,IF(INDIRECT("'Travel DATA'!H"&J7-1)="","",INDIRECT("'Travel DATA'!H"&J7-1)),"") ->  | M7: cmbCategory | N7: 5 | O7: =IF(Language=French_Select,V7,U7) -> Autres voyages | T7: 5 | U7: Other travel; | V7: Autres voyages
A8: Travel_Accomodations | B8: ="'Travel DATA'!V3:Y" & B2+2 -> 'Travel DATA'!V3:Y3 | E8: CategoryOther | J8: 3 | K8: 37 | L8: =IF(Selected_Traveller>1,IF(INDIRECT("'Travel DATA'!AK"&J12-1)="","",INDIRECT("'Travel DATA'!AK"&J12-1)),"") ->  | M8: txtCategoryOther
A9: Travel_Meals | B9: ="'Travel DATA'!Z3:AB" & B2+2 -> 'Travel DATA'!Z3:AB3 | E9: Traveller | G9: 14 | H9: 5 | J9: 3 | K9: 9 | L9: =IF(Selected_Traveller>1,IF(INDIRECT("'Travel DATA'!I"&J9-1)="","",INDIRECT("'Travel DATA'!I"&J9-1)),"") ->  | M9: cmbTraveller
A10: Travel_Incidentals | B10: ="'Travel DATA'!AC3:AD" & B2+2 -> 'Travel DATA'!AC3:AD3 | E10: Start Date | J10: 3 | K10: 3 | L10: =IF(Selected_Traveller>1,IF(INDIRECT("'Travel DATA'!C"&J10-1)="","",INDIRECT("'Travel DATA'!C"&J10-1)),"") ->  | M10: txtFromDate
A11: Traveller_Branch | B11: ="'Travel DATA'!B3:B" & B2+2 -> 'Travel DATA'!B3:B3 | E11: End Date | J11: 3 | K11: 4 | L11: =IF(Selected_Traveller>1,IF(INDIRECT("'Travel DATA'!D"&J11-1)="","",INDIRECT("'Travel DATA'!D"&J11-1)),"") ->  | M11: txtToDate
A12: Max Branches PS | B12: =COUNTA(R2:R100) -> 1 | E12: Travel Date Unknown | J12: 3 | K12: 36 | L12: =IF(Selected_Traveller>1,IF(INDIRECT("'Travel DATA'!aj"&J12-1)="","",INDIRECT("'Travel DATA'!aj"&J12-1)),"") ->  | M12: chkUnknown
A13: Max Branches non PS | B13: 0 | E13: Virtual presence or other remote meeting solutions | G13: 15 | H13: 5 | J13: 3 | K13: 10 | L13: =IF(Selected_Traveller>1,IF(INDIRECT("'Travel DATA'!J"&J13-1)="","",INDIRECT("'Travel DATA'!J"&J13-1)),"") ->  | M13: txtVirtual
A14: Travel_Category | B14: ="'Travel DATA'!H3" -> 'Travel DATA'!H3 | E14: Air | G14: 18 | H14: 6 | J14: 3 | K14: 11 | L14: 0 | M14: txtAir
A15: Travel_CategoryOther | B15: ="'Travel DATA'!AK3" -> 'Travel DATA'!AK3 | E15: Rail | G15: 19 | H15: 6 | J15: 3 | K15: 12 | L15: 0 | M15: txtRail
A16: Virtual_Presence_Justification | B16: ="'Travel DATA'!J3" -> 'Travel DATA'!J3 | E16: Bus | G16: 20 | H16: 6 | J16: 3 | K16: 13 | L16: 0 | M16: txtBus
E17: Ferry | G17: 21 | H17: 6 | J17: 3 | K17: 14 | L17: 0 | M17: txtFerry
E18: Taxi | G18: 22 | H18: 6 | J18: 3 | K18: 15 | L18: 0 | M18: txtTaxi
E19: Personal Vehicle | G19: 23 | H19: 6 | J19: 3 | K19: 16 | L19: 0 | M19: txtPersVeh
E20: Rental Vehicle | G20: 24 | H20: 6 | J20: 3 | K20: 17 | L20: 0 | M20: txtRentVeh
E21: Govt Vehicle | G21: 25 | H21: 6 | J21: 3 | K21: 18 | L21: 0 | M21: txtGovVeh
E22: Public Transit | G22: 26 | H22: 6 | J22: 3 | K22: 19 | L22: 0 | M22: txtPublic
E23: Parking | G23: 27 | H23: 6 | J23: 3 | K23: 20 | L23: 0 | M23: txtPark
E24: Other Mode | G24: 28 | H24: 6 | J24: 3 | K24: 21 | L24: 0 | M24: txtOtherTrans
E25: Commercial | G25: 31 | H25: 6 | J25: =Selected_Traveller+2 -> 3 | K25: 22 | L25: 0 | M25: txtAccComm
E26: Unlisted Commercial | G26: 32 | H26: 6 | J26: 3 | K26: 23 | L26: 0 | M26: txtAccUnlst
E27: Private | G27: 33 | H27: 6 | J27: 3 | K27: 24 | L27: 0 | M27: txtAccPvt
E28: Other | G28: 34 | H28: 6 | J28: 3 | K28: 25 | L28: 0 | M28: txtAccOther
E29: Breakfast | G29: 37 | H29: 6 | J29: 3 | K29: 26 | L29: 0 | M29: txtMealBreakfast
E30: Lunch | G30: 38 | H30: 6 | J30: 3 | K30: 27 | L30: 0 | M30: txtMealLunch
E31: Dinner | G31: 39 | H31: 6 | J31: 3 | K31: 28 | L31: 0 | M31: txtMealDinner
E32: Incidentals | G32: 42 | H32: 6 | J32: 3 | K32: 29 | L32: 0 | M32: txtIncidentals
E33: Other Costs | G33: 43 | H33: 6 | J33: 3 | K33: 30 | L33: 0 | M33: txtOtherCosts
E34: Transportation Rationale | G34: 18 | H34: 7 | J34: 3 | K34: 31 | L34: =IF(Selected_Traveller>1,IF(INDIRECT("'Travel DATA'!AE"&J34-1)="","",INDIRECT("'Travel DATA'!AE"&J34-1)),"") ->  | M34: txtTransJustification
E35: Accommodation Rationale | G35: 31 | H35: 7 | J35: 3 | K35: 32 | L35: =IF(Selected_Traveller>1,IF(INDIRECT("'Travel DATA'!AF"&J35-1)="","",INDIRECT("'Travel DATA'!AF"&J35-1)),"") ->  | M35: txtAccJustification
E36: Excluded Meals Details | G36: 37 | H36: 7 | J36: 3 | K36: 33 | L36: =IF(Selected_Traveller>1,IF(INDIRECT("'Travel DATA'!AG"&J36-1)="","",INDIRECT("'Travel DATA'!AG"&J36-1)),"") ->  | M36: txtMealJustification
E37: Additional Information | G37: 42 | H37: 7 | J37: 3 | K37: 34 | L37: =IF(Selected_Traveller>1,IF(INDIRECT("'Travel DATA'!AH"&J37-1)="","",INDIRECT("'Travel DATA'!AH"&J37-1)),"") ->  | M37: txtOtherJustification

Sheet Delegation (hidden)
A1: Level | B1: Description | C1: Description | E1: Events | I1: Travel | M1: Hospitality | Q1: Conference (Excludes Training) | U1: Other Costs | Y1: Overall Event Approval Level --­> | Z1: =MAX(Event_Delegation_Level_Part1,Travel_Delegation_Level,Hospitality_Delegation_Event_Level,Conference_Delegation_Level,OtherCosts_Delegation_Level) -> 0 | AB1: Test ID | AC1: Validation Item Desc EN | AD1: Validation Item Desc FR | AF1: To include in Memo text EN | AG1: To include in Memo text FR | AI1: Memo text EN | AJ1: Memo text FR
A2: 0 | B2: No additional authorization required | C2: Aucune autorisation supplémentaire nécessaire. | E2: Test ID | F2: Description | G2: Authority | I2: Test ID | J2: Description | K2: Authority | M2: Test ID | N2: Description | O2: Authority | Q2: Test ID | R2: Description | S2: Authority | U2: Test ID | V2: Description | W2: Authority | AB2: 2 | AC2: the total departmental cost for a single event is exceeding $25,000 | AD2: les frais pour un seul et même événement s'élèvent à plus de 25 000 $ | AF2: =IF(G4=Event_Delegation_Level,AC2,"") -> the total departmental cost for a single event is exceeding $25,000 | AG2: =IF(G4=Event_Delegation_Level,AD2,"") -> les frais pour un seul et même événement s'élèvent à plus de 25 000 $ | AH2: =IF(AF2="",0,1) -> 1 | AI2: =IF(AF2="",AI3,IF(MAX($AH$2:$AH$28)=1,(AF2)&".",IF(AI3=" ","and "&AF2&".",IF(MIN($AH$2:$AH$28)=AH2,AF2&"; "&AI3,AF2&"; "&AI3)))) ->  | AJ2: =IF(AG2="",AJ3,IF(MAX($AH$2:$AH$28)=1,(AG2)&".",IF(AJ3=" ","et "&AG2&".",IF(MIN($AH$2:$AH$28)=AI2,AG2&"; "&AJ3,AG2&"; "&AJ3)))) -> 
A3: 0.5 | B3: No additional authorization required for travel with BTA. | C3: Aucune autorisation supplémentaire nécessaire pour voyage avec AGV. | E3: 1 | F3: Events Delegation Level | G3: =IF(AND(Activity_is_Event,NOT(Event_Total_Cost=0),SUM(G4:G7)=0),5,MAX(G4:G7)) -> 0 | I3: 11 | J3: Travel Delegation Level | K3: =IF(Travel_Expenses=Yes_Select, IF(AND(NOT(Travel_Total_Cost=0),OR(Travel_Type=Travel_Local_Select,AND(Travel_Type=Travel_International_Select,Travel_On_Plan=Yes_Select))), 0, IF(AND(SUM(K4:K16)=0,NOT(Travel_Total_Cost=0)),5,MAX(K4:K16))), 0) -> 0 | M3: 18 | N3: Hospitality Delegation Level | O3: =IF(Hospitality,IF(AND(SUM(O5:O20)=0,NOT(Hospitality_Total_Cost=0)),5,IF(Activity_is_Event,MAX(MAX(O5:O15),MIN(O17:O20)),MAX(MAX(O5:O15),MIN(O16:O20)))),0) -> 0 | Q3: 31 | R3: Conference Delegation Level | S3: =IF(Conference,MAX(S4:S17),0) -> 0 | U3: 34 | V3: Other Costs Delegation Level | W3: =IF(NOT(Other_Total_Cost=0),1,0) -> 0 | AB3: 3 | AC3: the total departmental cost for a single event is exceeding $5,000 and up to $25,000 | AD3: les frais pour un seul et même événement s'élèvent à plus de 5 000 $ jusqu'à 25 000 $ | AF3: =IF(G5=Event_Delegation_Level,AC3,"") -> the total departmental cost for a single event is exceeding $5,000 and up to $25,000 | AG3: =IF(G5=Event_Delegation_Level,AD3,"") -> les frais pour un seul et même événement s'élèvent à plus de 5 000 $ jusqu'à 25 000 $ | AH3: =IF(AF3="",AH2,AH2+1) -> 2
A4: 1 | B4: Director | C4: Directeur | E4: 2 | F4: More than $50,000 | G4: =IF(AND(Activity_is_Event,(Event_Total_Cost>50000)),5,0) -> 0 | I4: 13 | J4: International not on plan | K4: =IF(AND(Travel_Type=Travel_International_Select,NOT(Travel_On_Plan=Yes_Select)), IF(OR(Approving_Entity=Labour_Select,Approving_Entity=ServCan_Select), 4, 3.5), 0) -> 0 | M4: 18.5 | N4: Hospitality Delegation Event Level | O4: =IF(Hospitality,IF(AND(SUM(O5:O20)=0,NOT(Hospitality_Total_Cost=0)),5,MAX(MAX(O5:O15),2)),0) -> 0 | Q4: 33.2 | R4: ADM in Conference | S4: =IF(Conference_ADM_Attend=Yes_Select,4,0) -> 0 | AB4: 4 | AC4: the total departmental cost for a single event is $5,000 and less | AD4: les frais pour un seul et même événement s'élèvent à 5 000 $ et moins | AF4: =IF(G6=Event_Delegation_Level,AC4,"") -> the total departmental cost for a single event is $5,000 and less | AG4: =IF(G6=Event_Delegation_Level,AD4,"") -> les frais pour un seul et même événement s'élèvent à 5 000 $ et moins | AH4: =IF(AF4="",AH3,AH3+1) -> 3
A5: 2 | B5: Director General | C5: Directeur Général | E5: 3 | F5: More than $25,000 to $50,000 | G5: =IF(AND(Activity_is_Event,(Event_Total_Cost>25000),(Event_Total_Cost<=50000)),4,0) -> 0 | I5: 14 | J5: Domestic Travel | K5: =IF(Travel_Type=Travel_Domestic_Select,2,0) -> 0 | M5: 19 | N5: More = than $10,000 | O5: =IF((Hospitality_Total_Cost>10000),5,0) -> 0 | Q5: 33.3 | R5: DM in Conference | S5: =IF(Conference_DM_Attend=Yes_Select,4.1, 0) -> 0 | AB5: 5 | AC5: the total departmental cost for a single event is $1,500 and less without any travel charges or conference fees | AD5: les frais pour un seul et même événement s'élèvent à 1 500 $ et moins sans frais de voyage ou de conférence | AF5: =IF(G7=Event_Delegation_Level,AC5,"") -> the total departmental cost for a single event is $1,500 and less without any travel charges or conference fees | AG5: =IF(G7=Event_Delegation_Level,AD5,"") -> les frais pour un seul et même événement s'élèvent à 1 500 $ et moins sans frais de voyage ou de conférence | AH5: 4
A6: 3 | B6: Assistant Deputy Minister | C6: Sous-ministre adjoint | E6: 4 | F6: More than $15,000 to $25,000 | G6: =IF(AND(Activity_is_Event,Event_Total_Cost>15000,Event_Total_Cost<=25000),3,0) -> 0 | I6: 15.9 | J6: DG a Traveller | K6: =IF(DG_A_Traveller=Yes_Select,3,0) -> 0 | M6: 20 | N6: More = than $3,000 to $10,000 | O6: =IF(AND((Hospitality_Total_Cost>3000),(Hospitality_Total_Cost<=10000)),4,0) -> 0 | Q6: 33.5 | R6: Sponsorship of a conference | S6: =IF(Conference_Sponsorship=Yes_Select, IF(Conference_DM_Attend=Yes_Select,4.1,4),0) -> 0 | AB6: 6 | AC6: the Director General is a participant of the hospitality event | AD6: le directeur général est un participant à l'événement d'accueil | AF6: =IF(G25=Event_Delegation_Level,AC6,"") -> the Director General is a participant of the hospitality event | AG6: =IF(G25=Event_Delegation_Level,AD6,"") -> le directeur général est un participant à l'événement d'accueil | AH6: 5
A7: 3.5 | B7: SADM SSPB & CFO | C7: SMA PSS & DPF | E7: 5 | F7: Less than or equal $15,000 | G7: =IF(AND(Activity_is_Event,Event_Total_Cost>0,Event_Total_Cost<=15000),2,0) -> 0 | I7: 16 | J7: ADM a Traveller | K7: =IF(ADM_A_Traveller=Yes_Select,4,0) -> 0 | M7: 20.1 | N7: More = than $2,000 to $3,000 | O7: =IF(AND((Hospitality_Total_Cost>2000),(Hospitality_Total_Cost<=3000)),3,0) -> 0 | Q7: 2 | R7: More than $50,000 | S7: =IF(AND(Conference,(Conference_Total_Cost>50000)),5,0) -> 0 | AB7: 12 | AC7: the international travel is part of the approved International Travel Plan | AD7: le voyage international fait partie du plan des voyages internationaux approuvé | AF7: =IF(#REF!=Event_Delegation_Level,AC7,"") ->  | AG7: =IF(#REF!=Event_Delegation_Level,AD7,"") -> 
A8: 3.7 | B8: Assistant Deputy Minister and CFO | C8: Sous-ministre adjoint et DPF | I8: 17 | J8: DM a Traveller | K8: =IF(DM_A_Traveller=Yes_Select,4.1,0) -> 0 | M8: 20.2 | N8: More = than $1,000 to $2,000 | O8: =IF(AND((Hospitality_Total_Cost>1000),(Hospitality_Total_Cost<=2000)),2,0) -> 0 | Q8: 3 | R8: More than $25,000 to $50,000 | S8: =IF(AND(Conference,Conference_Total_Cost>25000,Conference_Total_Cost<=50000),4,0) -> 0 | AB8: 13 | AC8: the international travel is not part of the approved International Travel Plan | AD8: le voyage international ne fait pas partie du plan des voyages internationaux approuvé | AF8: =IF(K4=Event_Delegation_Level,AC8,"") -> the international travel is not part of the approved International Travel Plan | AG8: =IF(K4=Event_Delegation_Level,AD8,"") -> le voyage international ne fait pas partie du plan des voyages internationaux approuvé | AI8: =IF(AF8="",AI9,IF(MAX($AH$2:$AH$28)=1,(AF8)&".",IF(AI9=" ","and "&AF8&".",IF(MIN($AH$2:$AH$28)=AH8,AF8&"; "&AI9,AF8&"; "&AI9)))) ->  | AJ8: =IF(AG8="",AJ9,IF(MAX($AH$2:$AH$28)=1,(AG8)&".",IF(AJ9=" ","et "&AG8&".",IF(MIN($AH$2:$AH$28)=AI8,AG8&"; "&AJ9,AG8&"; "&AJ9)))) -> 
A9: 3.9 | B9: Chief Operating Officer | C9: Chef de l'exploitation | M9: 21 | N9: Less or equal than $1,000 | O9: =IF(AND(((Hospitality_Total_Cost>0)),(Hospitality_Total_Cost<=1000)),1,0) -> 0 | Q9: 4 | R9: Less than or equal $25,000 | S9: =IF(AND(NOT(Conference_Cost=0),Conference,Conference_Total_Cost<=25000),3,0) -> 0 | AB9: 14 | AC9: there is domestic travel | AD9: il y a des voyages domestiques | AF9: =IF(K5=Event_Delegation_Level,AC9,"") -> there is domestic travel | AG9: =IF(K5=Event_Delegation_Level,AD9,"") -> il y a des voyages domestiques
A10: 4 | B10: =IF(Approving_Entity=ServCan_Select,"Chief Operating Officer","Deputy Minister") -> Deputy Minister | C10: =IF(Approving_Entity=ServCan_Select,"Chef de l'exploitation","Sous-ministre") -> Sous-ministre | M10: 22 | N10: Over Standard Cost | O10: =IF(SUM(Meals_Exceeding_Standard)>0,4,0) -> 0 | AB10: 15.9 | AC10: the Director General is a traveller | AD10: le directeur général est un voyageur | AF10: =IF(K6=Event_Delegation_Level,AC10,"") -> the Director General is a traveller | AG10: =IF(K6=Event_Delegation_Level,AD10,"") -> le directeur général est un voyageur
A11: 4.1 | B11: Chief Financial Officer | C11: Dirigeant principal des finances | M11: 23 | N11: Over Maximum Cost | O11: =IF(SUM(Meals_Exceeding_Maximum)>0,4,0) -> 0 | AB11: 16 | AC11: the Assistant Deputy Minister is a traveller | AD11: le sous-ministre adjoint est un voyageur | AF11: =IF(K7=Event_Delegation_Level,AC11,"") -> the Assistant Deputy Minister is a traveller | AG11: =IF(K7=Event_Delegation_Level,AD11,"") -> le sous-ministre adjoint est un voyageur
A12: 4.3 | B12: =IF(Approving_Entity=ServCan_Select,"Chief Operating Officer","Deputy Minister") & " and CFO" -> Deputy Minister and CFO | C12: =IF(Approving_Entity=ServCan_Select,"Chef de l'exploitation","Sous-ministre") & " et DPF" -> Sous-ministre et DPF | M12: 24 | N12: Hospitality in the residence | O12: =IF(Hospitality_In_Residence=Yes_Select,4,0) -> 0 | AB12: 17 | AC12: the Deputy Minister is a traveller | AD12: le sous-ministre est un voyageur | AF12: =IF(K8=Event_Delegation_Level,AC12,"") -> the Deputy Minister is a traveller | AG12: =IF(K8=Event_Delegation_Level,AD12,"") -> le sous-ministre est un voyageur
A13: 4.5 | B13: Chief financial Officer for the Deputy Minister | C13: Dirigeant principal des finances pour Sous-ministre | M13: 25 | N13: Exceptional Hospitality | O13: =IF(Hospitality_Other_Exceptional>0,4,0) -> 0 | AB13: 19 | AC13: the hospitality costs are exceeding $5,000 | AD13: les coûts d'accueil s'élèvent à plus de 5 000 $ | AF13: =IF(O5=Event_Delegation_Level,AC13,"") -> the hospitality costs are exceeding $5,000 | AG13: =IF(O5=Event_Delegation_Level,AD13,"") -> les coûts d'accueil s'élèvent à plus de 5 000 $
A14: 5 | B14: Minister | C14: Ministre | M14: 26 | N14: Alcohol | O14: =IF((Hospitality_Alcohol = Yes_Select),5,0) -> 0 | AB14: 20 | AC14: the hospitality costs are exceeding $1,500 and up to $5,000 | AD14: les coûts d'accueil s'élèvent à plus de 1 500 $ jusqu'à 5 000 $ | AF14: =IF(O6=Event_Delegation_Level,AC14,"") -> the hospitality costs are exceeding $1,500 and up to $5,000 | AG14: =IF(O6=Event_Delegation_Level,AD14,"") -> les coûts d'accueil s'élèvent à plus de 1 500 $ jusqu'à 5 000 $
M15: 27 | N15: Hospitality given to a spouse | O15: =IF(Exc_Spouse_Hospitality=Yes_Select,4,0) -> 0 | AB15: 21 | AC15: the hospitality costs are $1,500 and less | AD15: les coûts d'accueil s'élèvent à 1 500 $ et moins | AF15: =IF(O9=Event_Delegation_Level,AC15,"") -> the hospitality costs are $1,500 and less | AG15: =IF(O9=Event_Delegation_Level,AD15,"") -> les coûts d'accueil s'élèvent à 1 500 $ et moins
M16: 27.5 | N16: DIR in Hospitality | O16: =IF(Hospitality_DIR_Participant=Yes_Select,TRUE,IF(MAX(O5:O15)<=1,IF(Hospitality_Total_Cost<=1000,1,FALSE),FALSE)) -> 1 | AB16: 22 | AC16: the hospitality cost per person is over the standard cost | AD16: le coût d'accueil par personne excède le coût standard | AF16: the hospitality cost per person is over the standard cost | AG16: le coût d'accueil par personne excède le coût standard
M17: 28 | N17: DG in Hospitality | O17: =IF(Hospitality_DG_Participant=Yes_Select,TRUE,IF(MAX(O5:O15)<=1,IF(Hospitality_Total_Cost<=2000,2,FALSE),FALSE)) -> 2 | AB17: 23 | AC17: the hospitality cost per person is over the maximum cost | AD17: le coût d'accueil par personne excède le coût maximum | AF17: the hospitality cost per person is over the maximum cost | AG17: le coût d'accueil par personne excède le coût maximum
M18: 29 | N18: ADM in Hospitality | O18: =IF(Hospitality_ADM_Participant=Yes_Select,TRUE,IF(MAX(O5:O15)<=1,IF(Hospitality_Total_Cost<=3000,3,FALSE),FALSE)) -> 3 | AB18: 24 | AC18: the hospitality is extend at the residence of a public servant | AD18: l'accueil est offerte à la résidence d'un fonctionnaire | AF18: the hospitality is extend at the residence of a public servant | AG18: l'accueil est offerte à la résidence d'un fonctionnaire
M19: 29.5 | N19: CFO in Hospitality | O19: =IF(Hospitality_Total_Cost<=10000, IF(Hospitality_CFO_Participant=Yes_Select,IF(Hospitality_DM_Participant=Yes_Select,4.1,4),IF(Hospitality_DM_Participant=Yes_Select,4.1,4.1)), FALSE) -> 4.1 | AB19: 25 | AC19: the hospitality includes exceptional form of hospitality | AD19: l'accueil inclus des formes exceptionnelles d'accueil | AF19: the hospitality includes exceptional form of hospitality | AG19: l'accueil inclus des formes exceptionnelles d'accueil
M20: 30 | N20: DM in Hospitality | O20: =IF(Hospitality_DM_Participant=Yes_Select, TRUE, IF(Hospitality_Total_Cost<=10000,IF(OR(Hospitality_CFO_Participant=Yes_Select,SUM(O10,O11,Hospitality_Restrictions,O13,O15,Hospitality_Total_Cost>3000)>0),4,4.1),FALSE)) -> 4.1 | AB20: 26 | AC20: the hospitality includes alcohol | AD20: l'accueil inclus de l'alcool | AF20: the hospitality includes alcohol | AG20: l'accueil inclus de l'alcool
AB21: 27 | AC21: the hospitality is given to a spouse or to a person accompanying the event participant | AD21: l'accueil est donné à un époux ou une personne accompagnant le participant à l'événement | AF21: the hospitality is given to a spouse or to a person accompanying the event participant | AG21: l'accueil est donné à un époux ou une personne accompagnant le participant à l'événement
AB22: 28 | AC22: the Director General is a participant of the hospitality event | AD22: le directeur général est un participant à l'événement d'accueil | AF22: =IF(O17=Event_Delegation_Level,AC22,"") ->  | AG22: =IF(O17=Event_Delegation_Level,AD22,"") -> 
AB23: 29 | AC23: the Assistant Deputy Minister is a participant of the hospitality event | AD23: le sous-ministre adjoint est un participant à l'événement d'accueil | AF23: =IF(O27=Event_Delegation_Level,AC23,"") -> the Assistant Deputy Minister is a participant of the hospitality event | AG23: =IF(O27=Event_Delegation_Level,AD23,"") -> le sous-ministre adjoint est un participant à l'événement d'accueil
N24: They can't approve FALSE | O24: =IF(Hospitality_DIR_Participant=Yes_Select,TRUE,IF(Hospitality_Total_Cost<=1000,1,FALSE)) -> 1 | AB24: 30 | AC24: the Deputy Minister is a participant of the hospitality event | AD24: le sous-ministre est un participant à l'événement d'accueil | AF24: =IF(O29=Event_Delegation_Level,AC24,"") -> the Deputy Minister is a participant of the hospitality event | AG24: =IF(O29=Event_Delegation_Level,AD24,"") -> le sous-ministre est un participant à l'événement d'accueil
N25: They are going | O25: TRUE | AB25: 34 | AC25: other Costs | AD25: autres coûts | AF25: =IF(W3=Event_Delegation_Level,AC25,"") -> other Costs | AG25: =IF(W3=Event_Delegation_Level,AD25,"") -> autres coûts
N26: Approval level | O26: Number | AB26: 33.2 | AC26: the Assistant Deputy Minister is part of the conference | AD26: le sous-ministre adjoint est un participant à la conférence | AF26: =IF(S4=Event_Delegation_Level,AC26,"") -> the Assistant Deputy Minister is part of the conference | AG26: =IF(S4=Event_Delegation_Level,AD26,"") -> le sous-ministre adjoint est un participant à la conférence
AB27: 33.3 | AC27: the Deputy Minister is part of the conference | AD27: le sous-ministre est un participant à la conférence | AF27: =IF(S5=Event_Delegation_Level,AC27,"") -> the Deputy Minister is part of the conference | AG27: =IF(S5=Event_Delegation_Level,AD27,"") -> le sous-ministre est un participant à la conférence
AB28: 33.5 | AC28: the department sponsors a conference | AD28: le ministère parraine une conférence | AF28: =IF(G8=Event_Delegation_Level,AC28,"") -> the department sponsors a conference | AG28: =IF(G8=Event_Delegation_Level,AD28,"") -> le ministère parraine une conférence

Sheet System (hidden)
B1: Document to unhide | C1: Unhide documents when … | D1: Password | E1: Language Drop Down | H1: Travel Drop Down | I1: Travel DD En | J1: Travel DD FR | K1: Questions Drop Down | L1: Questions DD EN | M1: Question DD FR | N1: Conference Drop Down | O1: Conference DD EN | P1: Conference DD FR | Q1: Paid by Drop Down | R1: Paid by DD EN | S1: Paid by DD FR | T1: Entity Drop Down | U1: Entity DD EN | V1: Entity DD FR | W1: HyperLink Label | X1: Hyperlink EN | Y1: Hyperlink FR | Z1: Date Range | AB1: THCEE Template Version | AC1: V 8-49 | AE1: Tool | AF1: CurrentVersion | AG1: Publishing Date | AH1: Title | AI1: Item Type | AJ1: Path | AK1: Modified | AL1: Modified By
A2: Sheet1 | B2: Questionnaire | C2: TRUE | D2: boum! | E2: English | W2: Travel | X2: http://iservice.prv/eng/finance/aic/hospitality/docs/Travel_Hospitality_Conferences_Event_20171030.pdf#page=4 | Y2: http://iservice.prv/fra/finance/ici/frais_accueil/docs/politique_min_voyages_accueil_conferences_evenements.pdf#page=5 | Z2: =YEAR(NOW()) -> 2021 | AB2: Current Version | AC2: =AC1=VLOOKUP("THCEE",Table_owssvr[[#All],[Tool]:[CurrentVersion]],2,FALSE) -> FALSE | AE2: Journal Voucher | AF2: 3 | AG2: 2018-07-26 | AH2: Excel Template | AI2: Item | AJ2: grp/CR-AR/Lists/ToolCurrentVersion | AK2: 43308.34993 | AL2: Chavez Vibanco, Alejandra A [NC]
A3: Sheet2 | B3: Travel DATA | C3: FALSE | E3: Français | H3: =IF(Language=French_Select,J3,I3) -> International | I3: International | J3: International | K3: =IF(Language=French_Select,M3,L3) -> Oui | L3: Yes | M3: Oui | N3: =IF(Language=French_Select,P3,O3) -> Formation | O3: Maintain or acquire skills and knowledge (considered training) | P3: Formation | Q3: =IF(Language=French_Select,S3,R3) -> Un seul centre financier | R3: Only one fund centre | S3: Un seul centre financier | T3: =IF(Language=French_Select,V3,U3) -> EDSC | U3: ESDC | V3: EDSC | W3: Hospitality | X3: http://iservice.prv/eng/finance/aic/hospitality/docs/Travel_Hospitality_Conferences_Event_20171030.pdf#page=5 | Y3: http://iservice.prv/fra/finance/ici/frais_accueil/docs/politique_min_voyages_accueil_conferences_evenements.pdf#page=8 | Z3: =YEAR(NOW())+1 -> 2022 | AE3: THCEE | AF3: V 8-43 | AG3: 2018-10-30 | AH3: Excel Template | AI3: Item | AJ3: grp/CR-AR/Lists/ToolCurrentVersion | AK3: 43768.64068 | AL3: Matson, Andy A [NC]
A4: Sheet8 | B4: System | C4: FALSE | H4: =IF(Language=French_Select,J4,I4) -> Domestique | I4: Domestic | J4: Domestique | K4: =IF(Language=French_Select,M4,L4) -> Non | L4: No | M4: Non | N4: =IF(Language=French_Select,P4,O4) -> Représenter le gouvernement fédéral à titre officiel lors d'une conférence | O4: Represent the department in an official capacity OR Conference sponsorship/cost sharing | P4: Représenter le gouvernement fédéral à titre officiel lors d'une conférence | Q4: =IF(Language=French_Select,S4,R4) -> Plusieurs centres finaciers | R4: Multiple fund centres | S4: Plusieurs centres finaciers | T4: =IF(Language=French_Select,V4,U4) -> Programme du travail | U4: Labour | V4: Programme du travail | Z4: =YEAR(NOW())+2 -> 2023
A5: Sheet7 | B5: Authorisation - Autorisation | C5: =Questionnaire!D248 -> FALSE | H5: =IF(Language=French_Select,J5,I5) -> Locale (voir définition - article 4.2.5 ) | I5: Local (see definition -article 4.2.5 ) | J5: Locale (voir définition - article 4.2.5 ) | T5: =IF(Language=French_Select,V5,U5) -> Service Canada | U5: Service Canada | V5: Service Canada | Z5: =YEAR(NOW())-1 -> 2020
A6: Sheet10 | B6: Hospitality - Accueil | C6: =IF(AND(Questionnaire!D248,Hospitality,NOT(Hospitality_Total_Cost=0)),TRUE,FALSE) -> FALSE
A7: Sheet11 | B7: Hospitality - Configuration | C7: FALSE
A8: Sheet12 | B8: Hospitality - System | C8: FALSE
A9: Sheet13 | B9: Hospitality - DATA | C9: FALSE
A10: Sheet14 | B10: Travel - System | C10: FALSE
A11: Sheet19 | B11: Delegation | C11: FALSE
A12: Sheet6 | B12: Travel Plan - Plan de voyage | C12: =IF(AND(Questionnaire!D248,Travel_Expenses=Yes_Select,NOT(Travel_Total_Cost=0)),TRUE,FALSE) -> FALSE
A13: Sheet3 | B13: Travel plan Template | C13: FALSE
A14: Sheet5 | B14: Travel - Temp Data | C14: FALSE
A15: Sheet4 | B15: Note EDSC-SC | C15: FALSE | D15: =AND(Questionnaire!E248,OR(Approving_Entity=ESDC_Select,Approving_Entity=ServCan_Select)) -> FALSE
A16: Sheet9 | B16: Memo ESDC-SC | C16: FALSE | D16: =AND(Questionnaire!E248,OR(Approving_Entity=ESDC_Select,Approving_Entity=ServCan_Select)) -> FALSE
A17: Sheet15 | B17: Memo Labor | C17: FALSE | D17: =AND(Questionnaire!E248,OR(Approving_Entity=Labour_Select)) -> FALSE
A18: Sheet16 | B18: Note Travail | C18: FALSE | D18: =AND(Questionnaire!E248,OR(Approving_Entity=Labour_Select)) -> FALSE
A19: Sheet17 | B19: Memo - System | C19: FALSE
A20: Sheet18 | B20: System - Messages | C20: FALSE
A21: Sheet20 | B21: Memo CheckList (EN) | C21: =Questionnaire!D251 -> FALSE
A22: Sheet21 | B22: Memo CheckList (FR) | C22: =Questionnaire!D251 -> FALSE

Sheet Questionnaire
G1: Yes | Z1: =IF(Language=French_Select,AE6,AD6) -> Vous devez remplir les champs indiqués par | AA1: Ü | AD1: Changed or new need to be translated
J2: =COUNTIF(K:K,"="&TRUE)=0 -> FALSE | M2: =IF(Language=French_Select,AE2,AD2) -> Directive sur les dépenses de voyages, d'accueil, de conférences et d'événements (DVACÉ) | AD2: Directive on Travel, Hospitality, Conference and Event Expenditures approvals (THCEE) | AE2: Directive sur les dépenses de voyages, d'accueil, de conférences et d'événements (DVACÉ)
A5: Type | B5: ID | C5: Evaluate | D5: Display Row when … | E5: Clear Field on Hide | F5: Value to clear | G5: Modify Display | H5: Previous Display Value | I5: Criteria 1 (Show) | J5: Criteria 2 (Hidden) | K5: Missing Mandatory | N5: =IF(Language=French_Select,AE5,AD5) -> S V P N E P A S I M P R I M E R | P5: =IF(Language=French_Select,"Sélectionner votre langue -->","Select Language -->") -> Sélectionner votre langue --> | Z5: Français | AD5: P L E A S E D O N O T P R I N T | AE5: S V P N E P A S I M P R I M E R
AD6: You must complete all fields indicated by | AE6: Vous devez remplir les champs indiqués par
M7: =IF(Language=French_Select,AE7,AD7) -> Informations Générales | AD7: Basic Information | AE7: Informations Générales
A9: Q | D9: TRUE | E9: Yes | G9: Yes | H9: TRUE | I9: =Q9 -> 0 | K9: =IF(AND(D9,I9=0),TRUE,FALSE) -> TRUE | M9: Ü | N9: =IF(Language=French_Select,AE9,AD9) -> S'agit-il d'une participation à une conférence? | AD9: Is there conference participation? | AE9: S'agit-il d'une participation à une conférence? | AH9: =IF(Q9=Yes_Select_FR,Yes_Select_EN,IF(Q9=No_Select_FR,No_Select_EN,"")) ->  | AI9: =IF(Q9=Yes_Select_EN,Yes_Select_FR,IF(Q9=No_Select_EN,No_Select_FR,"")) -> 
C10: Yes | D10: =D9 -> TRUE | H10: TRUE
C11: Yes | D11: =D10 -> TRUE | H11: TRUE | N11: =IF(Language=French_Select,AE11,AD11) -> Les congrès, conventions ou séminaires ou autre rassemblement formel normalement organisés par de tierces parties ne faisant pas partie du gouvernement et dont les participants débattent du statut d’une discipline ou en sont informés. Les frais de participation aux conférences, les frais de ceux qui participent directement à une conférence ou qui représentent le ministère dans une capacité officielle (p. ex., kiosque d'exposants, commanditaires, etc.) doivent être inclus. | AD11: Congress, convention, seminar, symposium or other formal gathering, which are usually organized by a third party external to government, where the participants debate or are informed of the status of a discipline. Fees for official conference participation (e.g. exhibitor booth, co-sponsor, official representation) are to be included. | AE11: Les congrès, conventions ou séminaires ou autre rassemblement formel normalement organisés par de tierces parties ne faisant pas partie du gouvernement et dont les participants débattent du statut d’une discipline ou en sont informés. Les frais de participation aux conférences, les frais de ceux qui participent directement à une conférence ou qui représentent le ministère dans une capacité officielle (p. ex., kiosque d'exposants, commanditaires, etc.) doivent être inclus.
C12: Yes | D12: =D11 -> TRUE | H12: TRUE
A13: Q | C13: Yes | D13: =Conference_Included=Yes_Select -> FALSE | E13: Yes | G13: Yes | H13: FALSE | I13: =IF(btnConfParticipation=1,Yes_Select,No_Select) -> Non | J13: 0 | K13: =IF(AND(Conference_Included=Yes_Select,J13=0),TRUE,FALSE) -> FALSE | M13: Ü | N13: =IF(Language=French_Select,AE13,AD13) -> a. Pour obtenir des renseignements sur un produit ou un service | AD13: a. To gain information on a product or service | AE13: a. Pour obtenir des renseignements sur un produit ou un service | AH13: =IF(Q13=Yes_Select_FR,Yes_Select_EN,IF(Q13=No_Select_FR,No_Select_EN,"")) ->  | AI13: =IF(Q13=Yes_Select_EN,Yes_Select_FR,IF(Q13=No_Select_EN,No_Select_FR,"")) -> 
C14: Yes | D14: FALSE | H14: FALSE
A15: Q | C15: Yes | D15: FALSE | E15: Yes | H15: FALSE | I15: =IF(btnConfParticipation=2,Yes_Select,No_Select) -> Non | M15: Ü | N15: =IF(Language=French_Select,AE15,AD15) -> b. Pour promouvoir un programme/service ministériel ou mobiliser des intervenants | AD15: b. To promote a Departmental program/service or to engage stakeholders | AE15: b. Pour promouvoir un programme/service ministériel ou mobiliser des intervenants | AH15: =IF(Q15=Yes_Select_FR,Yes_Select_EN,IF(Q15=No_Select_FR,No_Select_EN,"")) ->  | AI15: =IF(Q15=Yes_Select_EN,Yes_Select_FR,IF(Q15=No_Select_EN,No_Select_FR,"")) -> 
C16: Yes | D16: FALSE | H16: FALSE
A17: Q | C17: Yes | D17: FALSE | E17: Yes | H17: FALSE | I17: =IF(btnConfParticipation=3,Yes_Select,No_Select) -> Non | M17: Ü | N17: =IF(Language=French_Select,AE17,AD17) -> c. Pour soutenir l'apprentissage ou le perfectionnement professionel | AD17: c. To support learning or professional development | AE17: c. Pour soutenir l'apprentissage ou le perfectionnement professionel | AH17: =IF(Q17=Yes_Select_FR,Yes_Select_EN,IF(Q17=No_Select_FR,No_Select_EN,"")) ->  | AI17: =IF(Q17=Yes_Select_EN,Yes_Select_FR,IF(Q17=No_Select_EN,No_Select_FR,"")) -> 
C18: Yes | D18: FALSE | H18: FALSE
A19: A | C19: Yes | D19: =AND(btnConfParticipation=3,D17) -> FALSE | H19: FALSE | K19: - | M19: C | N19: =IF(Language=French_Select,AE19,AD19) -> Cliquez sur le lien pour rechercher votre conférence et répondre aux questions suivantes | AD19: Click on the link to look for your conference and answer the following question | AE19: Cliquez sur le lien pour rechercher votre conférence et répondre aux questions suivantes
C20: Yes | D20: =D19 -> FALSE | H20: FALSE
A21: Q | C21: Yes | D21: FALSE | G21: Yes | H21: FALSE | J21: 0 | K21: =IF(AND(D21,J21=0),TRUE,FALSE) -> FALSE | M21: Ü | N21: =IF(Language=French_Select,AE21,AD21) -> Selon la liste ministérielle de conférence vs formation, cette conférence est : | AD21: As per the Departmental Conference vs Training List, this conference is: | AE21: Selon la liste ministérielle de conférence vs formation, cette conférence est : | AH21: =IF(Q21=Yes_Select_FR,Yes_Select_EN,IF(Q21=No_Select_FR,No_Select_EN,"")) ->  | AI21: =IF(Q21=Yes_Select_EN,Yes_Select_FR,IF(Q21=No_Select_EN,No_Select_FR,"")) -> 
A22: Q | C22: Yes | D22: FALSE | H22: FALSE | I22: =IF(btnConfList=1,Yes_Select,No_Select) -> Non | N22: =IF(Language=French_Select,AE22,AD22) -> 1. Une formation | AD22: 1. A training | AE22: 1. Une formation
C23: Yes | D23: FALSE | H23: FALSE
A24: Q | C24: Yes | D24: FALSE | H24: FALSE | I24: =IF(btnConfList=2,Yes_Select,No_Select) -> Non | N24: =IF(Language=French_Select,AE24,AD24) -> 2. Un Événement | AD24: 2. An Event | AE24: 2. Un Événement
C25: Yes | D25: FALSE | H25: FALSE
A26: Q | C26: Yes | D26: FALSE | H26: FALSE | I26: =IF(btnConfList=3,Yes_Select,No_Select) -> Non | N26: =IF(Language=French_Select,AE26,AD26) -> 3. Absente de la liste | AD26: 3 Not included in the list | AE26: 3. Absente de la liste
C27: Yes | D27: FALSE | H27: FALSE
C28: Yes | D28: =Conference_Included=No_Select -> FALSE | G28: Yes | H28: FALSE | J28: 0 | K28: =IF(AND(D28,J28=0),TRUE,FALSE) -> FALSE | M28: Ü | N28: =IF(Language=French_Select,AE28,AD28) -> Est-ce que votre activité est considérée comme une de ces cinq types d'Événements? | AD28: Is your activity considered one of these five type of events? | AE28: Est-ce que votre activité est considérée comme une de ces cinq types d'Événements?
C29: Yes | D29: FALSE | H29: FALSE
A30: Q | C30: Yes | D30: =D28 -> FALSE | E30: Yes | H30: FALSE | I30: =IF(btnTypeEventOper=1,Yes_Select,No_Select) -> Non | N30: =IF(Language=French_Select,AE30,AD30) -> a. Journée de réflexion de la direction/du personnel | AD30: a. Management/Staff Retreat | AE30: a. Journée de réflexion de la direction/du personnel | AH30: =IF(Q30=Yes_Select_FR,Yes_Select_EN,IF(Q30=No_Select_FR,No_Select_EN,"")) ->  | AI30: =IF(Q30=Yes_Select_EN,Yes_Select_FR,IF(Q30=No_Select_EN,No_Select_FR,"")) -> 
C31: Yes | D31: =D30 -> FALSE | H31: FALSE
A32: Q | C32: Yes | D32: =D31 -> FALSE | E32: Yes | H32: FALSE | I32: =IF(btnTypeEventOper=2,Yes_Select,No_Select) -> Non | N32: =IF(Language=French_Select,AE32,AD32) -> b. Cérémonie de remise de prix et de reconnaissance | AD32: b. Award and Recognition ceremony | AE32: b. Cérémonie de remise de prix et de reconnaissance | AH32: =IF(Q32=Yes_Select_FR,Yes_Select_EN,IF(Q32=No_Select_FR,No_Select_EN,"")) ->  | AI32: =IF(Q32=Yes_Select_EN,Yes_Select_FR,IF(Q32=No_Select_EN,No_Select_FR,"")) -> 
C33: Yes | D33: FALSE | H33: FALSE
A34: Q | C34: Yes | D34: FALSE | E34: Yes | H34: FALSE | I34: =IF(btnTypeEventOper=3,Yes_Select,No_Select) -> Non | N34: =IF(Language=French_Select,AE34,AD34) -> c. Célébration ministérielle/gouvernementale | AD34: c. Departmental/Governmental Celebration | AE34: c. Célébration ministérielle/gouvernementale | AH34: =IF(Q34=Yes_Select_FR,Yes_Select_EN,IF(Q34=No_Select_FR,No_Select_EN,"")) ->  | AI34: =IF(Q34=Yes_Select_EN,Yes_Select_FR,IF(Q34=No_Select_EN,No_Select_FR,"")) -> 
C35: Yes | D35: FALSE | H35: FALSE
A36: Q | C36: Yes | D36: FALSE | H36: FALSE | I36: =IF(btnTypeEventOper=4,Yes_Select,No_Select) -> Non | N36: =IF(Language=French_Select,AE36,AD36) -> d. Toutes les réunions ou rassemblements de fonctionnaires, peu importe l’objet, qui se tiennent à l’extérieur de la zone | AD36: d. All meetings or gatherings of public servants, regardless of the purpose, that are held outside the headquarters area | AE36: d. Toutes les réunions ou rassemblements de fonctionnaires, peu importe l’objet, qui se tiennent à l’extérieur de la zone | AH36: =IF(Q36=Yes_Select_FR,Yes_Select_EN,IF(Q36=No_Select_FR,No_Select_EN,"")) ->  | AI36: =IF(Q36=Yes_Select_EN,Yes_Select_FR,IF(Q36=No_Select_EN,No_Select_FR,"")) -> 
C37: Yes | D37: FALSE | H37: FALSE | N37: =IF(Language=French_Select,AE37,AD37) -> d’affectation (rayon de 16 km) de la majorité des participants ministériels et pour lesquelles le ministère a le pouvoir discrétionnaire de choisir l’endroit et choisit de tenir l’activité dans un établissement non gouvernemental. | AD37: (16km radius) of the majority of the departmental participants and for which the department has the discretion to select the venue and chooses to hold the activity in a non-government facility. | AE37: d’affectation (rayon de 16 km) de la majorité des participants ministériels et pour lesquelles le ministère a le pouvoir discrétionnaire de choisir l’endroit et choisit de tenir l’activité dans un établissement non gouvernemental.
C38: Yes | D38: FALSE | H38: FALSE
A39: Q | C39: Yes | D39: FALSE | E39: Yes | H39: FALSE | I39: =IF(btnTypeEventOper=5,Yes_Select,No_Select) -> Non | N39: =IF(Language=French_Select,AE39,AD39) -> e. Autre activité non-opérationnelle | AD39: e. Other non-operational activity | AE39: e. Autre activité non-opérationnelle | AH39: =IF(Q39=Yes_Select_FR,Yes_Select_EN,IF(Q39=No_Select_FR,No_Select_EN,"")) ->  | AI39: =IF(Q39=Yes_Select_EN,Yes_Select_FR,IF(Q39=No_Select_EN,No_Select_FR,"")) -> 
C40: Yes | D40: =D39 -> FALSE | H40: FALSE
A41: Q | C41: Yes | D41: =D40 -> FALSE | E41: Yes | G41: Yes | H41: FALSE | N41: =IF(Language=French_Select,AE41,AD41) -> Ou est-ce que votre activité est une activité opérationnelle ou une formation? | AD41: Or is your activity considered an operational activity or training? | AE41: Ou est-ce que votre activité est une activité opérationnelle ou une formation?
C42: Yes | D42: =D41 -> FALSE | H42: FALSE
A43: Q | C43: Yes | D43: =D42 -> FALSE | H43: FALSE | I43: =IF(btnTypeEventOper=6,Yes_Select,No_Select) -> Non | N43: =IF(Language=French_Select,AE43,AD43) -> f. Activité opérationnelle | AD43: f. Operational Activity | AE43: f. Activité opérationnelle
C44: Yes | D44: FALSE | H44: FALSE | N44: =IF(Language=French_Select,AE44,AD44) -> Activité à l'appuie et prestation des programmes et services ministériels. Ces activités comprennent les services internes et, pour les personnes, toutes les activités réalisées dans l'exercise de leurs fonctions. | AD44: Activities in support and delivery of departmental programs and services. These activities include internal services and for individuals, all activities in performance of their assigned duties. | AE44: Activité à l'appuie et prestation des programmes et services ministériels. Ces activités comprennent les services internes et, pour les personnes, toutes les activités réalisées dans l'exercise de leurs fonctions.
C45: Yes | D45: FALSE | H45: FALSE
A46: Q | C46: Yes | D46: =D44 -> FALSE | H46: FALSE | I46: =IF(btnTypeEventOper=7,Yes_Select,No_Select) -> Non | N46: =IF(Language=French_Select,AE46,AD46) -> g. Formation | AD46: g. Training | AE46: g. Formation
C47: Yes | D47: FALSE | H47: FALSE
A48: Q | C48: Yes | D48: FALSE | H48: FALSE | I48: =IF(btnTypeEventOper=8,Yes_Select,No_Select) -> Non | N48: =IF(Language=French_Select,AE48,AD48) -> h. Autre | AD48: h. Other | AE48: h. Autre
C49: Yes | D49: =D48 -> FALSE | H49: FALSE
A50: A | C50: Yes | D50: =btnTypeEventOper=8 -> FALSE | H50: FALSE | K50: - | M50: C | N50: =IF(Language=French_Select,AE50,AD50) -> Veuillez contacter l'Équipe des politiques financières pour discuter de la nature de votre activité | AD50: Please contact the Financial Policy Team to discuss the nature of your activity | AE50: Veuillez contacter l'Équipe des politiques financières pour discuter de la nature de votre activité
C51: Yes | D51: =D50 -> FALSE | H51: FALSE
A52: Q | C52: Yes | D52: =AND(COUNTIF(K9:K48,"="&TRUE)=0,NOT(D50),OR(btnConfParticipation=2,AND(btnConfParticipation=3,btnConfList=1),btnTypeEventOper=6,btnTypeEventOper=7)) -> FALSE | E52: Yes | G52: Yes | H52: FALSE | I52: =Q52 -> 0 | K52: =IF(AND(D52,Hospitality_Expenses=0),TRUE,FALSE) -> FALSE | M52: Ü | N52: =IF(Language=French_Select,AE52,AD52) -> Est-ce que des frais d'accueil sont inclus dans votre activité? | S52: ? | AD52: Do you have any hospitality included in your activity? | AE52: Est-ce que des frais d'accueil sont inclus dans votre activité? | AH52: =IF(Q52=Yes_Select_FR,Yes_Select_EN,IF(Q52=No_Select_FR,No_Select_EN,"")) ->  | AI52: =IF(Q52=Yes_Select_EN,Yes_Select_FR,IF(Q52=No_Select_EN,No_Select_FR,"")) -> 
C53: Yes | D53: =D52 -> FALSE | H53: FALSE
A54: A | C54: Yes | D54: =AND(NOT(Activity_is_Event),OR(Conference,Training,btnTypeEventOper=6),COUNTIF(K9:K52,"="&TRUE)=0) -> FALSE | H54: FALSE | K54: - | M54: C | N54: =IF(Language=French_Select,AE54,AD54) -> Vous planifiez une activité opérationnelle, vous devez utiliser cet outil pour vos dépenses d'accueil ou de conférences. Cependant, vous avez l'option d'inclure toutes les dépenses qui pourraient être approuvées par d'autres moyens tels que SAP, SABA, etc. | AD54: You are planning an operational activity, you MUST use this tool for hospitality and conferences expenditures, however you have the option to enter all the expenditures that could otherwise be approved by other means like SAP, SABA, etc. | AE54: Vous planifiez une activité opérationnelle, vous devez utiliser cet outil pour vos dépenses d'accueil ou de conférences. Cependant, vous avez l'option d'inclure toutes les dépenses qui pourraient être approuvées par d'autres moyens tels que SAP, SABA, etc.
C55: Yes | D55: =D54 -> FALSE | H55: FALSE
A56: Q | C56: Yes | D56: =D55 -> FALSE | E56: Yes | G56: Yes | H56: FALSE | I56: =Q56 -> 0 | K56: =IF(AND(D56,UseTool=0),TRUE,FALSE) -> FALSE | M56: Ü | N56: =IF(Language=French_Select,AE56,AD56) -> Voulez-vous utiliser l'outil pour toutes les dépenses? | AD56: Do you want to use this tool to enter all your expenditures? | AE56: Voulez-vous utiliser l'outil pour toutes les dépenses? | AH56: =IF(Q56=Yes_Select_FR,Yes_Select_EN,IF(Q56=No_Select_FR,No_Select_EN,"")) ->  | AI56: =IF(Q56=Yes_Select_EN,Yes_Select_FR,IF(Q56=No_Select_EN,No_Select_FR,"")) -> 
C57: Yes | D57: =D56 -> FALSE | H57: FALSE
C58: Yes | D58: =AND(CompleteCriteria,OR(Activity_is_Event,Hospitality_Expenses=Yes_Select,UseTool=Yes_Select,Conference)) -> FALSE | H58: FALSE | J58: =AND(COUNTIF(K9:K56,"="&TRUE)=0,NOT(D50)) -> FALSE | K58: - | M58: =IF(Language=French_Select,AE58,AD58) -> Renseignements généraux | AD58: General Information | AE58: Renseignements généraux
C59: Yes | D59: =D58 -> FALSE | H59: FALSE
A60: Q | C60: Yes | D60: =D59 -> FALSE | G60: Yes | H60: FALSE | I60: =Q60 -> 0 | K60: =IF(AND(D60,Activity_Title=0),TRUE,FALSE) -> FALSE | M60: Ü | N60: =IF(Language=French_Select,AE60,AD60) -> Veuillez indiquer le titre de votre activité (aucun acronyme, max. 200 caractères) | AD60: Please provide the title of your activity (No acronyms, max. 200 characters) | AE60: Veuillez indiquer le titre de votre activité (aucun acronyme, max. 200 caractères)
C61: Yes | D61: =D60 -> FALSE | H61: FALSE
A62: Q | C62: Yes | D62: =D61 -> FALSE | H62: FALSE | I62: =Q62 -> 0 | K62: FALSE | M62: Ü | N62: =IF(Language=French_Select,AE62,AD62) -> Numéro WebCIMS (si connu - max. 40 caractères) | AD62: WebCIMS number (if known - Max. 40 characters) | AE62: Numéro WebCIMS (si connu - max. 40 caractères)
C63: Yes | D63: =D62 -> FALSE | H63: FALSE
A64: Q | C64: Yes | D64: =D62 -> FALSE | G64: Yes | H64: FALSE | I64: =Q64 -> 0 | K64: =IF(AND(D64,Purpose=0),TRUE,FALSE) -> FALSE | M64: Ü | N64: =IF(Language=French_Select,AE64,AD64) -> Indiquer la nature, le but et l'objectif de votre activité (Max. 2 000 caractères). De plus, - identifier les mesures prises pour vous assurer que les coûts estimés offrent le meilleur rapport qualité/prix; et - donner l'assurance que les dépenses de voyage, d'accueil, de conférences et d'Évenements sont nécessaires pour soutenir les activités opérationnelles, les objectives ou les priorités du ministère. | AD64: Provide the nature, purpose and objective of your activity (Max. 2,000 characters). Also, - identify how travel, hospitality, conference and Event costs were avoided or minimized; and - provide assurance that travel, hospitality, conference and Event expenditures are necessary to support the departmental operational activities, objectives or priorities. | AE64: Indiquer la nature, le but et l'objectif de votre activité (Max. 2 000 caractères). De plus, - identifier les mesures prises pour vous assurer que les coûts estimés offrent le meilleur rapport qualité/prix; et - donner l'assurance que les dépenses de voyage, d'accueil, de conférences et d'Évenements sont nécessaires pour soutenir les activités opérationnelles, les objectives ou les priorités du ministère.
C65: Yes | D65: =D64 -> FALSE | H65: FALSE | AF65: Day | AG65: Jour
C66: Yes | D66: =D64 -> FALSE | H66: FALSE | N66: =IF(Language=French_Select,AE66,AD66) -> Indiquer les dates de votre activité | Q66: =IF(Language=French_Select,AG65,AF65) -> Jour | R66: =IF(Language=French_Select,AG66,AF66) -> Mois | T66: =IF(Language=French_Select,AG67,AF67) -> Année | AD66: Provide the dates for your activity | AE66: Indiquer les dates de votre activité | AF66: Month | AG66: Mois
C67: Yes | D67: =D66 -> FALSE | H67: FALSE | AF67: Year | AG67: Année
A68: Q | C68: Yes | D68: =D66 -> FALSE | H68: FALSE | I68: =IF(OR(T68="",R68="",Q68="",ISERROR(DATE(T68,R68,Q68))),NOW(),DATE(T68,R68,Q68)) -> 2021-10-22T11:32:08.790 | J68: FALSE | P68: =IF(Language=French_Select,AG68,AF68) -> Du | AD68: Provide the dates for your activity | AE68: Indiquer les dates de votre activité | AF68: From | AG68: Du
C69: Yes | D69: =D68 -> FALSE | H69: FALSE
A70: Q | C70: Yes | D70: =D68 -> FALSE | H70: FALSE | I70: =IF(OR(T70="",R70="",Q70="",ISERROR(DATE(T70,R70,Q70))),Activity_From_Date,DATE(T70,R70,Q70)) -> 2021-10-22T11:32:08.790 | P70: =IF(Language=French_Select,AG70,AF70) -> Au | AF70: To | AG70: Au
C71: Yes | D71: =D70 -> FALSE | H71: FALSE
A72: Q | C72: Yes | D72: =D70 -> FALSE | G72: Yes | H72: FALSE | I72: =Q72 -> 0 | K72: =IF(AND(D72,Requester_Name=0),TRUE,FALSE) -> FALSE | M72: Ü | N72: =IF(Language=French_Select,AE72,AD72) -> Nom du demandeur. (Max. 40 caractères) | AD72: Name of the requester. (Max. 40 characters) | AE72: Nom du demandeur. (Max. 40 caractères)
C73: Yes | D73: =D72 -> FALSE | H73: FALSE
A74: Q | C74: Yes | D74: =D72 -> FALSE | G74: Yes | H74: FALSE | I74: =Q74 -> 0 | K74: =IF(AND(D74,Requester_Title=0),TRUE,FALSE) -> FALSE | M74: Ü | N74: =IF(Language=French_Select,AE74,AD74) -> Titre du demandeur. (Max. 40 caractères) | AD74: Title of the requester. (Max. 40 characters) | AE74: Titre du demandeur. (Max. 40 caractères)
C75: Yes | D75: =D74 -> FALSE | H75: FALSE
A76: Q | C76: Yes | D76: =D74 -> FALSE | G76: Yes | H76: FALSE | I76: =Q76 -> 0 | K76: =IF(AND(D76,Requester_Branch=0),TRUE,FALSE) -> FALSE | M76: Ü | N76: =IF(Language=French_Select,AE76,AD76) -> Direction générale du demandeur. (Max. 80 caractères) | AD76: Branch of the requester. (Max. 80 characters) | AE76: Direction générale du demandeur. (Max. 80 caractères)
C77: Yes | D77: =D76 -> FALSE | H77: FALSE
A78: Q | C78: Yes | D78: =D76 -> FALSE | G78: Yes | H78: FALSE | I78: =Q78 -> 0 | K78: =IF(AND(D78,Requester_RC=0),TRUE,FALSE) -> FALSE | M78: Ü | N78: =IF(Language=French_Select,AE78,AD78) -> Centre financier du demandeur. (Max. 6 caractères) | AD78: Fund Centre of the requester. (Max. 6 characters) | AE78: Centre financier du demandeur. (Max. 6 caractères)
C79: Yes | D79: =D78 -> FALSE | H79: FALSE
A80: Q | C80: Yes | D80: =D78 -> FALSE | G80: Yes | H80: FALSE | I80: =Q80 -> 0 | K80: =IF(AND(D80,Prepared_by=0),TRUE,FALSE) -> FALSE | M80: Ü | N80: =IF(Language=French_Select,AE80,AD80) -> Dossier DVACÉ préparé par : Nom et numéro de téléphone. (Max. 50 caractères) | AD80: THCEE file prepared by : Name and phone number. (Max. 50 characters) | AE80: Dossier DVACÉ préparé par : Nom et numéro de téléphone. (Max. 50 caractères)
C81: Yes | D81: =D80 -> FALSE | H81: FALSE
A82: Q | C82: Yes | D82: =D80 -> FALSE | G82: Yes | H82: FALSE | I82: =Q82 -> 0 | K82: =IF(AND(D82,Activity_Location=0),TRUE,FALSE) -> FALSE | M82: Ü | N82: =IF(Language=French_Select,AE82,AD82) -> Endroit où l'activité se déroule? (ville, province, pays) (Max. 40 caractères) | AD82: Where is your activity being held? (city, province, country) (Max. 40 characters) | AE82: Endroit où l'activité se déroule? (ville, province, pays) (Max. 40 caractères)
C83: Yes | D83: =D82 -> FALSE | H83: FALSE
A84: Q | C84: Yes | D84: =D82 -> FALSE | G84: Yes | H84: FALSE | I84: =Q84 -> 0 | K84: =IF(AND(D84,Government_Facility=0),TRUE,FALSE) -> FALSE | M84: Ü | N84: =IF(Language=French_Select,AE84,AD84) -> Est-ce dans une installation du gouvernement? | AD84: Is the activity being held in a government facility? | AE84: Est-ce dans une installation du gouvernement? | AH84: =IF(Q84=Yes_Select_FR,Yes_Select_EN,IF(Q84=No_Select_FR,No_Select_EN,"")) ->  | AI84: =IF(Q84=Yes_Select_EN,Yes_Select_FR,IF(Q84=No_Select_EN,No_Select_FR,"")) -> 
C85: Yes | D85: =D84 -> FALSE | H85: FALSE
A86: Q | C86: Yes | D86: =AND(Government_Facility=No_Select,D58) -> FALSE | G86: Yes | H86: FALSE | I86: =Q86 -> 0 | K86: =IF(AND(D86,COUNTIF(I86:I94,"=" & Yes_Select)=0),TRUE,FALSE) -> FALSE | M86: Ü | N86: =IF(Language=French_Select,AE86,AD86) -> Justification (choisir tous les cas applicables) | S86: =IF(Language=French_Select,AG86,AF86) -> Le ministère n’a aucun pouvoir discrétionnaire pour choisir le lieu | AD86: Justification (choose all applicable) | AE86: Justification (choisir tous les cas applicables) | AF86: The department has no discretion in selecting the venue | AG86: Le ministère n’a aucun pouvoir discrétionnaire pour choisir le lieu | AH86: =IF(Q86=Yes_Select_FR,Yes_Select_EN,IF(Q86=No_Select_FR,No_Select_EN,"")) ->  | AI86: =IF(Q86=Yes_Select_EN,Yes_Select_FR,IF(Q86=No_Select_EN,No_Select_FR,"")) -> 
C87: Yes | D87: =D86 -> FALSE | H87: FALSE
C88: Yes | D88: =D87 -> FALSE | G88: Yes | H88: FALSE | I88: =Q88 -> 0 | S88: =IF(Language=French_Select,AG88,AF88) -> L’installation choisie peut fournir les services et l’infrastructure nécessaires à la tenue de l’activité, alors que les installations du gouvernement ne le peuvent pas | AF88: The chosen facility can provide the services and infrastructure required for the activity which government facilities cannot | AG88: L’installation choisie peut fournir les services et l’infrastructure nécessaires à la tenue de l’activité, alors que les installations du gouvernement ne le peuvent pas | AH88: =IF(Q88=Yes_Select_FR,Yes_Select_EN,IF(Q88=No_Select_FR,No_Select_EN,"")) ->  | AI88: =IF(Q88=Yes_Select_EN,Yes_Select_FR,IF(Q88=No_Select_EN,No_Select_FR,"")) -> 
C89: Yes | D89: =D88 -> FALSE | H89: FALSE
C90: Yes | D90: =D87 -> FALSE | G90: Yes | H90: FALSE | I90: =Q90 -> 0 | S90: =IF(Language=French_Select,AG90,AF90) -> Les installations du gouvernement n’existent pas dans la région géographique où aura lieu l’activité | AF90: Government facilities are not available in the geographic area where the activity is to be held | AG90: Les installations du gouvernement n’existent pas dans la région géographique où aura lieu l’activité | AH90: =IF(Q90=Yes_Select_FR,Yes_Select_EN,IF(Q90=No_Select_FR,No_Select_EN,"")) ->  | AI90: =IF(Q90=Yes_Select_EN,Yes_Select_FR,IF(Q90=No_Select_EN,No_Select_FR,"")) -> 
C91: Yes | D91: =D90 -> FALSE | H91: FALSE
C92: Yes | D92: FALSE | G92: Yes | H92: FALSE | I92: =Q92 -> 0 | S92: =IF(Language=French_Select,AG92,AF92) -> Les installations du gouvernement existent dans la région géographique mais ne sont pas libres au moment où l’activité aura lieu et le calendrier de l’activité ne peut être convenablement modifié | AF92: Government facilities exist in the geographic area but are not available at the time of the activity and the activity timetable cannot be suitably altered | AG92: Les installations du gouvernement existent dans la région géographique mais ne sont pas libres au moment où l’activité aura lieu et le calendrier de l’activité ne peut être convenablement modifié | AH92: =IF(Q92=Yes_Select_FR,Yes_Select_EN,IF(Q92=No_Select_FR,No_Select_EN,"")) ->  | AI92: =IF(Q92=Yes_Select_EN,Yes_Select_FR,IF(Q92=No_Select_EN,No_Select_FR,"")) -> 
C93: Yes | D93: FALSE | H93: FALSE
C94: Yes | D94: FALSE | G94: Yes | H94: FALSE | I94: =Q94 -> 0 | S94: =IF(Language=French_Select,AG94,AF94) -> Le choix d’une installation non gouvernementale peut se révéler économique et résister à un examen du public | AF94: The choice of a non-government facility can be shown to be cost-effective and withstand public scrutiny | AG94: Le choix d’une installation non gouvernementale peut se révéler économique et résister à un examen du public | AH94: =IF(Q94=Yes_Select_FR,Yes_Select_EN,IF(Q94=No_Select_FR,No_Select_EN,"")) ->  | AI94: =IF(Q94=Yes_Select_EN,Yes_Select_FR,IF(Q94=No_Select_EN,No_Select_FR,"")) -> 
C95: Yes | D95: FALSE | H95: FALSE
C96: Yes | D96: FALSE | H96: FALSE
A97: Q | C97: Yes | D97: =D85 -> FALSE | G97: Yes | H97: FALSE | I97: =Q97 -> 0 | K97: =IF(AND(D97,Activity_Paid_By=0),TRUE,FALSE) -> FALSE | M97: Ü | N97: =IF(Language=French_Select,AE97,AD97) -> Le coût sera payé par | AD97: Please confirm if the cost will be paid by | AE97: Le coût sera payé par | AH97: =IF(Q97=One_RC_Select_FR,One_RC_Select_EN,IF(Q97=Multiple_RC_Select_FR,Multiple_RC_Select_EN,"")) ->  | AI97: =IF(Q97=One_RC_Select_EN,One_RC_Select_FR,IF(Q97=Multiple_RC_Select_EN,Multiple_RC_Select_FR,"")) -> 
C98: Yes | D98: =D97 -> FALSE | H98: FALSE
A99: Q | C99: Yes | D99: =D97 -> FALSE | G99: Yes | H99: FALSE | I99: =Q99 -> 0 | K99: =IF(AND(D99,Approving_Entity=0),TRUE,FALSE) -> FALSE | M99: Ü | N99: =IF(Language=French_Select,AE99,AD99) -> Sous quelle entité l'activité sera-t-elle approuvée? | AD99: Under which entity will this activity be approved? | AE99: Sous quelle entité l'activité sera-t-elle approuvée? | AH99: =IF(Q99=ESDC_Select_FR,ESDC_Select_EN,IF(Q99=Labour_Select_FR,Labour_Select_EN,IF(Q99=ServCan_Select_FR,ServCan_Select_EN,""))) ->  | AI99: =IF(Q99=ESDC_Select_EN,ESDC_Select_FR,IF(Q99=Labour_Select_EN,Labour_Select_FR,IF(Q99=ServCan_Select_EN,ServCan_Select_FR,""))) -> 
C100: Yes | D100: =D99 -> FALSE | H100: FALSE
A101: Q | C101: Yes | D101: =D99 -> FALSE | G101: Yes | H101: FALSE | I101: =IF(Q101="","",Q101) ->  | K101: =IF(OR(NOT(D101),AND(ISNUMBER(PS_Participants),IF(ISERROR(Non_PS_Participants+PS_Participants>0),TRUE,Non_PS_Participants+PS_Participants>0))),FALSE, TRUE) -> FALSE | M101: Ü | N101: =IF(Language=French_Select,AE101,AD101) -> Nombre de fonctionnaires participant à l'activité | AD101: Number of public servants attending the activity | AE101: Nombre de fonctionnaires participant à l'activité
C102: Yes | D102: =D101 -> FALSE | H102: FALSE
A103: Q | C103: Yes | D103: =D101 -> FALSE | G103: Yes | H103: FALSE | I103: =Q103 -> 0 | K103: =IF(AND(D103,PS_Participants_Justification=0),TRUE,FALSE) -> FALSE | M103: Ü | N103: =IF(Language=French_Select,AE103,AD103) -> Veuillez expliquer en quoi ce nombre de fonctionnaire est le nombre minimal requis pour réaliser les objectifs de l'activité. (Max. 250 caractères) | AD103: Please explain how the number of Public Servants is the minimum required to achieve the objective of the activity. (Max. 250 characters) | AE103: Veuillez expliquer en quoi ce nombre de fonctionnaire est le nombre minimal requis pour réaliser les objectifs de l'activité. (Max. 250 caractères)
C104: Yes | D104: =D103 -> FALSE | H104: FALSE
A105: Q | C105: Yes | D105: =D103 -> FALSE | G105: Yes | H105: FALSE | I105: =IF(Q105="","",Q105) ->  | K105: =IF(OR(NOT(D105),AND(ISNUMBER(Non_PS_Participants),IF(ISERROR(Non_PS_Participants+PS_Participants>0),TRUE,Non_PS_Participants+PS_Participants>0))),FALSE,TRUE) -> FALSE | M105: Ü | N105: =IF(Language=French_Select,AE105,AD105) -> Nombre de non-fonctionnaires participant à l'activité | AD105: Number of non-public servants attending the activity | AE105: Nombre de non-fonctionnaires participant à l'activité
A106: Q | C106: Yes | D106: =D105 -> FALSE | H106: FALSE | N106: =IF(Language=French_Select,AE106,AD106) -> Autres commentaires | AD106: Other comments | AE106: Autres commentaires
C107: Yes | D107: =D106 -> FALSE | H107: FALSE
A108: Q | C108: Yes | D108: =D106 -> FALSE | H108: FALSE | I108: =Q108 -> 0 | N108: =IF(Language=French_Select,AE108,AD108) -> Veuillez inclure ce qui suit: (Max. 1 000 caractères) - S'il s'agit d'une activité récurrente, veuillez confirmer la réduction des coûts par rapport à l'année précédente, incluant le montant de la diminution et comment cette réduction a été obtenue. Une justification complète est nécessaire si les coûts ont augmentés. - Le cas échéant, donner l'explication des motifs pour lesquels un autre ministère/province/territoire participe à un Événement organisé par EDSC mais sans papyer ses propres coûts. - Tout autre commentaire pour l'approbateur. | AD108: Please provide the following. (Max. 1,000 characters) - If this is a recurrent activity, please confirm cost reduction from previous year(s), including the amount by which costs have decreased and how the reduction was achieved. A full explanation is required if the costs have increased. - If applicable, provide clarification as to why another Department/Province/Territory is participating in an ESDC hosted Event but not covering their own costs. - Any other comments that the approver should be made aware of. | AE108: Veuillez inclure ce qui suit: (Max. 1 000 caractères) - S'il s'agit d'une activité récurrente, veuillez confirmer la réduction des coûts par rapport à l'année précédente, incluant le montant de la diminution et comment cette réduction a été obtenue. Une justification complète est nécessaire si les coûts ont augmentés. - Le cas échéant, donner l'explication des motifs pour lesquels un autre ministère/province/territoire participe à un Événement organisé par EDSC mais sans papyer ses propres coûts. - Tout autre commentaire pour l'approbateur.
C109: Yes | D109: =D105 -> FALSE | H109: FALSE
C110: Yes | D110: =AND(CompleteInfo,OR(Activity_is_Event,UseTool=Yes_Select,Hospitality_Expenses=Yes_Select,Conference)) -> FALSE | H110: FALSE | J110: =COUNTIF(K9:K105,"="&TRUE)=0 -> FALSE | K110: - | M110: =IF(Language=French_Select,AE110,AD110) -> Détail des coûts | AD110: Cost Details | AE110: Détail des coûts
C111: Yes | D111: =AND(Activity_is_Event,CompleteInfo) -> FALSE | H111: FALSE
A112: Q | C112: Yes | D112: =D111 -> FALSE | H112: FALSE | J112: =OR(AND(Conference_Included=Yes_Select,OR(btnConfParticipation=1,AND(btnConfParticipation=3,OR(btnConfList=2,btnConfList=3)))),AND(Conference_Included=No_Select,btnTypeEventOper>=1,btnTypeEventOper<=5)) -> FALSE | N112: =IF(Language=French_Select,AE112,AD112) -> Événement | AD112: Event | AE112: Événement
C113: Yes | D113: =D112 -> FALSE | H113: FALSE
A114: Q | C114: Yes | D114: =D112 -> FALSE | E114: Yes | G114: Yes | H114: FALSE | I114: =Q114 -> 0 | K114: =IF(AND(D114,Hosting_Dept=0),TRUE,FALSE) -> FALSE | M114: Ü | N114: =IF(Language=French_Select,AE114,AD114) -> Est-ce que EDSC est l'hôte de cet événement? | V114: Global: | Y114: =Event_Delegation_Level -> 0 | AD114: Is ESDC the host for this event? | AE114: Est-ce que EDSC est l'hôte de cet événement? | AH114: =IF(Q114=Yes_Select_FR,Yes_Select_EN,IF(Q114=No_Select_FR,No_Select_EN,"")) ->  | AI114: =IF(Q114=Yes_Select_EN,Yes_Select_FR,IF(Q114=No_Select_EN,No_Select_FR,"")) -> 
C115: Yes | D115: =D114 -> FALSE | H115: FALSE
A116: Q | C116: Yes | D116: =D115 -> FALSE | E116: Yes | G116: Yes | H116: FALSE | I116: =Q116 -> 0 | K116: =IF(AND(D116,Is_Cost_For_OGD=0),TRUE,FALSE) -> FALSE | M116: Ü | N116: =IF(Language=French_Select,AE116,AD116) -> S'il vous plaît confirmer si des coûts additionels sont couverts par d'autres ministères | V116: Part 1: | Y116: =Event_Delegation_Level_Part1 -> 0 | AD116: Please confirm if additional costs are covered by other government department(s) | AE116: S'il vous plaît confirmer si des coûts additionels sont couverts par d'autres ministères | AH116: =IF(Q116=Yes_Select_FR,Yes_Select_EN,IF(Q116=No_Select_FR,No_Select_EN,"")) ->  | AI116: =IF(Q116=Yes_Select_EN,Yes_Select_FR,IF(Q116=No_Select_EN,No_Select_FR,"")) -> 
A117: Q | C117: Yes | D117: =D116 -> FALSE | H117: FALSE | N117: =IF(Language=French_Select,AE117,AD117) -> et/ou organisations externes au gouvernement. | AD117: and/or organisation(s) outside the government. | AE117: et/ou organisations externes au gouvernement.
C118: Yes | D118: =D116 -> FALSE | H118: FALSE
A119: Q | C119: Yes | D119: =Is_Cost_For_OGD=Yes_Select -> FALSE | E119: Yes | G119: Yes | H119: FALSE | I119: =Q119 -> 0 | K119: =IF(AND(D119,Name_Of_OGD=0),TRUE,FALSE) -> FALSE | M119: Ü | N119: =IF(Language=French_Select,AE119,AD119) -> Nom des autres ministères/organisations. (Max. 40 caractères) | AD119: Name of the other government department(s)/organisation(s). (Max. 40 characters) | AE119: Nom des autres ministères/organisations. (Max. 40 caractères)
C120: Yes | D120: =D119 -> FALSE | H120: FALSE
A121: Q | C121: Yes | D121: =(Is_Cost_For_OGD=Yes_Select) -> FALSE | E121: Yes | F121: 0 | G121: Yes | H121: FALSE | I121: =Q121 -> 0 | K121: =IF(AND(D121,Cost_For_OGD=0),TRUE,FALSE) -> FALSE | M121: Ü | N121: =IF(Language=French_Select,AE121,AD121) -> Coûts payés par les autres ministères/organisations | Q121: 0 | AD121: Cost paid by the other government department(s)/organisation(s). | AE121: Coûts payés par les autres ministères/organisations
A122: Q | C122: Yes | D122: =D121 -> FALSE | H122: FALSE | N122: =IF(Language=French_Select,AE122,AD122) -> Si EDSC paie pour une activité / dépense et qu’elle sera remboursée par la suite, vous devez obtenir l’approbation du coût total (y compris le montant qui sera remboursé plus tard). Si EDSC paie seulement pour une portion de l’activité / dépense (c.-à-d. que nous n’obtiendrons pas de remboursement plus tard, qu’il s’agit d’un partage des coûts), vous devez obtenir l’approbation seulement pour la portion payée par EDSC. | AD122: If ESDC is paying for an activity/expense and will get reimbursed afterwards, you must obtain approval for the total cost (including the amount that will be reimbursed later). If ESDC is only paying a portion of an activity/expense (i.e. NOT getting reimbursed, just sharing the costs), you must obtain approval for only the portion that ESDC is paying. | AE122: Si EDSC paie pour une activité / dépense et qu’elle sera remboursée par la suite, vous devez obtenir l’approbation du coût total (y compris le montant qui sera remboursé plus tard). Si EDSC paie seulement pour une portion de l’activité / dépense (c.-à-d. que nous n’obtiendrons pas de remboursement plus tard, qu’il s’agit d’un partage des coûts), vous devez obtenir l’approbation seulement pour la portion payée par EDSC.
C123: Yes | D123: =D121 -> FALSE | H123: FALSE
A124: Q | C124: Yes | D124: =AND(CompleteInfo,OR(Activity_is_Event,UseTool=Yes_Select)) -> FALSE | H124: FALSE | N124: =IF(Language=French_Select,AE124,AD124) -> Voyage | AD124: Travel | AE124: Voyage
C125: Yes | D125: =D124 -> FALSE | H125: FALSE
A126: Q | C126: Yes | D126: =D125 -> FALSE | E126: Yes | G126: Yes | H126: FALSE | I126: =Q126 -> 0 | K126: =IF(AND(D126,Travel_Expenses=0),TRUE,FALSE) -> FALSE | M126: Ü | N126: =IF(Language=French_Select,AE126,AD126) -> Avez-vous des frais de voyage inclus dans votre activité? | S126: ? | AD126: Do you have any travel expenses included in your activity? | AE126: Avez-vous des frais de voyage inclus dans votre activité? | AH126: =IF(Q126=Yes_Select_FR,Yes_Select_EN,IF(Q126=No_Select_FR,No_Select_EN,"")) ->  | AI126: =IF(Q126=Yes_Select_EN,Yes_Select_FR,IF(Q126=No_Select_EN,No_Select_FR,"")) -> 
C127: Yes | D127: =D126 -> FALSE | H127: FALSE
A128: Q | C128: Yes | D128: =Travel_Expenses=Yes_Select -> FALSE | E128: Yes | G128: Yes | H128: FALSE | I128: =Q128 -> 0 | K128: =IF(AND(D128,Travel_Type=0),TRUE,FALSE) -> FALSE | M128: Ü | N128: =IF(Language=French_Select,AE128,AD128) -> Quel type de voyage? | X128: ? | AD128: Which type of travel? | AE128: Quel type de voyage? | AH128: =IF(Q128=Travel_International_Select_FR,Travel_International_Select_EN,IF(Q128=Travel_Domestic_Select_FR,Travel_Domestic_Select_EN,IF(Q128=Travel_Local_Select_FR,Travel_Local_Select_EN,""))) ->  | AI128: =IF(Q128=Travel_International_Select_EN,Travel_International_Select_FR,IF(Q128=Travel_Domestic_Select_EN,Travel_Domestic_Select_FR,IF(Q128=Travel_Local_Select_EN,Travel_Local_Select_FR,""))) -> 
C129: Yes | D129: =D128 -> FALSE | H129: FALSE
A130: Q | C130: Yes | D130: =(Travel_Type=Travel_International_Select) -> FALSE | E130: Yes | G130: Yes | H130: FALSE | I130: =Q130 -> 0 | K130: =IF(AND(D130,Travel_On_Plan=0),TRUE,FALSE) -> FALSE | M130: Ü | N130: =IF(Language=French_Select,AE130,AD130) -> Est-ce que le voyage figure dans le Plan des voyages internationaux approuvé? | AD130: Is the travel on the approved International Travel Plan? | AE130: Est-ce que le voyage figure dans le Plan des voyages internationaux approuvé? | AH130: =IF(Q130=Yes_Select_FR,Yes_Select_EN,IF(Q130=No_Select_FR,No_Select_EN,"")) ->  | AI130: =IF(Q130=Yes_Select_EN,Yes_Select_FR,IF(Q130=No_Select_EN,No_Select_FR,"")) -> 
C131: Yes | D131: =D130 -> FALSE | H131: FALSE
A132: Q | C132: Yes | D132: =AND(Activity_is_Event,Travel_Type=Travel_Domestic_Select) -> FALSE | E132: Yes | G132: Yes | H132: FALSE | I132: =Q132 -> 0 | K132: =IF(AND(D132,DG_A_Traveller=0),TRUE,FALSE) -> FALSE | M132: Ü | N132: =IF(Language=French_Select,AE132,AD132) -> Est-ce qu'un des voyageurs est le Directeur général? | AD132: Is one of the travellers the Director General? | AE132: Est-ce qu'un des voyageurs est le Directeur général? | AH132: =IF(Q132=Yes_Select_FR,Yes_Select_EN,IF(Q132=No_Select_FR,No_Select_EN,"")) ->  | AI132: =IF(Q132=Yes_Select_EN,Yes_Select_FR,IF(Q132=No_Select_EN,No_Select_FR,"")) -> 
C133: Yes | D133: =D132 -> FALSE | H133: FALSE
A134: Q | C134: Yes | D134: =D133 -> FALSE | E134: Yes | G134: Yes | H134: FALSE | I134: =Q134 -> 0 | K134: =IF(AND(D134,ADM_A_Traveller=0),TRUE,FALSE) -> FALSE | M134: Ü | N134: =IF(Language=French_Select,AE134,AD134) -> Est-ce qu'un des voyageurs est le Sous-ministre adjoint? | AD134: Is one of the travellers the Assistant Deputy Minister? | AE134: Est-ce qu'un des voyageurs est le Sous-ministre adjoint? | AH134: =IF(Q134=Yes_Select_FR,Yes_Select_EN,IF(Q134=No_Select_FR,No_Select_EN,"")) ->  | AI134: =IF(Q134=Yes_Select_EN,Yes_Select_FR,IF(Q134=No_Select_EN,No_Select_FR,"")) -> 
C135: Yes | D135: =D134 -> FALSE | H135: FALSE
A136: Q | C136: Yes | D136: =AND(Activity_is_Event,OR(Travel_Type=Travel_Domestic_Select,AND(Travel_Type=Travel_International_Select,Travel_On_Plan=No_Select,Approving_Entity<>ESDC_Select))) -> FALSE | E136: Yes | G136: Yes | H136: FALSE | I136: =Q136 -> 0 | K136: =IF(AND(D136,DM_A_Traveller=0),TRUE,FALSE) -> FALSE | M136: Ü | N136: =IF(Language=French_Select,AE136,AD136) -> Est-ce qu'un des voyageurs est le Sous-ministre? | AD136: Is one of the travellers the Deputy Minister? | AE136: Est-ce qu'un des voyageurs est le Sous-ministre? | AH136: =IF(Q136=Yes_Select_FR,Yes_Select_EN,IF(Q136=No_Select_FR,No_Select_EN,"")) ->  | AI136: =IF(Q136=Yes_Select_EN,Yes_Select_FR,IF(Q136=No_Select_EN,No_Select_FR,"")) -> 
C137: Yes | D137: =D136 -> FALSE | H137: FALSE
A138: Q | C138: Yes | D138: =Travel_Expenses=Yes_Select -> FALSE | H138: FALSE | N138: =IF(Language=French_Select,AE138,AD138) -> Cliquez ici pour compléter la grille d'estimation des coûts de voyage | AD138: Click here to complete the estimated travel cost worksheet | AE138: Cliquez ici pour compléter la grille d'estimation des coûts de voyage
C139: Yes | D139: =D138 -> FALSE | H139: FALSE
A140: Q | C140: Yes | D140: =D139 -> FALSE | H140: FALSE | I140: =Q140 -> 0 | N140: =IF(Language=French_Select,AE140,AD140) -> $ Coût total estimé des frais de voyage (champ calculé) | Q140: =SUM(Travel_Transportation_Costs)+SUM(Travel_Accomodations_Cost)+SUM(Travel_Meals_Cost)+SUM(Travel_Incidentals_Cost) -> 0 | Y140: =Travel_Delegation_Level -> 0 | AD140: $ Total Estimated Travel Cost (Calculated field) | AE140: $ Coût total estimé des frais de voyage (champ calculé)
C141: Yes | D141: =D140 -> FALSE | H141: FALSE
A142: Q | C142: Yes | D142: =AND(CompleteInfo, OR(Hospitality_Expenses=Yes_Select, Activity_is_Event)) -> FALSE | H142: FALSE | J142: =OR(Hospitality_Expenses=Yes_Select,Hospitality_Expenses_Event=Yes_Select) -> FALSE | N142: =IF(Language=French_Select,AE142,AD142) -> Accueil | AD142: Hospitality | AE142: Accueil
C143: Yes | D143: =D142 -> FALSE | H143: FALSE
A144: Q | C144: Yes | D144: =AND(D143,NOT(D52)) -> FALSE | E144: Yes | G144: Yes | H144: FALSE | I144: =Q144 -> 0 | K144: =IF(AND(D144,Hospitality_Expenses_Event=0),TRUE,FALSE) -> FALSE | M144: Ü | N144: =IF(Language=French_Select,AE144,AD144) -> Est-ce que des frais d'accueil sont inclus dans votre activité? | S144: ? | AD144: Do you have any hospitality included in your activity? | AE144: Est-ce que des frais d'accueil sont inclus dans votre activité? | AH144: =IF(Q144=Yes_Select_FR,Yes_Select_EN,IF(Q144=No_Select_FR,No_Select_EN,"")) ->  | AI144: =IF(Q144=Yes_Select_EN,Yes_Select_FR,IF(Q144=No_Select_EN,No_Select_FR,"")) -> 
C145: Yes | D145: =D144 -> FALSE | H145: FALSE
A146: Q | C146: Yes | D146: =IF(D144,IF(Hospitality_Expenses_Event=Yes_Select,TRUE,FALSE),D143) -> FALSE | E146: Yes | G146: Yes | H146: FALSE | I146: =Q146 -> 0 | K146: =IF(AND(D146,Hospitality_Justification=0),TRUE,FALSE) -> FALSE | M146: Ü | N146: =IF(Language=French_Select,AE146,AD146) -> Veuillez fournir les détails et les raisons pour lesquelles l'accueil est offerte? (Max. 250 caractères) | AD146: Please provide details and reasons why the hospitality is being offered? (Max. 250 characters) | AE146: Veuillez fournir les détails et les raisons pour lesquelles l'accueil est offerte? (Max. 250 caractères)
C147: Yes | D147: =D146 -> FALSE | H147: FALSE
A148: Q | C148: Yes | D148: =AND(Hospitality_Expenses=Yes_Select,D142) -> FALSE | E148: Yes | G148: Yes | H148: FALSE | I148: =Q148 -> 0 | K148: =IF(AND(D148,Hospitality_DG_Participant=0),TRUE,FALSE) -> FALSE | M148: Ü | N148: =IF(Language=French_Select,AE148,AD148) -> Est-ce que le Directeur bénéficie des frais d'accueil? | S148: 1 | T148: =Delegation!O16 -> 1 | AD148: Will the Director benefit from the hospitality? | AE148: Est-ce que le Directeur bénéficie des frais d'accueil? | AH148: =IF(Q148=Yes_Select_FR,Yes_Select_EN,IF(Q148=No_Select_FR,No_Select_EN,"")) ->  | AI148: =IF(Q148=Yes_Select_EN,Yes_Select_FR,IF(Q148=No_Select_EN,No_Select_FR,"")) -> 
C149: Yes | D149: =D148 -> FALSE | H149: FALSE
A150: Q | C150: Yes | D150: =AND(D142,OR(Hospitality_Expenses=Yes_Select,Hospitality_Expenses_Event=Yes_Select)) -> FALSE | E150: Yes | G150: Yes | H150: FALSE | I150: =Q150 -> 0 | K150: =IF(AND(D150,Hospitality_DG_Participant=0),TRUE,FALSE) -> FALSE | M150: Ü | N150: =IF(Language=French_Select,AE150,AD150) -> Est-ce que le Directeur général bénéficie des frais d'accueil? | S150: 2 | T150: =Delegation!O17 -> 2 | AD150: Will the Director General benefit from the hospitality? | AE150: Est-ce que le Directeur général bénéficie des frais d'accueil? | AH150: =IF(Q150=Yes_Select_FR,Yes_Select_EN,IF(Q150=No_Select_FR,No_Select_EN,"")) ->  | AI150: =IF(Q150=Yes_Select_EN,Yes_Select_FR,IF(Q150=No_Select_EN,No_Select_FR,"")) -> 
C151: Yes | D151: =D150 -> FALSE | H151: FALSE
A152: Q | C152: Yes | D152: =D151 -> FALSE | E152: Yes | G152: Yes | H152: FALSE | I152: =Q152 -> 0 | K152: =IF(AND(D152,Hospitality_ADM_Participant=0),TRUE,FALSE) -> FALSE | M152: Ü | N152: =IF(Language=French_Select,AE152,AD152) -> Est-ce que le Sous-ministre adjoint bénéficie des frais d'accueil? | S152: 3 | T152: =Delegation!O18 -> 3 | AD152: Will the Assistant Deputy Minister benefit from the hospitality? | AE152: Est-ce que le Sous-ministre adjoint bénéficie des frais d'accueil? | AH152: =IF(Q152=Yes_Select_FR,Yes_Select_EN,IF(Q152=No_Select_FR,No_Select_EN,"")) ->  | AI152: =IF(Q152=Yes_Select_EN,Yes_Select_FR,IF(Q152=No_Select_EN,No_Select_FR,"")) -> 
C153: Yes | D153: =D150 -> FALSE | H153: FALSE
A154: Q | C154: Yes | D154: =D153 -> FALSE | E154: Yes | G154: Yes | H154: FALSE | I154: =Q154 -> 0 | K154: =IF(AND(D154,Hospitality_CFO_Participant=0),TRUE,FALSE) -> FALSE | M154: Ü | N154: =IF(Language=French_Select,AE154,AD154) -> Est-ce que le CFO bénéficie des frais d'accueil? | S154: 4.1 | T154: =Delegation!O19 -> 4.1 | Y154: =Hospitality_Delegation_Event_Level -> 0 | Z154: Hosp Event | AD154: Will the CFO benefit from the hospitality? | AE154: Est-ce que le CFO bénéficie des frais d'accueil? | AH154: =IF(Q154=Yes_Select_FR,Yes_Select_EN,IF(Q154=No_Select_FR,No_Select_EN,"")) ->  | AI154: =IF(Q154=Yes_Select_EN,Yes_Select_FR,IF(Q154=No_Select_EN,No_Select_FR,"")) -> 
C155: Yes | D155: =D152 -> FALSE | H155: FALSE
A156: Q | C156: Yes | D156: =D155 -> FALSE | E156: Yes | G156: Yes | H156: FALSE | I156: =Q156 -> 0 | K156: =IF(AND(D156,Hospitality_DM_Participant=0),TRUE,FALSE) -> FALSE | M156: Ü | N156: =IF(Language=French_Select,AE156,AD156) -> Est-ce que le Sous-ministre bénéficie des frais d'accueil? | S156: 4 | T156: =Delegation!O20 -> 4.1 | Y156: =Hospitality_Delegation_Level -> 0 | Z156: Hosp Only | AD156: Will the Deputy Minister benefit from the hospitality? | AE156: Est-ce que le Sous-ministre bénéficie des frais d'accueil? | AH156: =IF(Q156=Yes_Select_FR,Yes_Select_EN,IF(Q156=No_Select_FR,No_Select_EN,"")) ->  | AI156: =IF(Q156=Yes_Select_EN,Yes_Select_FR,IF(Q156=No_Select_EN,No_Select_FR,"")) -> 
C157: Yes | D157: =D156 -> FALSE | H157: FALSE
A158: Q | C158: Yes | D158: =D147 -> FALSE | E158: Yes | G158: Yes | H158: FALSE | I158: =Q158 -> 0 | K158: =AND(D158,Hospitality_Alcohol=0) -> FALSE | M158: Ü | N158: =IF(Language=French_Select,AE158,AD158) -> Est-ce que l’accueil inclus des dépenses d’alcool? | AD158: Does the hospitality include alcohol expenses? | AE158: Est-ce que l’accueil inclus des dépenses d’alcool? | AH158: =IF(Q158=Yes_Select_FR,Yes_Select_EN,IF(Q158=No_Select_FR,No_Select_EN,"")) ->  | AI158: =IF(Q158=Yes_Select_EN,Yes_Select_FR,IF(Q158=No_Select_EN,No_Select_FR,"")) -> 
C159: Yes | D159: =D158 -> FALSE | H159: FALSE
A160: Q | C160: Yes | D160: =(Hospitality_Alcohol=Yes_Select) -> FALSE | E160: Yes | G160: Yes | H160: FALSE | I160: =Q160 -> 0 | K160: =IF(AND(D160,Hospitality_Alcohol_Justification=0),TRUE,FALSE) -> FALSE | M160: Ü | N160: =IF(Language=French_Select,AE160,AD160) -> Fournir le détail et la justification des dépenses d'alcool. (Max. 250 caractères) | AD160: Provide the details and justification for the alcohol expenses. (Max. 250 characters) | AE160: Fournir le détail et la justification des dépenses d'alcool. (Max. 250 caractères)
C161: Yes | D161: =D160 -> FALSE | H161: FALSE
A162: Q | C162: Yes | D162: =D146 -> FALSE | E162: Yes | G162: Yes | H162: FALSE | I162: =Q162 -> 0 | K162: =IF(AND(D162,Exc_Spouse_Hospitality=0),TRUE,FALSE) -> FALSE | M162: Ü | N162: =IF(Language=French_Select,AE162,AD162) -> Est-ce que l'acceuil a été offert à une personne accompagnant un participant? | AD162: Is the hospitality provided to a person accompanying the participant? | AE162: Est-ce que l'acceuil a été offert à une personne accompagnant un participant? | AH162: =IF(Q162=Yes_Select_FR,Yes_Select_EN,IF(Q162=No_Select_FR,No_Select_EN,"")) ->  | AI162: =IF(Q162=Yes_Select_EN,Yes_Select_FR,IF(Q162=No_Select_EN,No_Select_FR,"")) -> 
C163: Yes | D163: =D162 -> FALSE | H163: FALSE
A164: Q | C164: Yes | D164: =(Exc_Spouse_Hospitality=Yes_Select) -> FALSE | E164: Yes | G164: Yes | H164: FALSE | I164: =Q164 -> 0 | K164: =IF(AND(D164,Exc_Spouse_Hospitality_Justification=0),TRUE,FALSE) -> FALSE | M164: Ü | N164: =IF(Language=French_Select,AE164,AD164) -> Fournir la justification pour l'acceuil offert à une personne accompagnant un participant. (Max. 250 caractères) | AD164: Provide the justification for hospitality provided to a person accompanying a participant. (Max. 250 characters) | AE164: Fournir la justification pour l'acceuil offert à une personne accompagnant un participant. (Max. 250 caractères)
C165: Yes | D165: =D164 -> FALSE | H165: FALSE
A166: Q | C166: Yes | D166: =D146 -> FALSE | E166: Yes | G166: Yes | H166: FALSE | I166: =Q166 -> 0 | K166: =IF(AND(D166,Hospitality_In_Residence=0),TRUE,FALSE) -> FALSE | M166: Ü | N166: =IF(Language=French_Select,AE166,AD166) -> Est-ce offert dans la résidence d'un employé fédéral? | AD166: Will this hospitality be offered at the residence of a federal employee? | AE166: Est-ce offert dans la résidence d'un employé fédéral? | AH166: =IF(Q166=Yes_Select_FR,Yes_Select_EN,IF(Q166=No_Select_FR,No_Select_EN,"")) ->  | AI166: =IF(Q166=Yes_Select_EN,Yes_Select_FR,IF(Q166=No_Select_EN,No_Select_FR,"")) -> 
C167: Yes | D167: =D166 -> FALSE | H167: FALSE
A168: Q | C168: Yes | D168: =AND(D146,Hospitality, Hospitality_In_Residence=Yes_Select) -> FALSE | E168: Yes | G168: Yes | H168: FALSE | I168: =Q168 -> 0 | K168: =IF(AND(D168,Hospitality_In_Residence_Justification=0),TRUE,FALSE) -> FALSE | M168: Ü | N168: =IF(Language=French_Select,AE168,AD168) -> Fournir la justification pour l'accueil offerte dans la résidence d'un employé fédéral. (Max. 250 caractères) | AD168: Provide the justification for hospitality offered at the residence of a federal employee. (Max. 250 characters) | AE168: Fournir la justification pour l'accueil offerte dans la résidence d'un employé fédéral. (Max. 250 caractères)
C169: Yes | D169: =D168 -> FALSE | H169: FALSE
A170: Q | C170: Yes | D170: =AND(D146,SUM(Hospitality_Breakfast_Tcost)>0) -> FALSE | E170: Yes | G170: Yes | H170: FALSE | I170: =Q170 -> 0 | K170: =IF(AND(D170,Hospitality_BreakFast_Justification=0),TRUE,FALSE) -> FALSE | M170: Ü | N170: =IF(Language=French_Select,AE170,AD170) -> Le petit déjeuner doit être offert uniquement dans des circonstances exceptionelles. Veuillez expliquer comment elle est une circonstance exceptionelle. (Max. 250 caractères) | AD170: Breakfast should only be offered in exceptional circumstances. Please justify how it is an exceptional circumstance. (Max. 250 characters) | AE170: Le petit déjeuner doit être offert uniquement dans des circonstances exceptionelles. Veuillez expliquer comment elle est une circonstance exceptionelle. (Max. 250 caractères)
C171: Yes | D171: =D170 -> FALSE | H171: FALSE
A172: Q | C172: Yes | D172: =AND(D146,Hospitality_Other>0) -> FALSE | G172: Yes | H172: FALSE | I172: =SUM(Hospitality_Others_TotalCost) -> 0 | M172: Ü | N172: =IF(Language=French_Select,AE172,AD172) -> Montant pour autre forme régulière d'accueil (champ calculé) | Q172: =Hospitality_Other -> 0 | AD172: Amount for other form of regular hospitality (Calculated field) | AE172: Montant pour autre forme régulière d'accueil (champ calculé)
C173: Yes | D173: =D172 -> FALSE | H173: FALSE
A174: Q | C174: Yes | D174: =D173 -> FALSE | E174: Yes | G174: Yes | H174: FALSE | I174: =Q174 -> 0 | K174: =IF(AND(D174,Hospitality_Other_Justification=0),TRUE,FALSE) -> FALSE | M174: Ü | N174: =IF(Language=French_Select,AE174,AD174) -> Fournir une justification détaillée pour les autres formes régulières d'accueil (ex. Petite marque d'appréciation, offrandes cérémonielles, etc.) (Max. 250 caractères) | AD174: Provide a detailed justification for offering other forms of regular hospitality (ex: small tokens of appreciation, ceremonial offerings, etc.) (Max. 250 characters) | AE174: Fournir une justification détaillée pour les autres formes régulières d'accueil (ex. Petite marque d'appréciation, offrandes cérémonielles, etc.) (Max. 250 caractères)
C175: Yes | D175: =D174 -> FALSE | H175: FALSE
A176: Q | C176: Yes | D176: =AND(D146,Hospitality_Other_Exceptional>0) -> FALSE | G176: Yes | H176: FALSE | I176: =SUM(Hospitality_Others_Exceptional_TotalCost) -> 0 | M176: Ü | N176: =IF(Language=French_Select,AE176,AD176) -> Montant pour autre forme exceptionnelle d'accueil (champ calculé) | Q176: =Hospitality_Other_Exceptional -> 0 | AD176: Amount for exceptional form of hospitality (Calculated field) | AE176: Montant pour autre forme exceptionnelle d'accueil (champ calculé)
C177: Yes | D177: =D176 -> FALSE | H177: FALSE
A178: Q | C178: Yes | D178: =D177 -> FALSE | E178: Yes | G178: Yes | H178: FALSE | I178: =Q178 -> 0 | K178: =IF(AND(D178,Other_Exceptional_Justification=0),TRUE,FALSE) -> FALSE | M178: Ü | N178: =IF(Language=French_Select,AE178,AD178) -> Fournir le détail et la justification pour l'autre forme exceptionnelle d'accueil. (Max. 250 caractères) | AD178: Provide the details and justification for the exceptional form of hospitality. (Max. 250 characters) | AE178: Fournir le détail et la justification pour l'autre forme exceptionnelle d'accueil. (Max. 250 caractères)
C179: Yes | D179: =D178 -> FALSE | H179: FALSE
A180: Q | C180: Yes | D180: =D157 -> FALSE | H180: FALSE | N180: =IF(Language=French_Select,AE180,AD180) -> Cliquez ici pour compléter la grille d'estimation des frais d'accueil | AD180: Click here to complete the estimated hospitality cost worksheet | AE180: Cliquez ici pour compléter la grille d'estimation des frais d'accueil
C181: Yes | D181: =D180 -> FALSE | H181: FALSE
A182: Q | C182: Yes | D182: =D181 -> FALSE | H182: FALSE | I182: =ROUND(SUM(Hospitality_Breakfast_Tcost)+SUM(Hospitality_Morning_Break_Tcost)+SUM(Hospitality_Lunch_Tcost)+SUM(Hospitality_Afternoon_Break_Tcost)+SUM(Hospitality_Dinner_Tcost)+SUM(Hospitality_Reception_Tcost)+SUM(Hospitality_Alcohol_Tcost)+SUM(Hospitality_Others_TotalCost)+SUM(Hospitality_Others_Exceptional_TotalCost),2) -> 0 | N182: =IF(Language=French_Select,AE182,AD182) -> $ Coût total estimé de l'accueil (champ calculé) | Q182: =Hospitality_Total_Cost -> 0 | AD182: $ Total Estimated Hospitality Cost (Calculated field) | AE182: $ Coût total estimé de l'accueil (champ calculé)
C183: Yes | D183: =D182 -> FALSE | H183: FALSE
A184: Q | C184: Yes | D184: =AND(CompleteInfo,OR(Conference, UseTool=Yes_Select)) -> FALSE | H184: FALSE | J184: =AND(Conference_Included=Yes_Select,OR(btnConfParticipation=1,btnConfParticipation=2,AND(btnConfParticipation=3,OR(btnConfList=2,btnConfList=3)))) -> FALSE | N184: =IF(Language=French_Select,AE184,AD184) -> Conférence ou Formation | AD184: Conference or Training | AE184: Conférence ou Formation
C185: Yes | D185: =D184 -> FALSE | H185: FALSE
A186: Q | C186: Yes | D186: =AND(D184,NOT(Conference),NOT(Training)) -> FALSE | E186: Yes | G186: Yes | H186: FALSE | I186: =Q186 -> 0 | J186: =OR(AND(btnConfParticipation=3,btnConfList=1),btnTypeEventOper=7) -> FALSE | K186: =IF(AND(D186,Conference_Fees=0),TRUE,FALSE) -> FALSE | M186: Ü | N186: =IF(Language=French_Select,AE186,AD186) -> Avez-vous des frais de conférence ou de formation inclus dans votre activité? | AD186: Do you have any Conference or Training fees included in your activity? | AE186: Avez-vous des frais de conférence ou de formation inclus dans votre activité? | AH186: =IF(Q186=Yes_Select_FR,Yes_Select_EN,IF(Q186=No_Select_FR,No_Select_EN,"")) ->  | AI186: =IF(Q186=Yes_Select_EN,Yes_Select_FR,IF(Q186=No_Select_EN,No_Select_FR,"")) -> 
C187: Yes | D187: =D186 -> FALSE | H187: FALSE
A188: Q | C188: Yes | D188: =AND(D184,OR(Conference_Fees=Yes_Select,Conference,Training)) -> FALSE | E188: Yes | F188: 0 | G188: Yes | H188: FALSE | I188: =Q188 -> 0 | K188: FALSE | M188: Ü | N188: =IF(Language=French_Select,AE188,AD188) -> Quel est le coût de cette conférence ou formation? | Q188: 0 | Y188: =Conference_Delegation_Level -> 0 | AD188: What are the fees for this conference or training? | AE188: Quel est le coût de cette conférence ou formation?
C189: Yes | D189: =D188 -> FALSE | H189: FALSE
A190: Q | C190: Yes | D190: =AND(D188,Conference) -> FALSE | E190: Yes | G190: Yes | H190: FALSE | I190: =Q190 -> 0 | K190: =IF(AND(D190,Conference_ADM_Attend=0),TRUE,FALSE) -> FALSE | M190: Ü | N190: =IF(Language=French_Select,AE190,AD190) -> Est-ce que le Sous-ministre adjoint participe à la conférence? | AD190: Will the Assistant Deputy Minister attend the conference? | AE190: Est-ce que le Sous-ministre adjoint participe à la conférence? | AH190: =IF(Q190=Yes_Select_FR,Yes_Select_EN,IF(Q190=No_Select_FR,No_Select_EN,"")) ->  | AI190: =IF(Q190=Yes_Select_EN,Yes_Select_FR,IF(Q190=No_Select_EN,No_Select_FR,"")) -> 
C191: Yes | D191: =D190 -> FALSE | H191: FALSE
A192: Q | C192: Yes | D192: FALSE | E192: Yes | G192: Yes | H192: FALSE | I192: =Q192 -> 0 | K192: =IF(AND(D192,Conference_DM_Attend=0),TRUE,FALSE) -> FALSE | M192: Ü | N192: =IF(Language=French_Select,AE192,AD192) -> Est-ce que le Sous-ministre participe à la conférence? | AD192: Will the Deputy Minister attend the conference? | AE192: Est-ce que le Sous-ministre participe à la conférence? | AH192: =IF(Q192=Yes_Select_FR,Yes_Select_EN,IF(Q192=No_Select_FR,No_Select_EN,"")) ->  | AI192: =IF(Q192=Yes_Select_EN,Yes_Select_FR,IF(Q192=No_Select_EN,No_Select_FR,"")) -> 
C193: Yes | D193: FALSE | H193: FALSE
A194: Q | C194: Yes | D194: FALSE | E194: Yes | G194: Yes | H194: FALSE | I194: =Q194 -> 0 | K194: =IF(AND(D194,Conference_Sponsorship=0),TRUE,FALSE) -> FALSE | M194: Ü | N194: =IF(Language=French_Select,AE194,AD194) -> Est-ce que vous parrainez une conférence (en partie ou en totalité)? | AD194: Are you sponsoring a conference (in part or in full)? | AE194: Est-ce que vous parrainez une conférence (en partie ou en totalité)? | AH194: =IF(Q194=Yes_Select_FR,Yes_Select_EN,IF(Q194=No_Select_FR,No_Select_EN,"")) ->  | AI194: =IF(Q194=Yes_Select_EN,Yes_Select_FR,IF(Q194=No_Select_EN,No_Select_FR,"")) -> 
C195: Yes | D195: =D194 -> FALSE | H195: FALSE
A196: Q | C196: Yes | D196: =(Conference_Fees=Yes_Select) -> FALSE | H196: FALSE | I196: =Q196 -> 0 | N196: =IF(Language=French_Select,AE196,AD196) -> $ Coût total estimé de la conférence ou formation | Q196: =Conference_Cost -> 0 | AD196: $ Total Estimated Conference or Training Cost | AE196: $ Coût total estimé de la conférence ou formation
C197: Yes | D197: =D196 -> FALSE | H197: FALSE
A198: Q | C198: Yes | D198: =AND(CompleteInfo,OR(Activity_is_Event,UseTool=Yes_Select)) -> FALSE | H198: FALSE | N198: =IF(Language=French_Select,AE198,AD198) -> Autres coûts | AD198: Other Costs | AE198: Autres coûts
C199: Yes | D199: =D198 -> FALSE | H199: FALSE
A200: Q | C200: Yes | D200: =D199 -> FALSE | H200: FALSE | N200: =IF(Language=French_Select,AE200,AD200) -> Si des dépenses parmis les suivantes sont incluses dans votre activité, indiquez les détails, les montants et les justifications pour chacune. (Max. 250 caractères) Inclure dans les justifications l'assurance que le coût le plus économique a été obtenu et comment. | Z200: =OtherCosts_Delegation_Level -> 0 | AD200: If you have any of the following expenses, provide the details, the amount and justification for each. (Max. 250 characters) Include in the justification the assurance that the most economical rate was obtained and how. | AE200: Si des dépenses parmis les suivantes sont incluses dans votre activité, indiquez les détails, les montants et les justifications pour chacune. (Max. 250 caractères) Inclure dans les justifications l'assurance que le coût le plus économique a été obtenu et comment.
C201: Yes | D201: FALSE | H201: FALSE
A202: Q | C202: Yes | D202: FALSE | E202: Yes | F202: 0 | G202: Yes | H202: FALSE | I202: =Q202 -> 0 | M202: Ü | N202: =IF(Language=French_Select,AE202,AD202) -> Location de salle | Q202: 0 | U202: Ü | AD202: Room Rental | AE202: Location de salle
C203: Yes | D203: FALSE | E203: Yes | G203: Yes | H203: FALSE | I203: =V202 -> 0 | K203: =IF(AND(D203,Other_Room_Justification=0,NOT(Other_Room_Cost=0)),TRUE,FALSE) -> FALSE
... 55 more rows

Sheet Memo Labor (hidden)
B1: MEMORANDUM NOTE DE SERVICE
B2: To | D2: =IF(ISERROR(VLOOKUP(Event_Delegation_Level,Delegation!A2:C14,2,FALSE)),0,UPPER(VLOOKUP(Event_Delegation_Level,Delegation!A2:C14,2,FALSE))) -> NO ADDITIONAL AUTHORIZATION REQUIRED | G2: Classification | I2: UNCLASSIFIED
B3: Pour | G3: Cote sécuritaire
G5: Your File
G6: Votre référence
G8: Our File | I8: =IF(WebCIMS_ID=0,"WebCIMS",WebCIMS_ID) -> WebCIMS
B9: From | G9: Notre référence
B10: Origine
G11: Telephone Number
G12: N° de téléphone
G14: Date
B16: Subject | D16: =IF(Activity_is_Event,"EVENT PRE-APPROVAL REQUEST", "EXEMPTED EVENT PRE-APPROVAL REQUEST") -> EXEMPTED EVENT PRE-APPROVAL REQUEST
B17: Objet
B19: ISSUE
B21: =" This is to seek your pre-approval for costs of " & DOLLAR(Event_Total_Cost) &", associated with the event " & Activity_Title & " in " &Activity_Location& IF(UNKNOWN_DATE,".",IF(Activity_To_Date-Activity_From_Date=0," on " &DAY(Activity_From_Date)&"-"&MONTH(Activity_From_Date)&"-"&YEAR(Activity_From_Date)& "."," from "&DAY(Activity_From_Date)&"-"&MONTH(Activity_From_Date)&"-"&YEAR(Activity_From_Date)&" to "&DAY(Activity_To_Date)&"-"&MONTH(Activity_To_Date)&"-"&YEAR(Activity_To_Date)&".")) -> This is to seek your pre-approval for costs of $0.00, associated with the event 0 in 0 on 22-10-2021.
B23: =IF(TRUE," "&IF(ISERROR(VLOOKUP(Event_Delegation_Level,Delegation!A4:B14,2,FALSE)),0,VLOOKUP(Event_Delegation_Level,Delegation!A4:B14,2,FALSE))&" approval is required in cases where " & Memo_Text_En &" I confirm that the proposed expenditures provide value for money and the most economical options have been selected.","") -> 
A25: =AND(Hospitality_Expenses=Yes_Select,NOT(Hospitality_Total_Cost=0)) -> FALSE | B25: =IF(TRUE,"Hospitality is included in this request: All hospitality expenses associated with this event, estimated to be "&DOLLAR(Hospitality_Total_Cost)&", have been minimized to the extent possible. The hospitality is in accordance with Treasury Board and departmental policies.","") -> Hospitality is included in this request: All hospitality expenses associated with this event, estimated to be $0.00, have been minimized to the extent possible. The hospitality is in accordance with Treasury Board and departmental policies.
B27: * Note: Until event approval has been given by the appropriate delegated authority, no components of the events will be initiated or procured that would result in the establishment of a liability for the department (i.e. travel, hospitality, room or equipment rentals, etc.)
B29: The event request conforms to all department and TB policies and complies with the amended Directive on Travel, Hospitality, Conference and Event Expenditures (THCEE), as per the attached THCEE Authorization Form. Please note that the detailed information can be found in the attached forms.
B31: RECOMMENDATION:
B33: =" Your approval is requested for " & DOLLAR(Event_Total_Cost) &" related to this event. I recommend your approval." -> Your approval is requested for $0.00 related to this event. I recommend your approval.
B35: Should you agree with this proposal, please sign the attached form entitled “Travel, Hospitality, Conference and Event Authorization”.

Sheet Note Travail (hidden)
B1: MEMORANDUM NOTE DE SERVICE
B2: To | D2: =IF(ISERROR(VLOOKUP(Event_Delegation_Level,Delegation!A2:C14,3,FALSE)),0,UPPER(VLOOKUP(Event_Delegation_Level,Delegation!A2:C14,3,FALSE))) -> AUCUNE AUTORISATION SUPPLÉMENTAIRE NÉCESSAIRE. | G2: Classification | I2: UNCLASSIFIED
B3: Pour | G3: Cote sécuritaire
G5: Your File
G6: Votre référence
G8: Our File | I8: =IF(WebCIMS_ID=0,"WebCIMS",WebCIMS_ID) -> WebCIMS
B9: From | G9: Notre référence
B10: Origine
G11: Telephone Number
G12: N° de téléphone
G14: Date
B16: Subject | D16: =IF(Activity_is_Event,"DEMANDE D’APPROBATION PRÉALABLE DES FRAIS D’ÉVÉNEMENT", "DEMANDE D’APPROBATION PRÉALABLE DES FRAIS D’ÉVÉNEMENT EXEMPTÉ") -> DEMANDE D’APPROBATION PRÉALABLE DES FRAIS D’ÉVÉNEMENT EXEMPTÉ
B17: Objet
B19: ENJEU
B21: =" La présente vise à obtenir votre approbation préalable des frais d’événement de " & DOLLAR(Event_Total_Cost) &", qui seront dans le cadre de " & Activity_Title_French & " à " &Activity_Location& IF(UNKNOWN_DATE,".",IF(Activity_To_Date-Activity_From_Date=0," le " &DAY(Activity_From_Date)&"-"&MONTH(Activity_From_Date)&"-"&YEAR(Activity_From_Date) & "."," du "&DAY(Activity_From_Date)&"-"&MONTH(Activity_From_Date)&"-"&YEAR(Activity_From_Date)&" au "&DAY(Activity_To_Date)&"-"&MONTH(Activity_To_Date)&"-"&YEAR(Activity_To_Date)&".")) -> La présente vise à obtenir votre approbation préalable des frais d’événement de $0.00, qui seront dans le cadre de 0 à 0 le 22-10-2021.
B23: =IF(TRUE," L’approbation du "&IF(ISERROR(VLOOKUP(Event_Delegation_Level,Delegation!A4:C14,3,FALSE)),0,VLOOKUP(Event_Delegation_Level,Delegation!A4:C14,3,FALSE))&" est requise dans les circonstances où " & Memo_Text_FR &" Je confirme que les dépenses proposées contribuent à l’optimisation des ressources et que les solutions les plus économiques ont été choisies.","") -> 
A25: =AND(Hospitality_Expenses=Yes_Select,NOT(Hospitality_Total_Cost=0)) -> FALSE | B25: =IF(TRUE,"Des frais d’accueil sont inclus dans cette demande: Tous les frais d'accueil liés à cet événement, estimée à "&DOLLAR(Hospitality_Total_Cost)&", ont été minimisés dans la mesure du possible. Les frais d’accueil sont en accord avec le Conseil du Trésor et les politiques ministérielles.","") -> Des frais d’accueil sont inclus dans cette demande: Tous les frais d'accueil liés à cet événement, estimée à $0.00, ont été minimisés dans la mesure du possible. Les frais d’accueil sont en accord avec le Conseil du Trésor et les politiques ministérielles.
B27: *Remarque: Tant que l'approbation n’a pas été donné par le pouvoir délégué approprié, aucun composant des événements sera initié ou acquis qui se traduirait par la mise en place d'un passif pour le Ministère (c. location de déplacement, de représentation, la pièce ou l'équipement, etc.)
B29: La demande est conforme à toutes les politiques du Ministère et du Conseil du Trésor ainsi qu’aux modifications à la Directive sur les dépenses de voyages, d'accueil, de conférences et d'événements (DVACÉ), selon le formulaire d’autorisation DVACÉ ci-joint. Veuillez noter que vous trouverez les informations détaillées dans les formulaires attachés.
B31: RECOMMANDATION :
B33: =" Votre approbation est demandée pour des frais de " & DOLLAR(Event_Total_Cost) &" relatifs à cet événement. Je recommande votre approbation." -> Votre approbation est demandée pour des frais de $0.00 relatifs à cet événement. Je recommande votre approbation.
B35: Si vous approuvez la présente proposition, veuillez signer le formulaire ci-joint intitulé «Autorisation de dépenses de voyages, d’accueil, de conférences et d’événements».

Sheet Memo ESDC-SC (hidden)
B4: =IF(WebCIMS_ID=0,"WebCIMS____________________",WebCIMS_ID) -> WebCIMS____________________
B5: UNCLASSIFIED
B7: ="MEMORANDUM TO THE " &IF(ISERROR(VLOOKUP(Event_Delegation_Level,Delegation!A4:B14,2,FALSE)),0,UPPER(VLOOKUP(Event_Delegation_Level,Delegation!A4:B14,2,FALSE))) -> MEMORANDUM TO THE 0
B9: =IF(Activity_is_Event,"EVENT PRE-APPROVAL REQUEST FOR THE", "EXEMPTED EVENT PRE-APPROVAL REQUEST FOR THE") -> EXEMPTED EVENT PRE-APPROVAL REQUEST FOR THE
B10: =IF(Activity_Title=0,"",UPPER(Activity_Title)) -> 
B11: =IF(UNKNOWN_DATE,"",IF(Activity_To_Date-Activity_From_Date=0,DAY(Activity_From_Date)&"-"&MONTH(Activity_From_Date)&"-"&YEAR(Activity_From_Date),"From "&DAY(Activity_From_Date)&"-"&MONTH(Activity_From_Date)&"-"&YEAR(Activity_From_Date)&" To "&DAY(Activity_To_Date)&"-"&MONTH(Activity_To_Date)&"-"&YEAR(Activity_To_Date))) -> 22-10-2021
B13: (FOR SIGNATURE)
B14: SUMMARY
B16: ="• This is to seek your pre-approval for costs of " & DOLLAR(Event_Total_Cost) &", associated with the event " & Activity_Title & " in " &Activity_Location& IF(UNKNOWN_DATE,".",IF(Activity_To_Date-Activity_From_Date=0," on " &DAY(Activity_From_Date)&"-"&MONTH(Activity_From_Date)&"-"&YEAR(Activity_From_Date)& "."," from "&DAY(Activity_From_Date)&"-"&MONTH(Activity_From_Date)&"-"&YEAR(Activity_From_Date)&" to "&DAY(Activity_To_Date)&"-"&MONTH(Activity_To_Date)&"-"&YEAR(Activity_To_Date)&".")) -> • This is to seek your pre-approval for costs of $0.00, associated with the event 0 in 0 on 22-10-2021.
B18: =IF(TRUE,"• "&IF(ISERROR(VLOOKUP(Event_Delegation_Level,Delegation!A4:B14,2,FALSE)),0,VLOOKUP(Event_Delegation_Level,Delegation!A4:B14,2,FALSE))&" approval is required in cases where " & Memo_Text_En &" I confirm that the proposed expenditures provide value for money and the most economical options have been selected.","") -> 
A19: =Activity_is_Event -> FALSE
A20: =AND(Hospitality_Expenses=Yes_Select,NOT(Hospitality_Total_Cost=0)) -> FALSE | B20: =IF(TRUE,"Hospitality is included in this request: • All hospitality expenses associated with this event, estimated to be "&DOLLAR(Hospitality_Total_Cost)&", have been minimized to the extent possible. The hospitality is in accordance with Treasury Board and departmental policies.","") -> Hospitality is included in this request: • All hospitality expenses associated with this event, estimated to be $0.00, have been minimized to the extent possible. The hospitality is in accordance with Treasury Board and departmental policies.
A21: =AND(Hospitality_Expenses=Yes_Select,NOT(Hospitality_Total_Cost=0)) -> FALSE
B22: * Note: Until event approval has been given by the appropriate delegated authority, no components of the events will be initiated or procured that would result in the establishment of a liability for the department (i.e. travel, hospitality, room or equipment rentals, etc.)
B24: The event request conforms to all department and TB policies and complies with the amended Directive on Travel, Hospitality, Conference and Event Expenditures (THCEE), as per the attached THCEE Authorization Form. Please note that the detailed information can be found in the attached forms.
B26: RECOMMENDATION:
B28: ="Your approval is requested for " & DOLLAR(Event_Total_Cost) &" related to this event. I recommend your approval." -> Your approval is requested for $0.00 related to this event. I recommend your approval.
B30: Should you agree with this proposal, please sign the attached form entitled “Travel, Hospitality, Conference and Event Authorization”.
A32: =Event_Delegation_Level=5 -> FALSE | B32: =IF(TRUE,"☐ I would like an oral briefing ☐ I would like ____________________ of my staff to be briefed. ☐ No briefing required ☐ This request is rejected","") -> ☐ I would like an oral briefing ☐ I would like ____________________ of my staff to be briefed. ☐ No briefing required ☐ This request is rejected
B36: Signature | G36: Date
B39: Name

Sheet Note EDSC-SC (hidden)
B4: =IF(WebCIMS_ID=0,"WebCIMS____________________",WebCIMS_ID) -> WebCIMS____________________
B5: NON CLASSIFIÉ
B7: ="NOTE À L’INTENTION DU " &IF(ISERROR(VLOOKUP(Event_Delegation_Level,Delegation!A4:C14,3,FALSE)),0,UPPER(VLOOKUP(Event_Delegation_Level,Delegation!A4:C14,3,FALSE))) -> NOTE À L’INTENTION DU 0
B9: =IF(Activity_is_Event,"DEMANDE D’APPROBATION PRÉALABLE DES FRAIS D’ÉVÉNEMENT", "DEMANDE D’APPROBATION PRÉALABLE DES FRAIS D’ÉVÉNEMENT EXEMPTÉ") -> DEMANDE D’APPROBATION PRÉALABLE DES FRAIS D’ÉVÉNEMENT EXEMPTÉ
B10: =IF(Activity_Title=0,"",UPPER(Activity_Title_French)) -> 
B11: =IF(UNKNOWN_DATE,"",IF(Activity_To_Date-Activity_From_Date=0,DAY(Activity_From_Date)&"-"&MONTH(Activity_From_Date)&"-"&YEAR(Activity_From_Date),"From "&DAY(Activity_From_Date)&"-"&MONTH(Activity_From_Date)&"-"&YEAR(Activity_From_Date)&" To "&DAY(Activity_To_Date)&"-"&MONTH(Activity_To_Date)&"-"&YEAR(Activity_To_Date))) -> 22-10-2021
B13: (POUR APPROBATION)
B14: SOMMAIRE
B16: ="• La présente vise à obtenir votre approbation préalable des frais d’événement de " & DOLLAR(Event_Total_Cost) &", qui seront encourus dans le cadre de " & Activity_Title_French & " à " &Activity_Location& IF(UNKNOWN_DATE,".",IF(Activity_To_Date-Activity_From_Date=0," le " &DAY(Activity_From_Date)&"-"&MONTH(Activity_From_Date)&"-"&YEAR(Activity_From_Date) & "."," du "&DAY(Activity_From_Date)&"-"&MONTH(Activity_From_Date)&"-"&YEAR(Activity_From_Date)&" au "&DAY(Activity_To_Date)&"-"&MONTH(Activity_To_Date)&"-"&YEAR(Activity_To_Date)&".")) -> • La présente vise à obtenir votre approbation préalable des frais d’événement de $0.00, qui seront encourus dans le cadre de 0 à 0 le 22-10-2021.
B18: =IF(TRUE,"• L’approbation du "&IF(ISERROR(VLOOKUP(Event_Delegation_Level,Delegation!A4:C14,3,FALSE)),0,VLOOKUP(Event_Delegation_Level,Delegation!A4:C14,3,FALSE))&" est requise dans les circonstances où " & Memo_Text_FR &" Je confirme que les dépenses proposées contribuent à l’optimisation des ressources et que les solutions les plus économiques ont été choisies.","") -> 
A19: =Activity_is_Event -> FALSE
A20: =AND(Hospitality_Expenses=Yes_Select,NOT(Hospitality_Total_Cost=0)) -> FALSE | B20: =IF(NOT(Hospitality_Total_Cost=0),"Des frais d’accueil sont inclus dans cette demande: • Tous les frais d'accueil liés à cet événement, estimée à "&TEXT(Hospitality_Total_Cost,"#,###,###.00$")&", ont été minimisés dans la mesure du possible. Les frais d’accueil sont en accord avec le Conseil du Trésor et les politiques ministérielles.","") -> 
A21: =AND(Hospitality_Expenses=Yes_Select,NOT(Hospitality_Total_Cost=0)) -> FALSE
B22: * Remarque: Tant que l'approbation n’a pas été donné par le pouvoir délégué approprié, aucun composant des événements sera initié ou acquis qui se traduirait par la mise en place d'un passif pour le Ministère (c. location de déplacement, de représentation, la pièce ou l'équipement, etc.)
B24: La demande est conforme à toutes les politiques du Ministère et du Conseil du Trésor ainsi qu’aux modifications à la Directive sur les dépenses de voyages, d'accueil, de conférences et d'événements (DVACÉ), selon le formulaire d’autorisation DVACÉ ci-joint. Veuillez noter que vous trouverez les informations détaillées dans les formulaires attachés.
B26: RECOMMANDATION :
B28: ="Votre approbation est demandée pour des frais de " & TEXT(Hospitality_Total_Cost,"#,###,###.00$") &" relatifs à cet événement. Je recommande votre approbation." -> Votre approbation est demandée pour des frais de .00$ relatifs à cet événement. Je recommande votre approbation.
B30: Si vous approuvez la présente proposition, veuillez signer le formulaire ci-joint intitulé «Autorisation de dépenses de voyages, d’accueil, de conférences et d’événements».
A32: =Event_Delegation_Level=5 -> FALSE | B32: =IF(TRUE,"☐ Je souhaite recevoir une séance d’information ☐ Je souhaite que _____________ de mon cabinet reçoive une séance d’information. ☐ Aucune séance d’information requise ☐ Cette demande est rejetée ","") -> ☐ Je souhaite recevoir une séance d’information ☐ Je souhaite que _____________ de mon cabinet reçoive une séance d’information. ☐ Aucune séance d’information requise ☐ Cette demande est rejetée
B36: Signature | G36: Date
B39: Nom

Sheet Authorisation - Autorisation (hidden)
Q2: =IF(WebCIMS_ID=0," Numéro WebCIMS number: "," Numéro WebCIMS number:" & CHAR(10) &WebCIMS_ID) -> Numéro WebCIMS number:
B5: TRAVEL, HOSPITALITY, CONFERENCE AND EVENT EXPENDITURE AUTHORISATION | P5: =System!AC1 -> V 8-49 | Q5: ="Project Code / Code du projet:" -> Project Code / Code du projet:
B6: AUTORISATION DE DÉPENSES DE VOYAGES, D’ACCUEIL, DE CONFÉRENCES ET D’ÉVÉNEMENTS
B8: REASON FOR APPROVAL - RAISON POUR APPROBATION
B9: =IF(Activity_is_Event,"☒ ", "☐ ")& "Event - Événement" -> ☐ Event - Événement
B10: =IF(NOT(Activity_is_Event),"☒ ", "☐ ")& "Operational or Training Activity – Activité opérationnelle ou de formation" -> ☒ Operational or Training Activity – Activité opérationnelle ou de formation
B11: Event – Événement
B12: =IF(btnTypeEventOper=1,"☒ ", "☐ ")& "Management & Staff Retreats / Journée de réflexion de la direction et du personnel" -> ☐ Management & Staff Retreats / Journée de réflexion de la direction et du personnel
B13: =IF(btnTypeEventOper=2,"☒ ", "☐ ")& "Award and Recognition Ceremony / Cérémonie de remise de prix et de reconnaissance" -> ☐ Award and Recognition Ceremony / Cérémonie de remise de prix et de reconnaissance
B14: =IF(btnTypeEventOper=3,"☒ ", "☐ ")& "Departmental or Governmental Celebration / Célébration ministérielle ou gouvernementale" -> ☐ Departmental or Governmental Celebration / Célébration ministérielle ou gouvernementale
B15: =IF(AND(Activity_is_Event,Conference),"☒ ", "☐ ")& "Certain Conference Participation / Participation à certaines conférence" -> ☐ Certain Conference Participation / Participation à certaines conférence
B16: =IF(btnTypeEventOper=4,"☒ ", "☐ ")& CONCATENATE("All meetings or gatherings of public servants, regardless of the purpose, that are held outside the headquarters area (16km radius) of the majority of the departmental participants and for which the department has the discretion ","to select the venue and chooses to hold the activity in a non-government facility /"," Toutes les réunions ou rassemblements de fonctionnaires, peu importe l’objet, qui se tiennent à l’extérieur de la zone d’affectation (rayon de 16 km) de la ","majorité des participants ministériels et pour lesquelles le ministère a le pouvoir discrétionnaire de choisir l’endroit et choisit de tenir l’activité dans un établissement non gouvernemental") -> ☐ All meetings or gatherings of public servants, regardless of the purpose, that are held outside the headquarters area (16km radius) of the majority of the departmental participants and for which the department has the discretion to select the venue and chooses to hold the activity in a non-government facility / Toutes les réunions ou rassemblements de fonctionnaires, peu importe l’objet, qui se tiennent à l’extérieur de la zone d’affectation (rayon de 16 km) de la majorité des participants ministériels et pour lesquelles le ministère a le pouvoir discrétionnaire de choisir l’endroit et choisit de tenir l’activité dans un établissement non gouvernemental
B17: =IF(btnTypeEventOper=5,"☒ ","☐ ")&"Other non-operational activity / Autre activité non-opérationnelle" -> ☐ Other non-operational activity / Autre activité non-opérationnelle
B18: =IF(AND(Activity_is_Event,Event_Total_Cost<=15000),"☒ ", "☐ ")& "Total $15,000 or less Total 15 000$ ou moins" -> ☐ Total $15,000 or less Total 15 000$ ou moins | G18: =IF(AND(Activity_is_Event,Event_Total_Cost>15000,Event_Total_Cost<=25000),"☒ ", "☐ ")& "Total over $15,000 to $25,000 Total excède 15 000$ et 25 000$*" -> ☐ Total over $15,000 to $25,000 Total excède 15 000$ et 25 000$* | M18: =IF(AND(Activity_is_Event,Event_Total_Cost>25000,Event_Total_Cost<=50000),"☒ ", "☐ ")& "Total over $25,000 to $50,000* Total excède 25 000$ à 50 000$*" -> ☐ Total over $25,000 to $50,000* Total excède 25 000$ à 50 000$* | Q18: =IF(AND(Activity_is_Event,Event_Total_Cost>50000),"☒ ", "☐ ")& "Total over $50,000* Total excède 50 000$*" -> ☐ Total over $50,000* Total excède 50 000$*
B20: * Please note that a memo is required for the approval of the Minister, Deputy Minister or Chief Operating Officer * Prendre note qu’un mémo est requis pour l’approbation du Ministre, Sous-Ministre ou Chef de l’exploitation
B21: Hospitality - Accueil
B22: =IF(AND(Hospitality,SUM(Meals_Exceeding_Standard)=0),"☒ ", "☐ ")& "Below standard cost per person Moins que le coût standard par personne" -> ☐ Below standard cost per person Moins que le coût standard par personne | I22: =IF(AND(Hospitality,SUM(Meals_Exceeding_Standard)>0,SUM(Meals_Exceeding_Maximum)=0), "☒ ", "☐ ")& "Over standard cost per person Excède le coût standard par personne" -> ☐ Over standard cost per person Excède le coût standard par personne | P22: =IF(AND(Hospitality,SUM(Meals_Exceeding_Maximum)>0),"☒ ", "☐ ")& "Over maximum cost per person Excède le coût maximum par personne" -> ☐ Over maximum cost per person Excède le coût maximum par personne
B23: =IF(AND(Hospitality,Hospitality_Total_Cost>0,Hospitality_Total_Cost<=1000),"☒ ", "☐ ")& "Total $1,000 or less Total 1 000$ ou moins" -> ☐ Total $1,000 or less Total 1 000$ ou moins | F23: =IF(AND(Hospitality,Hospitality_Total_Cost>1000,Hospitality_Total_Cost<=2000),"☒ ", "☐ ")& "Total over $1,000 to $2,000 Total excède 1 000$ à 2 000$" -> ☐ Total over $1,000 to $2,000 Total excède 1 000$ à 2 000$ | K23: =IF(AND(Hospitality,Hospitality_Total_Cost>2000,Hospitality_Total_Cost<=3000),"☒ ", "☐ ")& "Total over $2,000 to $3,000 Total excède 2 000$ à 3 000$" -> ☐ Total over $2,000 to $3,000 Total excède 2 000$ à 3 000$ | N23: =IF(AND(Hospitality,Hospitality_Total_Cost>3000,Hospitality_Total_Cost<=10000),"☒ ", "☐ ")& "Total over $3,000 to $10,000 Total excède 3 000$ à 10 000$" -> ☐ Total over $3,000 to $10,000 Total excède 3 000$ à 10 000$ | R23: =IF(AND(Hospitality,Hospitality_Total_Cost>10000),"☒ ", "☐ ")& "Total over $10,000 Total excède 10 000$" -> ☐ Total over $10,000 Total excède 10 000$
B24: Travel - Voyage
B25: =IF(AND(Travel_Expenses=Yes_Select,OR(Travel_Type=Travel_Domestic_Select,Travel_Type=Travel_Local_Select)),"☒ ", "☐ ")& " Domestic or Local / Domestique ou local" -> ☐ Domestic or Local / Domestique ou local
B26: =IF(AND(Travel_Expenses=Yes_Select,Travel_Type=Travel_International_Select,Travel_On_Plan=Yes_Select),"☒ ", "☐ ")& " International (Included in the International Travel Plan / Inclus dans le plan des voyages internationaux)" -> ☐ International (Included in the International Travel Plan / Inclus dans le plan des voyages internationaux)
B27: =IF(AND(Travel_Expenses=Yes_Select,Travel_Type=Travel_International_Select,NOT(Travel_On_Plan=Yes_Select)),"☒ ", "☐ ")& " International (Ad hoc request / Demande Ad hoc)" -> ☐ International (Ad hoc request / Demande Ad hoc)
B28: DETAILS & COMMENTS – DÉTAILS ET COMMENTAIRES
B29: Title of the activity (no acronyms) / Titre de l'activité (aucun acronyme) :
B30: =IF(Activity_Title=0,"",Activity_Title) -> 
B31: Nature, Reason and Objective / Nature, raison et objectif : | M31: Costs (all must include taxes, gratuities and service charges) / Coûts (tous les coûts doivent inclure les taxes, pourboires et frais de service)
B32: =IF(Purpose=0,"",Purpose) -> 
M34: Hospitality - Accueil (Section A) | R34: =IF(Hospitality,Hospitality_Total_Cost,0) -> 0
M36: Conference - Conférence (Section B) | R36: =IF(Conference,Conference_Total_Cost,0) -> 0
M38: Training – Formation (Section B) | R38: =IF(Training,Conference_Total_Cost,0) -> 0
M40: Travel - Voyage (Section C) | R40: =IF(Travel_Expenses=Yes_Select,Travel_Total_Cost,0) -> 0
M42: Other - Autre (Section D) | R42: =Other_Total_Cost -> 0
M44: Total cost paid by ESDC Coût total payé par EDSC | R44: =SUM(R34:T43) -> 0
M46: =IF(Activity_Paid_By=One_RC_Select,"☒ ", "☐ ")& "Paid by one Fund Centre (ESDC) Payé par un centre financier (EDSC)" -> ☐ Paid by one Fund Centre (ESDC) Payé par un centre financier (EDSC)
M48: =IF(Activity_Paid_By=Multiple_RC_Select,"☒ ", "☐ ")& "Paid by multiple Fund Centers (ESDC) Payé par plusieurs centres financiers (EDSC)" -> ☐ Paid by multiple Fund Centers (ESDC) Payé par plusieurs centres financiers (EDSC)
M50: =IF(Is_Cost_For_OGD=Yes_Select,"☒ Paid by other government department Payé par d'autres ministères du gouvernement","☐ Paid by other government department Payé par d'autres ministères du gouvernement") -> ☐ Paid by other government department Payé par d'autres ministères du gouvernement
B52: Location (City, Country) – Endroit (Ville, Pays) : | M52: Costs paid by other government departments / Coûts payés par d'autres ministères du gouvernement | R52: =Cost_For_OGD -> 0
B53: =IF(Activity_Location=0,"",Activity_Location) -> 
B54: Activity date(s) | E54: From / du | I54: To / au | M54: Total estimated federal costs / Coût estimé total pour l'ensemble des ministères participants | R54: =R44+R52 -> 0
B55: (Year, month, day) | E55: =IF(OR(Activity_From_Date=0,UNKNOWN_DATE),"", YEAR(Activity_From_Date)&"/"&MONTH(Activity_From_Date)&"/"&DAY(Activity_From_Date)) -> 2021/10/22 | I55: =IF(OR(Activity_To_Date=0,UNKNOWN_DATE),"",YEAR(Activity_To_Date)&"/"&MONTH(Activity_To_Date)&"/"&DAY(Activity_To_Date)) -> 2021/10/22
B56: Date(s) de l'activité
B57: (Année, mois, jour)
B58: Public Servants Fonctionnaires | D58: =PS_Participants ->  | F58: + | G58: Non-Public Servants Non-Fonctionnaires | J58: =Non_PS_Participants ->  | L58: = | M58: Total number of attendee(s) Nombre total de participant(s) | R58: =D58+J58 -> 
B60: Justification for the number of Public Servant participants / Justification pour le nombre de fonctionnaires participants: | M60: Average cost per traveller – Travel Coût moyen par voyageur - Voyage | R60: =IF(Number_of_Travellers=0,0,R40/Number_of_Travellers) -> 0
B61: =IF(AND(PS_Participants>0,NOT(PS_Participants_Justification=0)),PS_Participants_Justification,"") ->  | M61: Average cost per person – Event Coût moyen par personne - Événement | R61: =IF(R58=0,0,R44/R58) -> 
B64: DETAILS & COMMENTS – DÉTAILS ET COMMENTAIRES
B65: Is it in a government facility? / Est-ce dans une installation du gouvernement? | O65: =IF(Government_Facility=Yes_Select,"☒ Yes / oui ☐ No / non",IF(Government_Facility=No_Select,"☐ Yes / oui ☒ No / non","☐ Yes / oui ☐ No / non")) -> ☐ Yes / oui ☐ No / non
B66: If no, choose all applicable / Si non, choisir tout ce qui s'applique
B67: =IF(Facility_Reason1_Selected=Yes_Select,"☒ ","☐ ") & "The department has no discretion in selecting the venue; / Le ministère n’a aucun pouvoir discrétionnaire pour choisir le lieu;" -> ☐ The department has no discretion in selecting the venue; / Le ministère n’a aucun pouvoir discrétionnaire pour choisir le lieu;
B68: =IF(Facility_Reason2_Selected=Yes_Select,"☒ ","☐ ") & "The chosen facility can provide the services and infrastructure required for the activity which government facilities cannot; "&"/ L’installation choisie peut fournir les services et l’infrastructure nécessaires à la tenue de l'activité, alors que les installations du gouvernement ne le peuvent pas;" -> ☐ The chosen facility can provide the services and infrastructure required for the activity which government facilities cannot; / L’installation choisie peut fournir les services et l’infrastructure nécessaires à la tenue de l'activité, alors que les installations du gouvernement ne le peuvent pas;
B69: =IF(Facility_Reason3_Selected=Yes_Select,"☒ ","☐ ") & "Government facilities are not available in the geographic area where the activity is to be held; "&"/ Les installations du gouvernement n’existent pas dans la région géographique où aura lieu l'activité;" -> ☐ Government facilities are not available in the geographic area where the activity is to be held; / Les installations du gouvernement n’existent pas dans la région géographique où aura lieu l'activité;
B70: =IF(Facility_Reason4_Selected=Yes_Select,"☒ ","☐ ") & "Government facilities exist in the geographic area but are not available at the time of the activity and the activity timetable cannot be suitably altered; "&"or / Les installations du gouvernement existent dans la région géographique mais ne sont pas libres au moment où l'activité aura lieu et le calendrier de l'activité ne peut être convenablement modifié; ou" -> ☐ Government facilities exist in the geographic area but are not available at the time of the activity and the activity timetable cannot be suitably altered; or / Les installations du gouvernement existent dans la région géographique mais ne sont pas libres au moment où l'activité aura lieu et le calendrier de l'activité ne peut être convenablement modifié; ou
B71: =IF(Facility_Reason5_Selected=Yes_Select,"☒ ","☐ ") & "The choice of a non-government facility can be shown to be cost-effective and withstand public scrutiny. "&"/ Le choix d’une installation non gouvernementale peut se révéler économique et résister à un examen du public." -> ☐ The choice of a non-government facility can be shown to be cost-effective and withstand public scrutiny. / Le choix d’une installation non gouvernementale peut se révéler économique et résister à un examen du public.
B72: Other comments / Autres Commentaires :
B73: =IF(Comments_For_Approver=0," ",Comments_For_Approver) -> 
B77: A) HOSPITALITY (Supporting Documentation Required) – ACCUEIL (Documentation à l’appui requise)
B78: Provide the purpose of the hospitality / Fournir le but de l'accueil :
B79: =IF(OR(Hospitality_Justification=0,NOT(Hospitality)),"",Hospitality_Justification) -> 
B80: Types of hospitality (choose all applicable) / Types d’accueil (choisir tout ce qui s’applique) | K80: Number of days hospitality offered per type / Nombre de jours d’accueil offert par type | O80: Average cost per day per type / Moyenne par jour par type | R80: Total estimated cost per type / Coût total estimé par type
B82: =IF(AND(Hospitality,U82>0),"☒","☐") -> ☐ | C82: Breakfast (Justification required) | K82: =COUNTIF(Hospitality_Breakfast_Tcost,"<>0") -> 0 | O82: =IF(K82=0,0,R82/K82) -> 0 | R82: =IF(Hospitality,U82,0) -> 0 | U82: =SUM(Hospitality_Breakfast_Tcost) -> 0
C83: Petit Déjeuner (Justification requise)
B84: =IF(AND(Hospitality,U84>0),"☒","☐") -> ☐ | C84: Lunch | K84: =COUNTIF(Hospitality_Lunch_Tcost,"<>0") -> 0 | O84: =IF(K84=0,0,R84/K84) -> 0 | R84: =IF(Hospitality,U84,0) -> 0 | U84: =SUM(Hospitality_Lunch_Tcost) -> 0
C85: Déjeuner
B86: =IF(AND(Hospitality,U86>0),"☒","☐") -> ☐ | C86: Dinner | K86: =COUNTIF(Hospitality_Dinner_Tcost,"<>0") -> 0 | O86: =IF(K86=0,0,R86/K86) -> 0 | R86: =IF(Hospitality,U86,0) -> 0 | U86: =SUM(Hospitality_Dinner_Tcost) -> 0
C87: Dîner
B88: =IF(AND(Hospitality,U88>0),"☒","☐") -> ☐ | C88: Refreshments AM | K88: =COUNTIF(Hospitality_Morning_Break_Tcost,"<>0") -> 0 | O88: =IF(K88=0,0,R88/K88) -> 0 | R88: =IF(Hospitality,U88,0) -> 0 | U88: =SUM(Hospitality_Morning_Break_Tcost) -> 0
C89: Rafraîchissements en avant-midi
B90: =IF(AND(Hospitality,U90>0),"☒","☐") -> ☐ | C90: Refreshments PM | K90: =COUNTIF(Hospitality_Afternoon_Break_Tcost,"<>0") -> 0 | O90: =IF(K90=0,0,R90/K90) -> 0 | R90: =IF(Hospitality,U90,0) -> 0 | U90: =SUM(Hospitality_Afternoon_Break_Tcost) -> 0
C91: Rafraîchissements en après-midi
B92: =IF(AND(Hospitality,U92>0),"☒","☐") -> ☐ | C92: Reception | K92: =COUNTIF(Hospitality_Reception_Tcost,"<>0") -> 0 | O92: =IF(K92=0,0,R92/K92) -> 0 | R92: =IF(Hospitality,U92,0) -> 0 | U92: =SUM(Hospitality_Reception_Tcost) -> 0
C93: Réception
B94: =IF(AND(Hospitality,U94>0),"☒","☐") -> ☐ | C94: Other form of regular hospitality (Justification required) | K94: =COUNTIF(Hospitality_Others_TotalCost,"<>0") -> 0 | O94: =IF(K94=0,0,R94/K94) -> 0 | R94: =IF(Hospitality,U94,0) -> 0 | U94: =SUM(Hospitality_Others_TotalCost) -> 0
C95: Autre forme d’accueil régulier (Justification requise)
B96: =IF(AND(Hospitality,U96>0),"☒","☐") -> ☐ | C96: Exceptional form of hospitality (Justification required) | K96: =COUNTIF(Hospitality_Others_Exceptional_TotalCost,"<>0") -> 0 | O96: =IF(K96=0,0,R96/K96) -> 0 | R96: =IF(Hospitality,U96,0) -> 0 | U96: =SUM(Hospitality_Others_Exceptional_TotalCost) -> 0
C97: Forme exceptionnelle d’accueil (Justification requise)
B98: Is the hospitality including any alcohol expenses? (Justification required) | R98: =IF(AND(Hospitality,Hospitality_Alcohol=No_Select),"☒ ", "☐ ")& "No Non" -> ☐ No Non | S98: =IF(AND(Hospitality,Hospitality_Alcohol=Yes_Select),"☒ ", "☐ ")& "Yes Oui" -> ☐ Yes Oui
B99: Est-ce que l’accueil inclus des dépenses d’alcool? (Justification requise)
B100: Is the hospitality provided to a spouse or to a person accompanying the participant? (Justification required) | R100: =IF(AND(Hospitality,Exc_Spouse_Hospitality=No_Select),"☒ ", "☐ ")& "No Non" -> ☐ No Non | S100: =IF(AND(Hospitality,Exc_Spouse_Hospitality=Yes_Select),"☒ ", "☐ ")& "Yes Oui" -> ☐ Yes Oui
B101: Est-ce que l’accueil est offert à un époux/épouse ou à une personne accompagnant le participant? (Justification requise)
B102: Is it extended at the residence of a federal employee? (Justification required) | R102: =IF(AND(Hospitality,Hospitality_In_Residence=No_Select),"☒ ", "☐ ")& "No Non" -> ☐ No Non | S102: =IF(AND(Hospitality,Hospitality_In_Residence=Yes_Select),"☒ ", "☐ ")& "Yes Oui" -> ☐ Yes Oui
B103: Est-ce offert dans la résidence d’un employé fédéral? (Justification requise)
B104: Justifications :
B105: =IF(Hospitality, IF(AND(NOT(Hospitality_Alcohol=No_Select),NOT(Hospitality_Alcohol_Justification=0)),"Alcohol/alcool: "&Hospitality_Alcohol_Justification&CHAR(10),"") & IF(AND(Exc_Spouse_Hospitality=Yes_Select,NOT(Exc_Spouse_Hospitality_Justification=0)),"Companion/accompagnant: "&Exc_Spouse_Hospitality_Justification&CHAR(10),"") & IF(AND(Hospitality_In_Residence=Yes_Select,NOT(Hospitality_In_Residence_Justification=0)),"Residence/résidence: "& Hospitality_In_Residence_Justification&CHAR(10),"") & IF(AND(SUM(Hospitality_Breakfast_Tcost)>0,NOT(Hospitality_BreakFast_Justification=0)),"Breakfast/Petit Déjeuner: "&Hospitality_BreakFast_Justification&CHAR(10),"") & IF(AND(NOT(Hospitality_Other=0),NOT(Hospitality_Other_Justification=0)),"Hospitality Other/autre accueil: "& Hospitality_Other_Justification&CHAR(10),"") & IF(AND(Hospitality_Other_Exceptional>0,NOT(Other_Exceptional_Justification=0)),"Hospitality Exceptional/exceptionnelle accueil: "&Other_Exceptional_Justification,""),"") -> 
B109: B) CONFERENCE/TRAINING – CONFÉRENCE/FORMATION
B110: Reason for attending a conference/Raison de participer à une conférence | N110: Costs / Coûts | R110: =Conference_Cost -> 0
B111: =IF(btnConfParticipation=1,"☒ ","☐ ") & "Gain information on a product or a service / Obtenir des renseignements sur un produit ou un service" -> ☐ Gain information on a product or a service / Obtenir des renseignements sur un produit ou un service
B112: =IF(btnConfParticipation=2,"☒ ","☐ ") & "Promote a departmental program/service or engage with stakeholders / Promouvoir un programme/service ministériel ou mobiliser des intervenants" -> ☐ Promote a departmental program/service or engage with stakeholders / Promouvoir un programme/service ministériel ou mobiliser des intervenants
B113: =IF(AND(btnConfParticipation=3,OR(btnConfList=2,btnConfList=3)),"☒ ","☐ ") & "EVENT* in support of my learning or professional development / ÉVÉNEMENT* pour appuyer mon apprentissage et perfectionnement professionnel" -> ☐ EVENT* in support of my learning or professional development / ÉVÉNEMENT* pour appuyer mon apprentissage et perfectionnement professionnel
B114: =IF(Training,"☒ ","☐ ") & "TRAINING* in support of my learning or professional development / FORMATION* pour appuyer mon apprentissage et perfectionnement professionnel" -> ☐ TRAINING* in support of my learning or professional development / FORMATION* pour appuyer mon apprentissage et perfectionnement professionnel
B115: =IF(Conference_Sponsorship=Yes_Select,"☒ ","☐ ") & "Conference Sponsorship / Parrainer une conférence" -> ☐ Conference Sponsorship / Parrainer une conférence
B116: *As determined by the Departmental Conference vs Training List / Tel que déterminer sur la Liste ministérielle des conférences vs formation.
B118: C) TRAVEL (Supporting Documentation Required) – VOYAGE (Documentation à l’appui requise)
B119: Trip Authorization Elements / Éléments des autorisations de voyager
B120: Category / Catégorie | H120: =IF(AND(Travel_Expenses=Yes_Select,NOT(Travel_Category="")), VLOOKUP(Travel_Category,'Travel - System'!T3:V7,2,FALSE)&CHAR(10)&CHAR(10)&VLOOKUP(Travel_Category,'Travel - System'!T3:V7,3,FALSE) &IF(Travel_Category=5,CHAR(10)&CHAR(10)&Travel_CategoryOther,""), "") -> 
B121: Why virtual presence or other remote meeting solutions have not been used? / Pourquoi la présence virtuelle ou autres solutions de réunions à distance n’a pas été utilisée? | H121: =IF(AND(Travel_Expenses=Yes_Select,NOT(Virtual_Presence_Justification="")),Virtual_Presence_Justification,"") -> 
B122: Public Servant / Fonctionnaire
B123: Branch or Region / Direction générale ou Région | F123: Number of travellers / Nombre de voyageurs | H123: Costs / Coûts
H124: Transportation / Transport | K124: Accomodations / Hébergements | N124: Meals / Repas | P124: Incidentals & other / Frais accessoires et autres | S124: Total Costs / Coûts total
B126: =IF(Travel_Expenses=Yes_Select,IF(Travel_Branches_Count_PS>10,"Multiple",'Travel - System'!R2),"") ->  | F126: =IF(Travel_Expenses=Yes_Select,U126,0) -> 0 | H126: =IF(Travel_Expenses=Yes_Select,V126,0) -> 0 | K126: =IF(Travel_Expenses=Yes_Select,W126,0) -> 0 | N126: =IF(Travel_Expenses=Yes_Select,X126,0) -> 0 | P126: =IF(Travel_Expenses=Yes_Select,Y126,0) -> 0 | S126: =H126+K126+N126+P126 -> 0 | U126: =SUM(IF(EXACT('Travel - System'!$P$3,Traveller_Type),IF(Travel_Branches_Count_PS>10,1,IF(EXACT('Authorisation - Autorisation'!$B126,Traveller_Branch),1,0)),0)) -> 0 | V126: =SUM(IF(EXACT('Travel - System'!$P$3,Traveller_Type),IF(Travel_Branches_Count_PS>10,Travel_Transportation_Costs,IF(EXACT('Authorisation - Autorisation'!$B126,Traveller_Branch),Travel_Transportation_Costs,0)),0)) -> 0 | W126: =SUM(IF(EXACT('Travel - System'!$P$3,Traveller_Type),IF(Travel_Branches_Count_PS>10,Travel_Accomodations_Cost,IF(EXACT('Authorisation - Autorisation'!$B126,Traveller_Branch),Travel_Accomodations_Cost,0)),0)) -> 0 | X126: =SUM(IF(EXACT('Travel - System'!$P$3,Traveller_Type),IF(Travel_Branches_Count_PS>10,Travel_Meals_Cost,IF(EXACT('Authorisation - Autorisation'!$B126,Traveller_Branch),Travel_Meals_Cost,0)),0)) -> 0 | Y126: =SUM(IF(EXACT('Travel - System'!$P$3,Traveller_Type),IF(Travel_Branches_Count_PS>10,Travel_Incidentals_Cost,IF(EXACT('Authorisation - Autorisation'!$B126,Traveller_Branch),Travel_Incidentals_Cost,0)),0)) -> 0
B127: =IF(OR(NOT(Travel_Expenses=Yes_Select),Travel_Branches_Count_PS>10),"",'Travel - System'!R3) ->  | F127: 0 | H127: =IF(Travel_Expenses=Yes_Select,V127,0) -> 0 | K127: 0 | N127: 0 | P127: 0 | S127: =H127+K127+N127+P127 -> 0 | U127: =SUM(IF(EXACT('Travel - System'!$P$3,Traveller_Type),IF(EXACT('Authorisation - Autorisation'!$B127,Traveller_Branch),1,0),0)) -> 0 | V127: =SUM(IF(EXACT('Travel - System'!$P$3,Traveller_Type),IF(EXACT('Authorisation - Autorisation'!$B127,Traveller_Branch),Travel_Transportation_Costs,0),0)) -> 0 | W127: =SUM(IF(EXACT('Travel - System'!$P$3,Traveller_Type),IF(EXACT('Authorisation - Autorisation'!$B127,Traveller_Branch),Travel_Accomodations_Cost,0),0)) -> 0 | X127: =SUM(IF(EXACT('Travel - System'!$P$3,Traveller_Type),IF(EXACT('Authorisation - Autorisation'!$B127,Traveller_Branch),Travel_Meals_Cost,0),0)) -> 0 | Y127: =SUM(IF(EXACT('Travel - System'!$P$3,Traveller_Type),IF(EXACT('Authorisation - Autorisation'!$B127,Traveller_Branch),Travel_Incidentals_Cost,0),0)) -> 0
B128: =IF(OR(NOT(Travel_Expenses=Yes_Select),Travel_Branches_Count_PS>10),"",'Travel - System'!R4) ->  | F128: 0 | H128: 0 | K128: 0 | N128: 0 | P128: 0 | S128: 0 | U128: =SUM(IF(EXACT('Travel - System'!$P$3,Traveller_Type),IF(EXACT('Authorisation - Autorisation'!$B128,Traveller_Branch),1,0),0)) -> 0 | V128: =SUM(IF(EXACT('Travel - System'!$P$3,Traveller_Type),IF(EXACT('Authorisation - Autorisation'!$B128,Traveller_Branch),Travel_Transportation_Costs,0),0)) -> 0 | W128: =SUM(IF(EXACT('Travel - System'!$P$3,Traveller_Type),IF(EXACT('Authorisation - Autorisation'!$B128,Traveller_Branch),Travel_Accomodations_Cost,0),0)) -> 0 | X128: =SUM(IF(EXACT('Travel - System'!$P$3,Traveller_Type),IF(EXACT('Authorisation - Autorisation'!$B128,Traveller_Branch),Travel_Meals_Cost,0),0)) -> 0 | Y128: =SUM(IF(EXACT('Travel - System'!$P$3,Traveller_Type),IF(EXACT('Authorisation - Autorisation'!$B128,Traveller_Branch),Travel_Incidentals_Cost,0),0)) -> 0
B129: =IF(OR(NOT(Travel_Expenses=Yes_Select),Travel_Branches_Count_PS>10),"",'Travel - System'!R5) ->  | F129: 0 | H129: 0 | K129: 0 | N129: 0 | P129: 0 | S129: 0 | U129: =SUM(IF(EXACT('Travel - System'!$P$3,Traveller_Type),IF(EXACT('Authorisation - Autorisation'!$B129,Traveller_Branch),1,0),0)) -> 0 | V129: =SUM(IF(EXACT('Travel - System'!$P$3,Traveller_Type),IF(EXACT('Authorisation - Autorisation'!$B129,Traveller_Branch),Travel_Transportation_Costs,0),0)) -> 0 | W129: =SUM(IF(EXACT('Travel - System'!$P$3,Traveller_Type),IF(EXACT('Authorisation - Autorisation'!$B129,Traveller_Branch),Travel_Accomodations_Cost,0),0)) -> 0 | X129: =SUM(IF(EXACT('Travel - System'!$P$3,Traveller_Type),IF(EXACT('Authorisation - Autorisation'!$B129,Traveller_Branch),Travel_Meals_Cost,0),0)) -> 0 | Y129: =SUM(IF(EXACT('Travel - System'!$P$3,Traveller_Type),IF(EXACT('Authorisation - Autorisation'!$B129,Traveller_Branch),Travel_Incidentals_Cost,0),0)) -> 0
B130: =IF(OR(NOT(Travel_Expenses=Yes_Select),Travel_Branches_Count_PS>10),"",'Travel - System'!R6) ->  | F130: 0 | H130: 0 | K130: 0 | N130: 0 | P130: 0 | S130: 0 | U130: =SUM(IF(EXACT('Travel - System'!$P$3,Traveller_Type),IF(EXACT('Authorisation - Autorisation'!$B130,Traveller_Branch),1,0),0)) -> 0 | V130: =SUM(IF(EXACT('Travel - System'!$P$3,Traveller_Type),IF(EXACT('Authorisation - Autorisation'!$B130,Traveller_Branch),Travel_Transportation_Costs,0),0)) -> 0 | W130: =SUM(IF(EXACT('Travel - System'!$P$3,Traveller_Type),IF(EXACT('Authorisation - Autorisation'!$B130,Traveller_Branch),Travel_Accomodations_Cost,0),0)) -> 0 | X130: =SUM(IF(EXACT('Travel - System'!$P$3,Traveller_Type),IF(EXACT('Authorisation - Autorisation'!$B130,Traveller_Branch),Travel_Meals_Cost,0),0)) -> 0 | Y130: =SUM(IF(EXACT('Travel - System'!$P$3,Traveller_Type),IF(EXACT('Authorisation - Autorisation'!$B130,Traveller_Branch),Travel_Incidentals_Cost,0),0)) -> 0
B131: =IF(OR(NOT(Travel_Expenses=Yes_Select),Travel_Branches_Count_PS>10),"",'Travel - System'!R7) ->  | F131: 0 | H131: 0 | K131: 0 | N131: 0 | P131: 0 | S131: 0 | U131: =SUM(IF(EXACT('Travel - System'!$P$3,Traveller_Type),IF(EXACT('Authorisation - Autorisation'!$B131,Traveller_Branch),1,0),0)) -> 0 | V131: =SUM(IF(EXACT('Travel - System'!$P$3,Traveller_Type),IF(EXACT('Authorisation - Autorisation'!$B131,Traveller_Branch),Travel_Transportation_Costs,0),0)) -> 0 | W131: =SUM(IF(EXACT('Travel - System'!$P$3,Traveller_Type),IF(EXACT('Authorisation - Autorisation'!$B131,Traveller_Branch),Travel_Accomodations_Cost,0),0)) -> 0 | X131: =SUM(IF(EXACT('Travel - System'!$P$3,Traveller_Type),IF(EXACT('Authorisation - Autorisation'!$B131,Traveller_Branch),Travel_Meals_Cost,0),0)) -> 0 | Y131: =SUM(IF(EXACT('Travel - System'!$P$3,Traveller_Type),IF(EXACT('Authorisation - Autorisation'!$B131,Traveller_Branch),Travel_Incidentals_Cost,0),0)) -> 0
B132: =IF(OR(NOT(Travel_Expenses=Yes_Select),Travel_Branches_Count_PS>10),"",'Travel - System'!R8) ->  | F132: 0 | H132: 0 | K132: 0 | N132: 0 | P132: 0 | S132: 0 | U132: =SUM(IF(EXACT('Travel - System'!$P$3,Traveller_Type),IF(EXACT('Authorisation - Autorisation'!$B132,Traveller_Branch),1,0),0)) -> 0 | V132: =SUM(IF(EXACT('Travel - System'!$P$3,Traveller_Type),IF(EXACT('Authorisation - Autorisation'!$B132,Traveller_Branch),Travel_Transportation_Costs,0),0)) -> 0 | W132: =SUM(IF(EXACT('Travel - System'!$P$3,Traveller_Type),IF(EXACT('Authorisation - Autorisation'!$B132,Traveller_Branch),Travel_Accomodations_Cost,0),0)) -> 0 | X132: =SUM(IF(EXACT('Travel - System'!$P$3,Traveller_Type),IF(EXACT('Authorisation - Autorisation'!$B132,Traveller_Branch),Travel_Meals_Cost,0),0)) -> 0 | Y132: =SUM(IF(EXACT('Travel - System'!$P$3,Traveller_Type),IF(EXACT('Authorisation - Autorisation'!$B132,Traveller_Branch),Travel_Incidentals_Cost,0),0)) -> 0
B133: =IF(OR(NOT(Travel_Expenses=Yes_Select),Travel_Branches_Count_PS>10),"",'Travel - System'!R9) ->  | F133: 0 | H133: =IF(Travel_Expenses=Yes_Select,V133,0) -> 0 | K133: 0 | N133: 0 | P133: 0 | S133: 0 | U133: =SUM(IF(EXACT('Travel - System'!$P$3,Traveller_Type),IF(EXACT('Authorisation - Autorisation'!$B133,Traveller_Branch),1,0),0)) -> 0 | V133: =SUM(IF(EXACT('Travel - System'!$P$3,Traveller_Type),IF(EXACT('Authorisation - Autorisation'!$B133,Traveller_Branch),Travel_Transportation_Costs,0),0)) -> 0 | W133: =SUM(IF(EXACT('Travel - System'!$P$3,Traveller_Type),IF(EXACT('Authorisation - Autorisation'!$B133,Traveller_Branch),Travel_Accomodations_Cost,0),0)) -> 0 | X133: =SUM(IF(EXACT('Travel - System'!$P$3,Traveller_Type),IF(EXACT('Authorisation - Autorisation'!$B133,Traveller_Branch),Travel_Meals_Cost,0),0)) -> 0 | Y133: =SUM(IF(EXACT('Travel - System'!$P$3,Traveller_Type),IF(EXACT('Authorisation - Autorisation'!$B133,Traveller_Branch),Travel_Incidentals_Cost,0),0)) -> 0
B134: =IF(OR(NOT(Travel_Expenses=Yes_Select),Travel_Branches_Count_PS>10),"",'Travel - System'!R10) ->  | F134: =IF(Travel_Expenses=Yes_Select,U134,0) -> 0 | H134: =IF(Travel_Expenses=Yes_Select,V134,0) -> 0 | K134: =IF(Travel_Expenses=Yes_Select,W134,0) -> 0 | N134: =IF(Travel_Expenses=Yes_Select,X134,0) -> 0 | P134: =IF(Travel_Expenses=Yes_Select,Y134,0) -> 0 | S134: =H134+K134+N134+P134 -> 0 | U134: =SUM(IF(EXACT('Travel - System'!$P$3,Traveller_Type),IF(EXACT('Authorisation - Autorisation'!$B134,Traveller_Branch),1,0),0)) -> 0 | V134: =SUM(IF(EXACT('Travel - System'!$P$3,Traveller_Type),IF(EXACT('Authorisation - Autorisation'!$B134,Traveller_Branch),Travel_Transportation_Costs,0),0)) -> 0 | W134: =SUM(IF(EXACT('Travel - System'!$P$3,Traveller_Type),IF(EXACT('Authorisation - Autorisation'!$B134,Traveller_Branch),Travel_Accomodations_Cost,0),0)) -> 0 | X134: =SUM(IF(EXACT('Travel - System'!$P$3,Traveller_Type),IF(EXACT('Authorisation - Autorisation'!$B134,Traveller_Branch),Travel_Meals_Cost,0),0)) -> 0 | Y134: =SUM(IF(EXACT('Travel - System'!$P$3,Traveller_Type),IF(EXACT('Authorisation - Autorisation'!$B134,Traveller_Branch),Travel_Incidentals_Cost,0),0)) -> 0
B135: =IF(OR(NOT(Travel_Expenses=Yes_Select),Travel_Branches_Count_PS>10),"",'Travel - System'!R11) ->  | F135: =IF(Travel_Expenses=Yes_Select,U135,0) -> 0 | H135: =IF(Travel_Expenses=Yes_Select,V135,0) -> 0 | K135: =IF(Travel_Expenses=Yes_Select,W135,0) -> 0 | N135: =IF(Travel_Expenses=Yes_Select,X135,0) -> 0 | P135: =IF(Travel_Expenses=Yes_Select,Y135,0) -> 0 | S135: =H135+K135+N135+P135 -> 0 | U135: =SUM(IF(EXACT('Travel - System'!$P$3,Traveller_Type),IF(EXACT('Authorisation - Autorisation'!$B135,Traveller_Branch),1,0),0)) -> 0 | V135: =SUM(IF(EXACT('Travel - System'!$P$3,Traveller_Type),IF(EXACT('Authorisation - Autorisation'!$B135,Traveller_Branch),Travel_Transportation_Costs,0),0)) -> 0 | W135: =SUM(IF(EXACT('Travel - System'!$P$3,Traveller_Type),IF(EXACT('Authorisation - Autorisation'!$B135,Traveller_Branch),Travel_Accomodations_Cost,0),0)) -> 0 | X135: =SUM(IF(EXACT('Travel - System'!$P$3,Traveller_Type),IF(EXACT('Authorisation - Autorisation'!$B135,Traveller_Branch),Travel_Meals_Cost,0),0)) -> 0 | Y135: =SUM(IF(EXACT('Travel - System'!$P$3,Traveller_Type),IF(EXACT('Authorisation - Autorisation'!$B135,Traveller_Branch),Travel_Incidentals_Cost,0),0)) -> 0
B136: Non Public Servant / Non Fonctionnaire
B137: Branch or Region / Direction générale ou Région | F137: Number of travellers / Nombre de voyageurs | H137: Costs / Coûts
H138: Transportation / Transport | K138: Accomodations / Hébergements | N138: Meals / Repas | P138: Incidentals & other / Frais accessoires et autres | S138: Total Costs / Coûts total
B140: =IF(Travel_Expenses=Yes_Select,IF(Travel_Branches_Count_nonPS>8,"Multiple",'Travel - System'!S2),0) -> 0 | F140: =IF(Travel_Expenses=Yes_Select,U140,0) -> 0 | H140: =IF(Travel_Expenses=Yes_Select,V140,0) -> 0 | K140: =IF(Travel_Expenses=Yes_Select,W140,0) -> 0 | N140: =IF(Travel_Expenses=Yes_Select,X140,0) -> 0 | S140: =H140+K140+N140+P140 -> 0 | U140: =SUM(IF(EXACT('Travel - System'!$P$4,Traveller_Type),IF(Travel_Branches_Count_nonPS>8,1,IF(EXACT('Authorisation - Autorisation'!$B140,Traveller_Branch),1,0)),0)) -> 0 | V140: =SUM(IF(EXACT('Travel - System'!$P$4,Traveller_Type),IF(Travel_Branches_Count_nonPS>8,Travel_Transportation_Costs,IF(EXACT('Authorisation - Autorisation'!$B140,Traveller_Branch),Travel_Transportation_Costs,0)),0)) -> 0 | W140: =SUM(IF(EXACT('Travel - System'!$P$4,Traveller_Type),IF(Travel_Branches_Count_nonPS>8,Travel_Accomodations_Cost,IF(EXACT('Authorisation - Autorisation'!$B140,Traveller_Branch),Travel_Accomodations_Cost,0)),0)) -> 0 | X140: =SUM(IF(EXACT('Travel - System'!$P$4,Traveller_Type),IF(Travel_Branches_Count_nonPS>8,Travel_Meals_Cost,IF(EXACT('Authorisation - Autorisation'!$B140,Traveller_Branch),Travel_Meals_Cost,0)),0)) -> 0 | Y140: =SUM(IF(EXACT('Travel - System'!$P$4,Traveller_Type),IF(Travel_Branches_Count_nonPS>8,Travel_Incidentals_Cost,IF(EXACT('Authorisation - Autorisation'!$B140,Traveller_Branch),Travel_Incidentals_Cost,0)),0)) -> 0
B141: =IF(OR(NOT(Travel_Expenses=Yes_Select),Travel_Branches_Count_nonPS>8),"",'Travel - System'!S3) ->  | F141: 0 | H141: 0 | K141: 0 | N141: 0 | S141: 0 | U141: =SUM(IF(EXACT('Travel - System'!$P$4,Traveller_Type),IF(EXACT('Authorisation - Autorisation'!$B141,Traveller_Branch),1,0),0)) -> 0 | V141: =SUM(IF(EXACT('Travel - System'!$P$4,Traveller_Type),IF(EXACT('Authorisation - Autorisation'!$B141,Traveller_Branch),Travel_Transportation_Costs,0),0)) -> 0 | W141: =SUM(IF(EXACT('Travel - System'!$P$4,Traveller_Type),IF(EXACT('Authorisation - Autorisation'!$B141,Traveller_Branch),Travel_Accomodations_Cost,0),0)) -> 0 | X141: =SUM(IF(EXACT('Travel - System'!$P$4,Traveller_Type),IF(EXACT('Authorisation - Autorisation'!$B141,Traveller_Branch),Travel_Meals_Cost,0),0)) -> 0 | Y141: =SUM(IF(EXACT('Travel - System'!$P$4,Traveller_Type),IF(EXACT('Authorisation - Autorisation'!$B141,Traveller_Branch),Travel_Incidentals_Cost,0),0)) -> 0
B142: =IF(OR(NOT(Travel_Expenses=Yes_Select),Travel_Branches_Count_nonPS>8),"",'Travel - System'!S4) ->  | F142: 0 | H142: 0 | K142: 0 | N142: 0 | S142: 0 | U142: =SUM(IF(EXACT('Travel - System'!$P$4,Traveller_Type),IF(EXACT('Authorisation - Autorisation'!$B142,Traveller_Branch),1,0),0)) -> 0 | V142: =SUM(IF(EXACT('Travel - System'!$P$4,Traveller_Type),IF(EXACT('Authorisation - Autorisation'!$B142,Traveller_Branch),Travel_Transportation_Costs,0),0)) -> 0 | W142: =SUM(IF(EXACT('Travel - System'!$P$4,Traveller_Type),IF(EXACT('Authorisation - Autorisation'!$B142,Traveller_Branch),Travel_Accomodations_Cost,0),0)) -> 0 | X142: =SUM(IF(EXACT('Travel - System'!$P$4,Traveller_Type),IF(EXACT('Authorisation - Autorisation'!$B142,Traveller_Branch),Travel_Meals_Cost,0),0)) -> 0 | Y142: =SUM(IF(EXACT('Travel - System'!$P$4,Traveller_Type),IF(EXACT('Authorisation - Autorisation'!$B142,Traveller_Branch),Travel_Incidentals_Cost,0),0)) -> 0
B143: =IF(OR(NOT(Travel_Expenses=Yes_Select),Travel_Branches_Count_nonPS>8),"",'Travel - System'!S5) ->  | F143: 0 | H143: 0 | K143: 0 | N143: 0 | S143: 0 | U143: =SUM(IF(EXACT('Travel - System'!$P$4,Traveller_Type),IF(EXACT('Authorisation - Autorisation'!$B143,Traveller_Branch),1,0),0)) -> 0 | V143: =SUM(IF(EXACT('Travel - System'!$P$4,Traveller_Type),IF(EXACT('Authorisation - Autorisation'!$B143,Traveller_Branch),Travel_Transportation_Costs,0),0)) -> 0 | W143: =SUM(IF(EXACT('Travel - System'!$P$4,Traveller_Type),IF(EXACT('Authorisation - Autorisation'!$B143,Traveller_Branch),Travel_Accomodations_Cost,0),0)) -> 0 | X143: =SUM(IF(EXACT('Travel - System'!$P$4,Traveller_Type),IF(EXACT('Authorisation - Autorisation'!$B143,Traveller_Branch),Travel_Meals_Cost,0),0)) -> 0 | Y143: =SUM(IF(EXACT('Travel - System'!$P$4,Traveller_Type),IF(EXACT('Authorisation - Autorisation'!$B143,Traveller_Branch),Travel_Incidentals_Cost,0),0)) -> 0
B144: =IF(OR(NOT(Travel_Expenses=Yes_Select),Travel_Branches_Count_nonPS>8),"",'Travel - System'!S6) ->  | F144: 0 | H144: 0 | K144: 0 | N144: 0 | S144: 0 | U144: =SUM(IF(EXACT('Travel - System'!$P$4,Traveller_Type),IF(EXACT('Authorisation - Autorisation'!$B144,Traveller_Branch),1,0),0)) -> 0 | V144: =SUM(IF(EXACT('Travel - System'!$P$4,Traveller_Type),IF(EXACT('Authorisation - Autorisation'!$B144,Traveller_Branch),Travel_Transportation_Costs,0),0)) -> 0 | W144: =SUM(IF(EXACT('Travel - System'!$P$4,Traveller_Type),IF(EXACT('Authorisation - Autorisation'!$B144,Traveller_Branch),Travel_Accomodations_Cost,0),0)) -> 0 | X144: =SUM(IF(EXACT('Travel - System'!$P$4,Traveller_Type),IF(EXACT('Authorisation - Autorisation'!$B144,Traveller_Branch),Travel_Meals_Cost,0),0)) -> 0 | Y144: =SUM(IF(EXACT('Travel - System'!$P$4,Traveller_Type),IF(EXACT('Authorisation - Autorisation'!$B144,Traveller_Branch),Travel_Incidentals_Cost,0),0)) -> 0
B145: =IF(OR(NOT(Travel_Expenses=Yes_Select),Travel_Branches_Count_nonPS>8),"",'Travel - System'!S7) ->  | F145: 0 | H145: 0 | K145: 0 | N145: 0 | S145: 0 | U145: =SUM(IF(EXACT('Travel - System'!$P$4,Traveller_Type),IF(EXACT('Authorisation - Autorisation'!$B145,Traveller_Branch),1,0),0)) -> 0 | V145: =SUM(IF(EXACT('Travel - System'!$P$4,Traveller_Type),IF(EXACT('Authorisation - Autorisation'!$B145,Traveller_Branch),Travel_Transportation_Costs,0),0)) -> 0 | W145: =SUM(IF(EXACT('Travel - System'!$P$4,Traveller_Type),IF(EXACT('Authorisation - Autorisation'!$B145,Traveller_Branch),Travel_Accomodations_Cost,0),0)) -> 0 | X145: =SUM(IF(EXACT('Travel - System'!$P$4,Traveller_Type),IF(EXACT('Authorisation - Autorisation'!$B145,Traveller_Branch),Travel_Meals_Cost,0),0)) -> 0 | Y145: =SUM(IF(EXACT('Travel - System'!$P$4,Traveller_Type),IF(EXACT('Authorisation - Autorisation'!$B145,Traveller_Branch),Travel_Incidentals_Cost,0),0)) -> 0
B146: =IF(OR(NOT(Travel_Expenses=Yes_Select),Travel_Branches_Count_nonPS>8),"",'Travel - System'!S8) ->  | F146: 0 | H146: 0 | K146: 0 | N146: 0 | S146: 0 | U146: =SUM(IF(EXACT('Travel - System'!$P$4,Traveller_Type),IF(EXACT('Authorisation - Autorisation'!$B146,Traveller_Branch),1,0),0)) -> 0 | V146: =SUM(IF(EXACT('Travel - System'!$P$4,Traveller_Type),IF(EXACT('Authorisation - Autorisation'!$B146,Traveller_Branch),Travel_Transportation_Costs,0),0)) -> 0 | W146: =SUM(IF(EXACT('Travel - System'!$P$4,Traveller_Type),IF(EXACT('Authorisation - Autorisation'!$B146,Traveller_Branch),Travel_Accomodations_Cost,0),0)) -> 0 | X146: =SUM(IF(EXACT('Travel - System'!$P$4,Traveller_Type),IF(EXACT('Authorisation - Autorisation'!$B146,Traveller_Branch),Travel_Meals_Cost,0),0)) -> 0 | Y146: =SUM(IF(EXACT('Travel - System'!$P$4,Traveller_Type),IF(EXACT('Authorisation - Autorisation'!$B146,Traveller_Branch),Travel_Incidentals_Cost,0),0)) -> 0
B147: =IF(OR(NOT(Travel_Expenses=Yes_Select),Travel_Branches_Count_nonPS>8),"",'Travel - System'!S9) ->  | F147: 0 | H147: 0 | K147: 0 | N147: 0 | S147: 0 | U147: =SUM(IF(EXACT('Travel - System'!$P$4,Traveller_Type),IF(EXACT('Authorisation - Autorisation'!$B147,Traveller_Branch),1,0),0)) -> 0 | V147: =SUM(IF(EXACT('Travel - System'!$P$4,Traveller_Type),IF(EXACT('Authorisation - Autorisation'!$B147,Traveller_Branch),Travel_Transportation_Costs,0),0)) -> 0 | W147: =SUM(IF(EXACT('Travel - System'!$P$4,Traveller_Type),IF(EXACT('Authorisation - Autorisation'!$B147,Traveller_Branch),Travel_Accomodations_Cost,0),0)) -> 0 | X147: =SUM(IF(EXACT('Travel - System'!$P$4,Traveller_Type),IF(EXACT('Authorisation - Autorisation'!$B147,Traveller_Branch),Travel_Meals_Cost,0),0)) -> 0 | Y147: =SUM(IF(EXACT('Travel - System'!$P$4,Traveller_Type),IF(EXACT('Authorisation - Autorisation'!$B147,Traveller_Branch),Travel_Incidentals_Cost,0),0)) -> 0
B148: =IF(OR(NOT(Travel_Expenses=Yes_Select),Travel_Branches_Count_nonPS>8),"",'Travel - System'!S10) ->  | F148: =IF(Travel_Expenses=Yes_Select,U148,0) -> 0 | H148: =IF(Travel_Expenses=Yes_Select,V148,0) -> 0 | K148: =IF(Travel_Expenses=Yes_Select,W148,0) -> 0 | N148: =IF(Travel_Expenses=Yes_Select,X148,0) -> 0 | S148: =H148+K148+N148+P148 -> 0 | U148: =SUM(IF(EXACT('Travel - System'!$P$4,Traveller_Type),IF(EXACT('Authorisation - Autorisation'!$B148,Traveller_Branch),1,0),0)) -> 0 | V148: =SUM(IF(EXACT('Travel - System'!$P$4,Traveller_Type),IF(EXACT('Authorisation - Autorisation'!$B148,Traveller_Branch),Travel_Transportation_Costs,0),0)) -> 0 | W148: =SUM(IF(EXACT('Travel - System'!$P$4,Traveller_Type),IF(EXACT('Authorisation - Autorisation'!$B148,Traveller_Branch),Travel_Accomodations_Cost,0),0)) -> 0 | X148: =SUM(IF(EXACT('Travel - System'!$P$4,Traveller_Type),IF(EXACT('Authorisation - Autorisation'!$B148,Traveller_Branch),Travel_Meals_Cost,0),0)) -> 0 | Y148: =SUM(IF(EXACT('Travel - System'!$P$4,Traveller_Type),IF(EXACT('Authorisation - Autorisation'!$B148,Traveller_Branch),Travel_Incidentals_Cost,0),0)) -> 0
B149: =IF(OR(NOT(Travel_Expenses=Yes_Select),Travel_Branches_Count_nonPS>8),"",'Travel - System'!S11) ->  | F149: =IF(Travel_Expenses=Yes_Select,U149,0) -> 0 | H149: =IF(Travel_Expenses=Yes_Select,V149,0) -> 0 | K149: =IF(Travel_Expenses=Yes_Select,W149,0) -> 0 | N149: =IF(Travel_Expenses=Yes_Select,X149,0) -> 0 | S149: =H149+K149+N149+P149 -> 0 | U149: =SUM(IF(EXACT('Travel - System'!$P$4,Traveller_Type),IF(EXACT('Authorisation - Autorisation'!$B149,Traveller_Branch),1,0),0)) -> 0 | V149: =SUM(IF(EXACT('Travel - System'!$P$4,Traveller_Type),IF(EXACT('Authorisation - Autorisation'!$B149,Traveller_Branch),Travel_Transportation_Costs,0),0)) -> 0 | W149: =SUM(IF(EXACT('Travel - System'!$P$4,Traveller_Type),IF(EXACT('Authorisation - Autorisation'!$B149,Traveller_Branch),Travel_Accomodations_Cost,0),0)) -> 0 | X149: =SUM(IF(EXACT('Travel - System'!$P$4,Traveller_Type),IF(EXACT('Authorisation - Autorisation'!$B149,Traveller_Branch),Travel_Meals_Cost,0),0)) -> 0 | Y149: =SUM(IF(EXACT('Travel - System'!$P$4,Traveller_Type),IF(EXACT('Authorisation - Autorisation'!$B149,Traveller_Branch),Travel_Incidentals_Cost,0),0)) -> 0
B151: D) OTHER COSTS (Supporting Documentation Required) – AUTRES COÛTS (Documentation à l’appui requise)
B152: Select other costs / Sélectionner les autres coûts | J152: Costs / Coûts | M152: Justification and details / justification et détails
B153: =IF(NOT(Other_Room_Cost=0),"☒ ","☐ ") & "Room rental / Location de salle" -> ☐ Room rental / Location de salle | J153: =Other_Room_Cost -> 0 | M153: =IF(Other_Room_Justification=0,"",Other_Room_Justification) -> 
B154: =IF(NOT(Other_Equipement_Cost=0),"☒ ","☐ ") & "Equipment rental / Location d'équipement" -> ☐ Equipment rental / Location d'équipement | J154: =Other_Equipement_Cost -> 0 | M154: =IF(Other_Equipment_Justification=0,"",Other_Equipment_Justification) -> 
B155: =IF(NOT(Other_Material_Cost=0),"☒ ","☐ ") & "Materials for participants / Matériel pour les participants" -> ☐ Materials for participants / Matériel pour les participants | J155: =Other_Material_Cost -> 0 | M155: =IF(Other_Material_Justification=0,"",Other_Material_Justification) -> 
B156: =IF(NOT(Other_Professional_Cost=0),"☒ ","☐ ") & "Professional fees / Services professionnels" -> ☐ Professional fees / Services professionnels | J156: =Other_Professional_Cost -> 0 | M156: =IF(Other_Professional_Justification=0,"",Other_Professional_Justification) -> 
B157: =IF(NOT(Other_Awards_Cost=0),"☒ ","☐ ") & "Recognition awards / Prix de reconnaissance" -> ☐ Recognition awards / Prix de reconnaissance | J157: =Other_Awards_Cost -> 0 | M157: =IF(Other_Awards_Justification=0,"",Other_Awards_Justification) -> 
B158: =IF(NOT(Other_Other_Cost=0),"☒ ","☐ ") & "Other / Autres" -> ☐ Other / Autres | J158: =Other_Other_Cost -> 0 | M158: =IF(Other_Other_Justification=0,"",Other_Other_Justification) -> 
B160: SIGNATURES
B161: THCEE File prepared by: (Name and phone number) Dossier DVACÉ préparé par : (Nom et numéro de téléphone) | M161: =IF(Prepared_by=0,"",Prepared_by) -> 
B162: ESDC total estimated cost / Coût total estimé pour EDSC : | M162: =R44 -> 0
B163: Requested By - Demandé par : (Key contact / Personne-ressource principale)
Q164: =IF(Requester_Branch=0,"",Requester_Branch) -> 
C165: =IF(Requester_Name=0,"",Requester_Name) ->  | K165: =IF(Requester_Title=0,"",Requester_Title) -> 
C166: Name / Nom | K166: Title / Titre | Q166: Branch / Direction générale
Q168: =IF(Requester_RC=0,"",Requester_RC) -> 
C169: Signature | K169: Date | Q169: Fund Centre / Centre financier
B171: Event / Événement | D171: Operational Activity / Activité Opérationnelle | I171: Required level of approval / Niveau d’approbation requis :
B172: EVENT - ÉVÉNEMENT | D172: HOSPITALITY / ACCUEIL | F172: =IF(AND(NOT(Activity_is_Event),Hospitality_Delegation_Level=1),"☒","☐") -> ☐ | G172: CONFERENCE / CONFÉRENCE | I172: Director / Directeur
C173: =IF(AND(Activity_is_Event,OR(Event_Delegation_Level=2,Hospitality_Delegation_Level=2)),"☒","☐") -> ☐ | F173: =IF(AND(NOT(Activity_is_Event),Hospitality_Delegation_Level=2),"☒","☐") -> ☐ | I173: Director General / Directeur général
C174: =IF(AND(Activity_is_Event,OR(Event_Delegation_Level=3,Hospitality_Delegation_Level=3)),"☒","☐") -> ☐ | F174: =IF(AND(NOT(Activity_is_Event),Hospitality_Delegation_Level=3),"☒","☐") -> ☐ | H174: =IF(AND(NOT(Activity_is_Event),Conference_Delegation_Level=3),"☒","☐") -> ☐ | I174: ADM or equivalent / SMA ou equivalent
C175: =IF(AND(Activity_is_Event,OR(Event_Delegation_Level=4.1,Hospitality_Delegation_Level=4.1)),"☒","☐") -> ☐ | F175: =IF(AND(NOT(Activity_is_Event),Hospitality_Delegation_Level=4.1),"☒","☐") -> ☐ | H175: =IF(AND(NOT(Activity_is_Event),Conference_Delegation_Level=4.1),"☒","☐") -> ☐ | I175: Chief Financial Officer / Agent principal des finances
C176: =IF(AND(Activity_is_Event,OR(Event_Delegation_Level=4,Hospitality_Delegation_Level=4)),"☒","☐") -> ☐ | F176: =IF(AND(NOT(Activity_is_Event),Hospitality_Delegation_Level=4),"☒","☐") -> ☐ | H176: =IF(AND(NOT(Activity_is_Event),Conference_Delegation_Level=4),"☒","☐") -> ☐ | I176: Deputy Minister or Chief Operating Officer / Sous-ministre ou Chef de l’exploitation
C177: =IF(AND(Activity_is_Event,OR(Event_Delegation_Level=3.5,Hospitality_Delegation_Level=3.5)),"☒","☐") -> ☐ | I177: Senior ADM Strategic Policy and Research (for international) / SMA principal Politique stratégique et recherche (pour international)
C178: =IF(AND(Activity_is_Event,OR(Event_Delegation_Level=5,Hospitality_Delegation_Level=5)),"☒","☐") -> ☐ | F178: =IF(AND(NOT(Activity_is_Event),Hospitality_Delegation_Level=5),"☒","☐") -> ☐ | H178: =IF(AND(NOT(Activity_is_Event),Conference_Delegation_Level=5),"☒","☐") -> ☐ | I178: Minister / Ministre
B179: Attestation for recommender and approver / Attestation pour recommandation et approbation :
B180: (Not applicable for After the fact acknowledgment – Sans objet pour reconnaissance après les faits)
B181: I certify that travel, hospitality, conferences and event expenditures are managed with prudence and probity and represent the most economic and efficient use of funds given the nature of the activity in relation to the achievement of our department's objectives. I have reviewed the request and certify that the financial information presented is correct; the request conforms to ESDC’s delegation of authority instrument; and sufficient documentation has been provided to confirm compliance to both departmental and Treasury Board Secretariat policies, including the current Directive on Travel, Hospitality, Conference and Event Expenditures. I recommend the request for your approval.
B182: Je certifie que les dépenses de voyages, d'accueil, de conférences et d'événements sont gérées avec prudence et probité, et elles représentent la façon la plus économique et la plus efficace d'utiliser les fonds publics, compte tenu de la nature de l'activité par rapport à la réalisation des objectifs de notre ministère. J’ai révisé la demande et j’atteste que les informations financières sont exactes; la présentation est conforme à la délégation de pouvoir de EDSC; et suffisamment de documentation a été fournie pour confirmer le respect des politiques du ministère et du Secrétariat du Conseil du Trésor, incluant la Directive sur les dépenses de voyages, d'accueil, de conférences et d'événements. Je recommande l’approbation de cette demande.
B184: Recommendation / Recommandation | I184: Approval / Approbation | M184: After the fact acknowledgment / Reconnaissance après les faits
B186: (Delegated manager when applicable / Gestionnaire délégué lorsque applicable)
C188: Name / Nom | K188: Title / Titre
C192: Signature | K192: Date
B194: Recommendation / Recommandation | I194: Approval / Approbation | M194: After the fact acknowledgment / Reconnaissance après les faits
B196: (ADM or equivalent or Delegated manager when applicable / SMA ou équivalent ou gestionnaire délégué lorsque applicable)
C198: Name / Nom | K198: Title / Titre
C202: Signature | K202: Date
B204: Recommendation / Recommandation | I204: Approval / Approbation | M204: Recommendation / Recommandation | R204: Approval / Approbation
B206: After the fact acknowledgment / Reconnaissance après les faits | M206: After the fact acknowledgment / Reconnaissance après les faits
D208: ,Senior ADM Strategic and Service Policy Branch | M208: Karen Robertson, Chief financial Officer / Dirigeant principal des finances
B209: (for ESDC international travel only) / SMA principal Politiques stratégiques
B210: et de service (pour voyage international de EDSC seulement)
C212: Signature | I212: Date | N212: Signature | R212: Date
B213: Recommendation / Recommandation | I213: Approval / Approbation | M213: Approved By - Approuvé par :
B215: After the fact acknowledgment / Reconnaissance après les faits
G217: , Deputy Minister or Chief | Q217: , Minister - Ministre
B218: Operating Officer / Sous-ministre ou Chef de l'exploitation
C221: Signature | I221: Date | N221: Signature | R221: Date

Sheet Travel Plan - Plan de voyage (hidden)
C1: Activity Title Titre de l'activité | E1: =IF(Activity_Title=0,"",Activity_Title) -> 
A2: Travel Plan Plan des voyages | D2: Branch / Direction générale :
D3: Categorie / Catégorie :
D4: Travel Objective / Objectif des voyages :
A5: Rationale for transportation / Raison pour le transport :
A6: Rationale for accomodations / Raison pour le logement :
A7: Rationale for Meals / Raison pour les repas :
A8: Rationale for Incidentals and other costs / Raison pour les faux frais ou autres coûts :
A9: Rationale why virtual presence or other remote meeting solutions were not applied / Raison pour laquelle la présence virtuelle ou une autre solution de réunion à distance n'a pu être appliquée :
A11: Travellers Name / Nom des voyageurs | B11: Public Servant or Non Public Servant / Fonctionnaire ou non-Fonctionnaire | C11: Travel Dates / Dates du voyage | E11: (City, Country / Ville, Pays) | G11: Mode of Transportation / Mode de transport | R11: Accomodations / Logement | V11: Meals / Repas | Y11: Incidentals / Faux frais ** | Z11: Other costs / Autres coûts * | AA11: Total Travel Costs / Coût total du voyage
C12: From / Du dd/mm/yyyy jj-mm-aaaa | D12: To / Au dd/mm/yyyy jj-mm-aaaa | E12: Origin / Origine | F12: Destination | G12: Air / Avion | H12: Rail / Train | I12: Bus / Autobus | J12: Ferry / Traversier | K12: Taxis / Taxi | L12: Personal Vehicle / Véhicule privé | M12: Rental vehicle / Véhicule loué | N12: Govt vehicle / Véhicule gouvernemantal | O12: Public transit / Transport en commun | P12: Parking / Stationnement | Q12: Other mode / Autre mode | R12: Commercial / Commercial | S12: Unlisted commercial / Non listé commercial | T12: Private / Privé | U12: Other / Autre | V12: Breakfast / Déjeuner | W12: Lunch / Dîner | X12: Dinner / Souper
G13: 0 | H13: 0 | I13: 0 | J13: 0 | K13: 0 | L13: 0 | M13: 0 | N13: 0 | O13: 0 | P13: 0 | Q13: 0 | R13: 0 | S13: 0 | T13: 0 | U13: 0 | V13: 0 | W13: 0 | X13: 0 | Y13: 0 | Z13: 0 | AA13: =SUM(G13:Z13) -> 0
A14: Total | G14: =SUM(G13:G13) -> 0 | H14: 0 | I14: 0 | J14: 0 | K14: 0 | L14: 0 | M14: 0 | N14: 0 | O14: 0 | P14: 0 | Q14: 0 | R14: 0 | S14: 0 | T14: 0 | U14: 0 | V14: 0 | W14: 0 | X14: 0 | Y14: 0 | Z14: 0 | AA14: 0
A16: * Provide a description in the appropriate rationale above. / Fournir une description dans la raison approprié ci-dessus.
A17: ** For Public Servant only / Pour fonctionnaires seulement
A18: I certify that travel, hospitality, conferences and event expenditures are managed with prudence and probity and represent the most economic and efficient use of funds given the nature of the activity in relation to the achievement of our department's objectives.
A19: Je certifie que les dépenses de voyages, d'accueil, de conférences et d'événements sont gérées avec prudence et probité, et elles représentent la façon la plus économique et la plus efficace d'utiliser les fonds publics, compte tenu de la nature de l'activité par rapport à la réalisation des objectifs de notre ministère.
A21: Recommender / Recommandation : (If needed / si nécessaire) | G21: Recommender / Recommandation : (If needed / si nécessaire) | O21: Approver / Approbation :
A24: Recommended by / Recommandé par | D24: Position Title / Titre du poste | G24: Recommended by / Recommandé par | K24: Position Title / Titre du poste | O24: Approved by / Approuvé par | U24: Position Title / Titre du poste
A27: Signature | D27: Date | G27: Signature | K27: Date | O27: Signature | U27: Date
A30: Grand Total | G30: 0 | H30: 0 | I30: 0 | J30: 0 | K30: 0 | L30: 0 | M30: 0 | N30: 0 | O30: 0 | P30: 0 | Q30: 0 | R30: 0 | S30: 0 | T30: 0 | U30: 0 | V30: 0 | W30: 0 | X30: 0 | Y30: 0 | Z30: 0 | AA30: 0

Sheet Hospitality - Accueil (hidden)
B1: SUMMARY OF HOSPITALITY EXPENDITURES / SOMMAIRE DES DÉPENSES D'ACCUEIL
B3: Title of the activity: Titre de l'activité : | D3: =IF(Activity_Title=0,"",Activity_Title) -> 
B5: Day 1 / Jour 1 | K5: Day 2 / Jour 2
C7: ="Date:"&IF('Hospitality - DATA'!A3="","",'Hospitality - DATA'!A3) -> Date: | D7: Public Servants / Fonctionnaires | E7: Non-Public Servants / Non-fonctionnaires | F7: Total Participants / Nombre total de participants | G7: Average Cost per person / Coût moyen par personne | H7: Hospitality cost (including taxes & service) / Coût des frais d'accueil (incluant les taxes et le service) | L7: ="Date:"&IF('Hospitality - DATA'!A4="","",'Hospitality - DATA'!A4) -> Date: | N7: Public Servants / Fonctionnaires | O7: Non-Public Servants / Non-fonctionnaires | P7: Total Participants / Nombre total de participants | Q7: Average Cost per person / Coût moyen par personne | R7: Hospitality cost (including taxes & service) / Coût des frais d'accueil (incluant les taxes et le service)
C9: Breakfast Petit Déjeuner | D9: ='Hospitality - DATA'!$C$3 -> 0 | E9: ='Hospitality - DATA'!$D$3 -> 0 | F9: =D9+E9 -> 0 | G9: =IFERROR(H9/F9,0) -> 0 | H9: =((('Hospitality - DATA'!$B$3*('Hospitality - DATA'!$C$3+'Hospitality - DATA'!$D$3))+'Hospitality - DATA'!$E$3)*'Hospitality - DATA'!$AJ$3)+(('Hospitality - DATA'!$B$3*('Hospitality - DATA'!$C$3+'Hospitality - DATA'!$D$3))+'Hospitality - DATA'!$E$3) -> 0 | L9: Breakfast Petit Déjeuner | N9: ='Hospitality - DATA'!$C$4 -> 0 | O9: ='Hospitality - DATA'!$D$4 -> 0 | P9: =N9+O9 -> 0 | Q9: =IFERROR(R9/P9,0) -> 0 | R9: =((('Hospitality - DATA'!$B$4*('Hospitality - DATA'!$C$4+'Hospitality - DATA'!$D$4))+'Hospitality - DATA'!$E$4)*'Hospitality - DATA'!$AJ$4)+(('Hospitality - DATA'!$B$4*('Hospitality - DATA'!$C$4+'Hospitality - DATA'!$D$4))+'Hospitality - DATA'!$E$4) -> 0
C11: Refreshments AM Rafraîchissements en avant-midi | D11: ='Hospitality - DATA'!$G$3 -> 0 | E11: ='Hospitality - DATA'!$H$3 -> 0 | F11: =D11+E11 -> 0 | G11: =IFERROR(H11/F11,0) -> 0 | H11: =((('Hospitality - DATA'!$F$3*('Hospitality - DATA'!$G$3+'Hospitality - DATA'!$H$3))+'Hospitality - DATA'!$I$3)*'Hospitality - DATA'!$AJ$3)+(('Hospitality - DATA'!$F$3*('Hospitality - DATA'!$G$3+'Hospitality - DATA'!$H$3))+'Hospitality - DATA'!$I$3) -> 0 | L11: Refreshments AM Rafraîchissements en avant-midi | N11: ='Hospitality - DATA'!$G$4 -> 0 | O11: ='Hospitality - DATA'!$H$4 -> 0 | P11: =N11+O11 -> 0 | Q11: =IFERROR(R11/P11,0) -> 0 | R11: =((('Hospitality - DATA'!$F$4*('Hospitality - DATA'!$G$4+'Hospitality - DATA'!$H$4))+'Hospitality - DATA'!$I$4)*'Hospitality - DATA'!$AJ$4)+(('Hospitality - DATA'!$F$4*('Hospitality - DATA'!$G$4+'Hospitality - DATA'!$H$4))+'Hospitality - DATA'!$I$4) -> 0
C13: Lunch Déjeuner | D13: ='Hospitality - DATA'!$K$3 -> 0 | E13: ='Hospitality - DATA'!$L$3 -> 0 | F13: 0 | G13: =IFERROR(H13/F13,0) -> 0 | H13: =((('Hospitality - DATA'!$J$3*('Hospitality - DATA'!$K$3+'Hospitality - DATA'!$L$3))+'Hospitality - DATA'!$M$3)*'Hospitality - DATA'!$AJ$3)+(('Hospitality - DATA'!$J$3*('Hospitality - DATA'!$K$3+'Hospitality - DATA'!$L$3))+'Hospitality - DATA'!$M$3) -> 0 | L13: Lunch Déjeuner | N13: ='Hospitality - DATA'!$K$4 -> 0 | O13: ='Hospitality - DATA'!$L$4 -> 0 | P13: =N13+O13 -> 0 | Q13: =IFERROR(R13/P13,0) -> 0 | R13: =((('Hospitality - DATA'!$J$4*('Hospitality - DATA'!$K$4+'Hospitality - DATA'!$L$4))+'Hospitality - DATA'!$M$4)*'Hospitality - DATA'!$AJ$4)+(('Hospitality - DATA'!$J$4*('Hospitality - DATA'!$K$4+'Hospitality - DATA'!$L$4))+'Hospitality - DATA'!$M$4) -> 0
C15: Refreshments PM Rafraîchissements en après-midi | D15: ='Hospitality - DATA'!$O$3 -> 0 | E15: ='Hospitality - DATA'!$P$3 -> 0 | F15: 0 | G15: =IFERROR(H15/F15,0) -> 0 | H15: =((('Hospitality - DATA'!$N$3*('Hospitality - DATA'!$O$3+'Hospitality - DATA'!$P$3))+'Hospitality - DATA'!$Q$3)*'Hospitality - DATA'!$AJ$3)+(('Hospitality - DATA'!$N$3*('Hospitality - DATA'!$O$3+'Hospitality - DATA'!$P$3))+'Hospitality - DATA'!$Q$3) -> 0 | L15: Refreshments PM Rafraîchissements en après-midi | N15: ='Hospitality - DATA'!$O$4 -> 0 | O15: ='Hospitality - DATA'!$P$4 -> 0 | P15: =N15+O15 -> 0 | Q15: =IFERROR(R15/P15,0) -> 0 | R15: =((('Hospitality - DATA'!$N$4*('Hospitality - DATA'!$O$4+'Hospitality - DATA'!$P$4))+'Hospitality - DATA'!$Q$4)*'Hospitality - DATA'!$AJ$4)+(('Hospitality - DATA'!$N$4*('Hospitality - DATA'!$O$4+'Hospitality - DATA'!$P$4))+'Hospitality - DATA'!$Q$4) -> 0
C17: Dinner Dîner | D17: ='Hospitality - DATA'!$S$3 -> 0 | E17: ='Hospitality - DATA'!$T$3 -> 0 | F17: 0 | G17: =IFERROR(H17/F17,0) -> 0 | H17: =((('Hospitality - DATA'!$R$3*('Hospitality - DATA'!$S$3+'Hospitality - DATA'!$T$3))+'Hospitality - DATA'!$U$3)*'Hospitality - DATA'!$AJ$3)+(('Hospitality - DATA'!$R$3*('Hospitality - DATA'!$S$3+'Hospitality - DATA'!$T$3))+'Hospitality - DATA'!$U$3) -> 0 | L17: Dinner Dîner | N17: ='Hospitality - DATA'!$S$4 -> 0 | O17: ='Hospitality - DATA'!$T$4 -> 0 | P17: =N17+O17 -> 0 | Q17: =IFERROR(R17/P17,0) -> 0 | R17: =((('Hospitality - DATA'!$R$4*('Hospitality - DATA'!$S$4+'Hospitality - DATA'!$T$4))+'Hospitality - DATA'!$U$4)*'Hospitality - DATA'!$AJ$4)+(('Hospitality - DATA'!$R$4*('Hospitality - DATA'!$S$4+'Hospitality - DATA'!$T$4))+'Hospitality - DATA'!$U$4) -> 0
C19: Reception Réception | D19: ='Hospitality - DATA'!$W$3 -> 0 | E19: ='Hospitality - DATA'!$X$3 -> 0 | F19: 0 | G19: =IFERROR(H19/F19,0) -> 0 | H19: =((('Hospitality - DATA'!$V$3*('Hospitality - DATA'!$W$3+'Hospitality - DATA'!$X$3))+'Hospitality - DATA'!$Y$3)*'Hospitality - DATA'!$AJ$3)+(('Hospitality - DATA'!$V$3*('Hospitality - DATA'!$W$3+'Hospitality - DATA'!$X$3))+'Hospitality - DATA'!$Y$3) -> 0 | L19: Reception Réception | N19: ='Hospitality - DATA'!$W$4 -> 0 | O19: ='Hospitality - DATA'!$X$4 -> 0 | P19: =N19+O19 -> 0 | Q19: =IFERROR(R19/P19,0) -> 0 | R19: =((('Hospitality - DATA'!$V$4*('Hospitality - DATA'!$W$4+'Hospitality - DATA'!$X$4))+'Hospitality - DATA'!$Y$4)*'Hospitality - DATA'!$AJ$4)+(('Hospitality - DATA'!$V$4*('Hospitality - DATA'!$W$4+'Hospitality - DATA'!$X$4))+'Hospitality - DATA'!$Y$4) -> 0
C21: Other form of regular hospitality Autre forme d’accueil régulier | D21: ='Hospitality - DATA'!$AD$3 -> 0 | E21: ='Hospitality - DATA'!$AE$3 -> 0 | F21: =D21+E21 -> 0 | G21: N/A - S/O | H21: ='Hospitality - DATA'!$AF$3 -> 0 | L21: Other form of regular hospitality Autre forme d’accueil régulier | N21: ='Hospitality - DATA'!$AD$4 -> 0 | O21: ='Hospitality - DATA'!$AE$4 -> 0 | P21: =N21+O21 -> 0 | Q21: N/A - S/O | R21: ='Hospitality - DATA'!$AF$4 -> 0
C23: Exceptional form of hospitality Forme exceptionnelle d’accueil | D23: ='Hospitality - DATA'!$AG$3 -> 0 | E23: ='Hospitality - DATA'!$AH$3 -> 0 | F23: 0 | G23: N/A - S/O | H23: ='Hospitality - DATA'!$AI$3 -> 0 | L23: Exceptional form of hospitality Forme exceptionnelle d’accueil | N23: ='Hospitality - DATA'!$AG$4 -> 0 | O23: ='Hospitality - DATA'!$AH$4 -> 0 | P23: =N23+O23 -> 0 | Q23: N/A - S/O | R23: ='Hospitality - DATA'!$AI$4 -> 0
C25: Totals / Totaux | G25: =SUM(G9,G11,G13,G15,G17,G19) -> 0 | H25: =SUM(H9,H11,H13,H15,H17,H19,H21,H23) -> 0 | L25: Totals / Totaux | Q25: =SUM(Q9,Q11,Q13,Q15,Q17,Q19) -> 0 | R25: =SUM(R9,R11,R13,R15,R17,R19,R21,R23) -> 0
B28: Day 3 / Jour 3 | K28: Day 4 / Jour 4
C30: ="Date:"&IF('Hospitality - DATA'!A5="","",'Hospitality - DATA'!A5) -> Date: | D30: Public Servants / Fonctionnaires | E30: Non-Public Servants / Non-fonctionnaires | F30: Total Participants / Nombre total de participants | G30: Average Cost per person / Coût moyen par personne | H30: Hospitality cost (including taxes & service) / Coût des frais d'accueil (incluant les taxes et le service) | L30: ="Date:"&IF('Hospitality - DATA'!A6="","",'Hospitality - DATA'!A6) -> Date: | N30: Public Servants / Fonctionnaires | O30: Non-Public Servants / Non-fonctionnaires | P30: Total Participants / Nombre total de participants | Q30: Average Cost per person / Coût moyen par personne | R30: Hospitality cost (including taxes & service) / Coût des frais d'accueil (incluant les taxes et le service)
C32: Breakfast Petit Déjeuner | D32: ='Hospitality - DATA'!$C$5 -> 0 | E32: ='Hospitality - DATA'!$D$5 -> 0 | F32: =D32+E32 -> 0 | G32: =IFERROR(H32/F32,0) -> 0 | H32: =((('Hospitality - DATA'!$B$5*('Hospitality - DATA'!$C$5+'Hospitality - DATA'!$D$5))+'Hospitality - DATA'!$E$5)*'Hospitality - DATA'!$AJ$5)+(('Hospitality - DATA'!$B$5*('Hospitality - DATA'!$C$5+'Hospitality - DATA'!$D$5))+'Hospitality - DATA'!$E$5) -> 0 | L32: Breakfast Petit Déjeuner | N32: ='Hospitality - DATA'!$C$6 -> 0 | O32: ='Hospitality - DATA'!$D$6 -> 0 | P32: =N32+O32 -> 0 | Q32: =IFERROR(R32/P32,0) -> 0 | R32: =((('Hospitality - DATA'!$B$6*('Hospitality - DATA'!$C$6+'Hospitality - DATA'!$D$6))+'Hospitality - DATA'!$E$6)*'Hospitality - DATA'!$AJ$6)+(('Hospitality - DATA'!$B$6*('Hospitality - DATA'!$C$6+'Hospitality - DATA'!$D$6))+'Hospitality - DATA'!$E$6) -> 0
C34: Refreshments AM Rafraîchissements en avant-midi | D34: ='Hospitality - DATA'!$G$5 -> 0 | E34: ='Hospitality - DATA'!$H$5 -> 0 | F34: =D34+E34 -> 0 | G34: =IFERROR(H34/F34,0) -> 0 | H34: =((('Hospitality - DATA'!$F$5*('Hospitality - DATA'!$G$5+'Hospitality - DATA'!$H$5))+'Hospitality - DATA'!$I$5)*'Hospitality - DATA'!$AJ$5)+(('Hospitality - DATA'!$F$5*('Hospitality - DATA'!$G$5+'Hospitality - DATA'!$H$5))+'Hospitality - DATA'!$I$5) -> 0 | L34: Refreshments AM Rafraîchissements en avant-midi | N34: ='Hospitality - DATA'!$G$6 -> 0 | O34: ='Hospitality - DATA'!$H$6 -> 0 | P34: =N34+O34 -> 0 | Q34: =IFERROR(R34/P34,0) -> 0 | R34: =((('Hospitality - DATA'!$F$6*('Hospitality - DATA'!$G$6+'Hospitality - DATA'!$H$6))+'Hospitality - DATA'!$I$6)*'Hospitality - DATA'!$AJ$6)+(('Hospitality - DATA'!$F$6*('Hospitality - DATA'!$G$6+'Hospitality - DATA'!$H$6))+'Hospitality - DATA'!$I$6) -> 0
C36: Lunch Déjeuner | D36: ='Hospitality - DATA'!$K$5 -> 0 | E36: ='Hospitality - DATA'!$L$5 -> 0 | F36: =D36+E36 -> 0 | G36: =IFERROR(H36/F36,0) -> 0 | H36: =((('Hospitality - DATA'!$J$5*('Hospitality - DATA'!$K$5+'Hospitality - DATA'!$L$5))+'Hospitality - DATA'!$M$5)*'Hospitality - DATA'!$AJ$5)+(('Hospitality - DATA'!$J$5*('Hospitality - DATA'!$K$5+'Hospitality - DATA'!$L$5))+'Hospitality - DATA'!$M$5) -> 0 | L36: Lunch Déjeuner | N36: ='Hospitality - DATA'!$K$6 -> 0 | O36: ='Hospitality - DATA'!$L$6 -> 0 | P36: =N36+O36 -> 0 | Q36: =IFERROR(R36/P36,0) -> 0 | R36: =((('Hospitality - DATA'!$J$6*('Hospitality - DATA'!$K$6+'Hospitality - DATA'!$L$6))+'Hospitality - DATA'!$M$6)*'Hospitality - DATA'!$AJ$6)+(('Hospitality - DATA'!$J$6*('Hospitality - DATA'!$K$6+'Hospitality - DATA'!$L$6))+'Hospitality - DATA'!$M$6) -> 0
C38: Refreshments PM Rafraîchissements en après-midi | D38: ='Hospitality - DATA'!$O$5 -> 0 | E38: ='Hospitality - DATA'!$P$5 -> 0 | F38: =D38+E38 -> 0 | G38: =IFERROR(H38/F38,0) -> 0 | H38: =((('Hospitality - DATA'!$N$5*('Hospitality - DATA'!$O$5+'Hospitality - DATA'!$P$5))+'Hospitality - DATA'!$Q$5)*'Hospitality - DATA'!$AJ$5)+(('Hospitality - DATA'!$N$5*('Hospitality - DATA'!$O$5+'Hospitality - DATA'!$P$5))+'Hospitality - DATA'!$Q$5) -> 0 | L38: Refreshments PM Rafraîchissements en après-midi | N38: ='Hospitality - DATA'!$O$6 -> 0 | O38: ='Hospitality - DATA'!$P$6 -> 0 | P38: =N38+O38 -> 0 | Q38: =IFERROR(R38/P38,0) -> 0 | R38: =((('Hospitality - DATA'!$N$6*('Hospitality - DATA'!$O$6+'Hospitality - DATA'!$P$6))+'Hospitality - DATA'!$Q$6)*'Hospitality - DATA'!$AJ$6)+(('Hospitality - DATA'!$N$6*('Hospitality - DATA'!$O$6+'Hospitality - DATA'!$P$6))+'Hospitality - DATA'!$Q$6) -> 0
C40: Dinner Dîner | D40: ='Hospitality - DATA'!$S$5 -> 0 | E40: ='Hospitality - DATA'!$T$5 -> 0 | F40: =D40+E40 -> 0 | G40: =IFERROR(H40/F40,0) -> 0 | H40: =((('Hospitality - DATA'!$R$5*('Hospitality - DATA'!$S$5+'Hospitality - DATA'!$T$5))+'Hospitality - DATA'!$U$5)*'Hospitality - DATA'!$AJ$5)+(('Hospitality - DATA'!$R$5*('Hospitality - DATA'!$S$5+'Hospitality - DATA'!$T$5))+'Hospitality - DATA'!$U$5) -> 0 | L40: Dinner Dîner | N40: ='Hospitality - DATA'!$S$6 -> 0 | O40: ='Hospitality - DATA'!$T$6 -> 0 | P40: =N40+O40 -> 0 | Q40: =IFERROR(R40/P40,0) -> 0 | R40: =((('Hospitality - DATA'!$R$6*('Hospitality - DATA'!$S$6+'Hospitality - DATA'!$T$6))+'Hospitality - DATA'!$U$6)*'Hospitality - DATA'!$AJ$6)+(('Hospitality - DATA'!$R$6*('Hospitality - DATA'!$S$6+'Hospitality - DATA'!$T$6))+'Hospitality - DATA'!$U$6) -> 0
C42: Reception Réception | D42: ='Hospitality - DATA'!$W$5 -> 0 | E42: ='Hospitality - DATA'!$X$5 -> 0 | F42: =D42+E42 -> 0 | G42: =IFERROR(H42/F42,0) -> 0 | H42: =((('Hospitality - DATA'!$V$5*('Hospitality - DATA'!$W$5+'Hospitality - DATA'!$X$5))+'Hospitality - DATA'!$Y$5)*'Hospitality - DATA'!$AJ$5)+(('Hospitality - DATA'!$V$5*('Hospitality - DATA'!$W$5+'Hospitality - DATA'!$X$5))+'Hospitality - DATA'!$Y$5) -> 0 | L42: Reception Réception | N42: ='Hospitality - DATA'!$W$6 -> 0 | O42: ='Hospitality - DATA'!$X$6 -> 0 | P42: =N42+O42 -> 0 | Q42: =IFERROR(R42/P42,0) -> 0 | R42: =((('Hospitality - DATA'!$V$6*('Hospitality - DATA'!$W$6+'Hospitality - DATA'!$X$6))+'Hospitality - DATA'!$Y$6)*'Hospitality - DATA'!$AJ$6)+(('Hospitality - DATA'!$V$6*('Hospitality - DATA'!$W$6+'Hospitality - DATA'!$X$6))+'Hospitality - DATA'!$Y$6) -> 0
C44: Other form of regular hospitality Autre forme d’accueil régulier | D44: ='Hospitality - DATA'!$AD$5 -> 0 | E44: ='Hospitality - DATA'!$AE$5 -> 0 | F44: =D44+E44 -> 0 | G44: N/A - S/O | H44: ='Hospitality - DATA'!$AF$5 -> 0 | L44: Other form of regular hospitality Autre forme d’accueil régulier | N44: ='Hospitality - DATA'!$AD$6 -> 0 | O44: ='Hospitality - DATA'!$AE$6 -> 0 | P44: =N44+O44 -> 0 | Q44: N/A - S/O | R44: ='Hospitality - DATA'!$AF$6 -> 0
C46: Exceptional form of hospitality Forme exceptionnelle d’accueil | D46: ='Hospitality - DATA'!$AG$5 -> 0 | E46: ='Hospitality - DATA'!$AH$5 -> 0 | F46: =D46+E46 -> 0 | G46: N/A - S/O | H46: ='Hospitality - DATA'!$AI$5 -> 0 | L46: Exceptional form of hospitality Forme exceptionnelle d’accueil | N46: ='Hospitality - DATA'!$AG$6 -> 0 | O46: ='Hospitality - DATA'!$AH$6 -> 0 | P46: =N46+O46 -> 0 | Q46: N/A - S/O | R46: ='Hospitality - DATA'!$AI$6 -> 0
C48: Totals / Totaux | G48: =SUM(G32,G34,G36,G38,G40,G42) -> 0 | H48: =SUM(H32,H34,H36,H38,H40,H42,H44,H46) -> 0 | L48: Totals / Totaux | Q48: =SUM(Q32,Q34,Q36,Q38,Q40,Q42) -> 0 | R48: =SUM(R32,R34,R36,R38,R40,R42,R44,R46) -> 0
B51: Day 5 / Jour 5 | K51: Day 6 / Jour 6
C53: ="Date:"&IF('Hospitality - DATA'!A7="","",'Hospitality - DATA'!A7) -> Date: | D53: Public Servants / Fonctionnaires | E53: Non-Public Servants / Non-fonctionnaires | F53: Total Participants / Nombre total de participants | G53: Average Cost per person / Coût moyen par personne | H53: Hospitality cost (including taxes & service) / Coût des frais d'accueil (incluant les taxes et le service) | L53: ="Date:"&IF('Hospitality - DATA'!A8="","",'Hospitality - DATA'!A8) -> Date: | N53: Public Servants / Fonctionnaires | O53: Non-Public Servants / Non-fonctionnaires | P53: Total Participants / Nombre total de participants | Q53: Average Cost per person / Coût moyen par personne | R53: Hospitality cost (including taxes & service) / Coût des frais d'accueil (incluant les taxes et le service)
C55: Breakfast Petit Déjeuner | D55: ='Hospitality - DATA'!$C$7 -> 0 | E55: ='Hospitality - DATA'!$D$7 -> 0 | F55: =D55+E55 -> 0 | G55: =IFERROR(H55/F55,0) -> 0 | H55: =((('Hospitality - DATA'!$B$7*('Hospitality - DATA'!$C$7+'Hospitality - DATA'!$D$7))+'Hospitality - DATA'!$E$7)*'Hospitality - DATA'!$AJ$7)+(('Hospitality - DATA'!$B$7*('Hospitality - DATA'!$C$7+'Hospitality - DATA'!$D$7))+'Hospitality - DATA'!$E$7) -> 0 | L55: Breakfast Petit Déjeuner | N55: ='Hospitality - DATA'!$C$8 -> 0 | O55: ='Hospitality - DATA'!$D$8 -> 0 | P55: =N55+O55 -> 0 | Q55: =IFERROR(R55/P55,0) -> 0 | R55: =((('Hospitality - DATA'!$B$8*('Hospitality - DATA'!$C$8+'Hospitality - DATA'!$D$8))+'Hospitality - DATA'!$E$8)*'Hospitality - DATA'!$AJ$8)+(('Hospitality - DATA'!$B$8*('Hospitality - DATA'!$C$8+'Hospitality - DATA'!$D$8))+'Hospitality - DATA'!$E$8) -> 0
C57: Refreshments AM Rafraîchissements en avant-midi | D57: ='Hospitality - DATA'!$G$7 -> 0 | E57: ='Hospitality - DATA'!$H$7 -> 0 | F57: =D57+E57 -> 0 | G57: =IFERROR(H57/F57,0) -> 0 | H57: =((('Hospitality - DATA'!$F$7*('Hospitality - DATA'!$G$7+'Hospitality - DATA'!$H$7))+'Hospitality - DATA'!$I$7)*'Hospitality - DATA'!$AJ$7)+(('Hospitality - DATA'!$F$7*('Hospitality - DATA'!$G$7+'Hospitality - DATA'!$H$7))+'Hospitality - DATA'!$I$7) -> 0 | L57: Refreshments AM Rafraîchissements en avant-midi | N57: ='Hospitality - DATA'!$G$8 -> 0 | O57: ='Hospitality - DATA'!$H$8 -> 0 | P57: =N57+O57 -> 0 | Q57: =IFERROR(R57/P57,0) -> 0 | R57: =((('Hospitality - DATA'!$F$8*('Hospitality - DATA'!$G$8+'Hospitality - DATA'!$H$8))+'Hospitality - DATA'!$I$8)*'Hospitality - DATA'!$AJ$8)+(('Hospitality - DATA'!$F$8*('Hospitality - DATA'!$G$8+'Hospitality - DATA'!$H$8))+'Hospitality - DATA'!$I$8) -> 0
C59: Lunch Déjeuner | D59: ='Hospitality - DATA'!$K$7 -> 0 | E59: ='Hospitality - DATA'!$L$7 -> 0 | F59: =D59+E59 -> 0 | G59: =IFERROR(H59/F59,0) -> 0 | H59: =((('Hospitality - DATA'!$J$7*('Hospitality - DATA'!$K$7+'Hospitality - DATA'!$L$7))+'Hospitality - DATA'!$M$7)*'Hospitality - DATA'!$AJ$7)+(('Hospitality - DATA'!$J$7*('Hospitality - DATA'!$K$7+'Hospitality - DATA'!$L$7))+'Hospitality - DATA'!$M$7) -> 0 | L59: Lunch Déjeuner | N59: ='Hospitality - DATA'!$K$8 -> 0 | O59: ='Hospitality - DATA'!$L$8 -> 0 | P59: =N59+O59 -> 0 | Q59: =IFERROR(R59/P59,0) -> 0 | R59: =((('Hospitality - DATA'!$J$8*('Hospitality - DATA'!$K$8+'Hospitality - DATA'!$L$8))+'Hospitality - DATA'!$M$8)*'Hospitality - DATA'!$AJ$8)+(('Hospitality - DATA'!$J$8*('Hospitality - DATA'!$K$8+'Hospitality - DATA'!$L$8))+'Hospitality - DATA'!$M$8) -> 0
C61: Refreshments PM Rafraîchissements en après-midi | D61: ='Hospitality - DATA'!$O$7 -> 0 | E61: ='Hospitality - DATA'!$P$7 -> 0 | F61: =D61+E61 -> 0 | G61: =IFERROR(H61/F61,0) -> 0 | H61: =((('Hospitality - DATA'!$N$7*('Hospitality - DATA'!$O$7+'Hospitality - DATA'!$P$7))+'Hospitality - DATA'!$Q$7)*'Hospitality - DATA'!$AJ$7)+(('Hospitality - DATA'!$N$7*('Hospitality - DATA'!$O$7+'Hospitality - DATA'!$P$7))+'Hospitality - DATA'!$Q$7) -> 0 | L61: Refreshments PM Rafraîchissements en après-midi | N61: ='Hospitality - DATA'!$O$8 -> 0 | O61: ='Hospitality - DATA'!$P$8 -> 0 | P61: =N61+O61 -> 0 | Q61: =IFERROR(R61/P61,0) -> 0 | R61: =((('Hospitality - DATA'!$N$8*('Hospitality - DATA'!$O$8+'Hospitality - DATA'!$P$8))+'Hospitality - DATA'!$Q$8)*'Hospitality - DATA'!$AJ$8)+(('Hospitality - DATA'!$N$8*('Hospitality - DATA'!$O$8+'Hospitality - DATA'!$P$8))+'Hospitality - DATA'!$Q$8) -> 0
C63: Dinner Dîner | D63: ='Hospitality - DATA'!$S$7 -> 0 | E63: ='Hospitality - DATA'!$T$7 -> 0 | F63: =D63+E63 -> 0 | G63: =IFERROR(H63/F63,0) -> 0 | H63: =((('Hospitality - DATA'!$R$7*('Hospitality - DATA'!$S$7+'Hospitality - DATA'!$T$7))+'Hospitality - DATA'!$U$7)*'Hospitality - DATA'!$AJ$7)+(('Hospitality - DATA'!$R$7*('Hospitality - DATA'!$S$7+'Hospitality - DATA'!$T$7))+'Hospitality - DATA'!$U$7) -> 0 | L63: Dinner Dîner | N63: ='Hospitality - DATA'!$S$8 -> 0 | O63: ='Hospitality - DATA'!$T$8 -> 0 | P63: =N63+O63 -> 0 | Q63: =IFERROR(R63/P63,0) -> 0 | R63: =((('Hospitality - DATA'!$R$8*('Hospitality - DATA'!$S$8+'Hospitality - DATA'!$T$8))+'Hospitality - DATA'!$U$8)*'Hospitality - DATA'!$AJ$8)+(('Hospitality - DATA'!$R$8*('Hospitality - DATA'!$S$8+'Hospitality - DATA'!$T$8))+'Hospitality - DATA'!$U$8) -> 0
C65: Reception Réception | D65: ='Hospitality - DATA'!$W$7 -> 0 | E65: ='Hospitality - DATA'!$X$7 -> 0 | F65: =D65+E65 -> 0 | G65: =IFERROR(H65/F65,0) -> 0 | H65: =((('Hospitality - DATA'!$V$7*('Hospitality - DATA'!$W$7+'Hospitality - DATA'!$X$7))+'Hospitality - DATA'!$Y$7)*'Hospitality - DATA'!$AJ$7)+(('Hospitality - DATA'!$V$7*('Hospitality - DATA'!$W$7+'Hospitality - DATA'!$X$7))+'Hospitality - DATA'!$Y$7) -> 0 | L65: Reception Réception | N65: ='Hospitality - DATA'!$W$8 -> 0 | O65: ='Hospitality - DATA'!$X$8 -> 0 | P65: =N65+O65 -> 0 | Q65: =IFERROR(R65/P65,0) -> 0 | R65: =((('Hospitality - DATA'!$V$8*('Hospitality - DATA'!$W$8+'Hospitality - DATA'!$X$8))+'Hospitality - DATA'!$Y$8)*'Hospitality - DATA'!$AJ$8)+(('Hospitality - DATA'!$V$8*('Hospitality - DATA'!$W$8+'Hospitality - DATA'!$X$8))+'Hospitality - DATA'!$Y$8) -> 0
C67: Other form of regular hospitality Autre forme d’accueil régulier | D67: ='Hospitality - DATA'!$AD$7 -> 0 | E67: ='Hospitality - DATA'!$AE$7 -> 0 | F67: =D67+E67 -> 0 | G67: N/A - S/O | H67: ='Hospitality - DATA'!$AF$7 -> 0 | L67: Other form of regular hospitality Autre forme d’accueil régulier | N67: ='Hospitality - DATA'!$AD$8 -> 0 | O67: ='Hospitality - DATA'!$AE$8 -> 0 | P67: =N67+O67 -> 0 | Q67: N/A - S/O | R67: ='Hospitality - DATA'!$AF$8 -> 0
C69: Exceptional form of hospitality Forme exceptionnelle d’accueil | D69: ='Hospitality - DATA'!$AG$7 -> 0 | E69: ='Hospitality - DATA'!$AH$7 -> 0 | F69: =D69+E69 -> 0 | G69: N/A - S/O | H69: ='Hospitality - DATA'!$AI$7 -> 0 | L69: Exceptional form of hospitality Forme exceptionnelle d’accueil | N69: ='Hospitality - DATA'!$AG$8 -> 0 | O69: ='Hospitality - DATA'!$AH$8 -> 0 | P69: =N69+O69 -> 0 | Q69: N/A - S/O | R69: ='Hospitality - DATA'!$AI$8 -> 0
C71: Totals / Totaux | G71: =SUM(G55,G57,G59,G61,G63,G65,G69) -> 0 | H71: =SUM(H55,H57,H59,H61,H63,H65,H67,H69) -> 0 | L71: Totals / Totaux | Q71: =SUM(Q55,Q57,Q59,Q61,Q63,Q65,Q69) -> 0 | R71: =SUM(R55,R57,R59,R61,R63,R65,R67,R69) -> 0
B74: SUMMARY / SOMMAIRE
D76: Day 1 / Jour 1 | E76: Day 2 / Jour 2 | F76: Day 3 / Jour 3 | G76: Day 4 / Jour 4 | H76: Day 5 / Jour 5 | I76: Day 6 / Jour 6 | L76: Total Hospitality cost / Coût total des frais d'accueil
C78: Breakfast Petit Déjeuner | D78: =H9 -> 0 | E78: =R9 -> 0 | F78: =H32 -> 0 | G78: =R32 -> 0 | H78: =H55 -> 0 | I78: =R55 -> 0 | L78: =SUM(D78:I78) -> 0
C80: Refreshments AM Rafraîchissements en avant-midi | D80: =H11 -> 0 | E80: =R11 -> 0 | F80: =H34 -> 0 | G80: =R34 -> 0 | H80: =H57 -> 0 | I80: =R57 -> 0 | L80: =SUM(D80:I80) -> 0
C82: Lunch Déjeuner | D82: =H13 -> 0 | E82: =R13 -> 0 | F82: =H36 -> 0 | G82: =R36 -> 0 | H82: =H59 -> 0 | I82: =R59 -> 0 | L82: =SUM(D82:I82) -> 0
C84: Refreshments PM Rafraîchissements en après-midi | D84: =H15 -> 0 | E84: =R15 -> 0 | F84: =H38 -> 0 | G84: =R38 -> 0 | H84: =H61 -> 0 | I84: =R61 -> 0 | L84: =SUM(D84:I84) -> 0
C86: Dinner Dîner | D86: =H17 -> 0 | E86: =R17 -> 0 | F86: =H40 -> 0 | G86: =R40 -> 0 | H86: =H63 -> 0 | I86: =R63 -> 0 | L86: =SUM(D86:I86) -> 0
C88: Reception Réception | D88: =H19 -> 0 | E88: =R19 -> 0 | F88: =H42 -> 0 | G88: =R42 -> 0 | H88: =H65 -> 0 | I88: =R65 -> 0 | L88: =SUM(D88:I88) -> 0
C90: Other form of regular hospitality Autre forme d’accueil régulier | D90: =H21 -> 0 | E90: =R21 -> 0 | F90: =H44 -> 0 | G90: =R44 -> 0 | H90: =H67 -> 0 | I90: =R67 -> 0 | L90: =SUM(D90:I90) -> 0
C92: Exceptional form of hospitality Forme exceptionnelle d’accueil | D92: =H23 -> 0 | E92: =R23 -> 0 | F92: =H46 -> 0 | G92: =R46 -> 0 | H92: =H69 -> 0 | I92: =R69 -> 0 | L92: =SUM(D92:I92) -> 0
C94: Totals / Totaux | D94: =SUM(D78:D92) -> 0 | E94: =SUM(E78:E92) -> 0 | F94: =SUM(F78:F92) -> 0 | G94: =SUM(G78:G92) -> 0 | H94: =SUM(H78:H92) -> 0 | I94: =SUM(J78:J92) -> 0 | L94: =SUM(L78:L92) -> 0

Sheet Hospitality - Accueil old (hidden)
A1: SUMMARY OF HOSPITALITY EXPENDITURES / RÉSUMÉ - FRAIS D'ACCUEIL
A2: This form is to be printed and included in the file that requires DM or Minister Approval. | B2: Ce formulaire doit être imprimé et annexé à chaque dossier qui doit être approuvé par le SM ou le Ministre.
A3: Event tittle: Titre de l'évenement: | C3: =IF(AND(Activity_Title<>0,Activity_Title_French<>0),Activity_Title&" / "&Activity_Title_French,IF(Activity_Title_French=0,IF(Activity_Title=0,"",Activity_Title),Activity_Title_French)) -> 
A5: Date: | B5: =IF('Hospitality - DATA'!A3="","",'Hospitality - DATA'!A3) ->  | K5: Date: | L5: =IF('Hospitality - DATA'!A4="","",'Hospitality - DATA'!A4) -> 
D6: Public Servants / Fonctionnaires | E6: Non-Public Servants / Autres | F6: Total Participants / Nombre total de participants | G6: Average Hospitality cost Per Capita / Coût moyen des frais d'accueil par personne | H6: Hospitality cost / Coût des frais d'accueil | N6: Public Servants / Fonctionnaires | O6: Non-Public Servants / Autres | P6: Total Participants / Nombre total de participants | Q6: Average Hospitality cost Per Capita / Coût moyen des frais d'accueil par personne | R6: Hospitality cost / Coût des frais d'accueil
A8: Breakfast / Déjeuner | D8: ='Hospitality - DATA'!$C$3 -> 0 | E8: ='Hospitality - DATA'!$D$3 -> 0 | F8: =D8+E8 -> 0 | G8: =IFERROR(H8/F8,0) -> 0 | H8: =((('Hospitality - DATA'!$B$3*('Hospitality - DATA'!$C$3+'Hospitality - DATA'!$D$3))+'Hospitality - DATA'!$E$3)*'Hospitality - DATA'!$AJ$3)+(('Hospitality - DATA'!$B$3*('Hospitality - DATA'!$C$3+'Hospitality - DATA'!$D$3))+'Hospitality - DATA'!$E$3) -> 0 | K8: Breakfast / Déjeuner | N8: ='Hospitality - DATA'!$C$4 -> 0 | O8: ='Hospitality - DATA'!$D$4 -> 0 | P8: =N8+O8 -> 0 | Q8: =IFERROR(R8/P8,0) -> 0 | R8: =((('Hospitality - DATA'!$B$4*('Hospitality - DATA'!$C$4+'Hospitality - DATA'!$D$4))+'Hospitality - DATA'!$E$4)*'Hospitality - DATA'!$AJ$4)+(('Hospitality - DATA'!$B$4*('Hospitality - DATA'!$C$4+'Hospitality - DATA'!$D$4))+'Hospitality - DATA'!$E$4) -> 0
A10: Break / Pause | D10: ='Hospitality - DATA'!$G$3 -> 0 | E10: ='Hospitality - DATA'!$H$3 -> 0 | F10: =D10+E10 -> 0 | G10: =IFERROR(H10/F10,0) -> 0 | H10: =((('Hospitality - DATA'!$F$3*('Hospitality - DATA'!$G$3+'Hospitality - DATA'!$H$3))+'Hospitality - DATA'!$I$3)*'Hospitality - DATA'!$AJ$3)+(('Hospitality - DATA'!$F$3*('Hospitality - DATA'!$G$3+'Hospitality - DATA'!$H$3))+'Hospitality - DATA'!$I$3) -> 0 | K10: Break / Pause | N10: ='Hospitality - DATA'!$G$4 -> 0 | O10: ='Hospitality - DATA'!$H$4 -> 0 | P10: =N10+O10 -> 0 | Q10: =IFERROR(R10/P10,0) -> 0 | R10: =((('Hospitality - DATA'!$F$4*('Hospitality - DATA'!$G$4+'Hospitality - DATA'!$H$4))+'Hospitality - DATA'!$I$4)*'Hospitality - DATA'!$AJ$4)+(('Hospitality - DATA'!$F$4*('Hospitality - DATA'!$G$4+'Hospitality - DATA'!$H$4))+'Hospitality - DATA'!$I$4) -> 0
A12: Lunch / Dîner | D12: ='Hospitality - DATA'!$K$3 -> 0 | E12: ='Hospitality - DATA'!$L$3 -> 0 | F12: 0 | G12: =IFERROR(H12/F12,0) -> 0 | H12: =((('Hospitality - DATA'!$J$3*('Hospitality - DATA'!$K$3+'Hospitality - DATA'!$L$3))+'Hospitality - DATA'!$M$3)*'Hospitality - DATA'!$AJ$3)+(('Hospitality - DATA'!$J$3*('Hospitality - DATA'!$K$3+'Hospitality - DATA'!$L$3))+'Hospitality - DATA'!$M$3) -> 0 | K12: Lunch / Dîner | N12: ='Hospitality - DATA'!$K$4 -> 0 | O12: ='Hospitality - DATA'!$L$4 -> 0 | P12: =N12+O12 -> 0 | Q12: =IFERROR(R12/P12,0) -> 0 | R12: =((('Hospitality - DATA'!$J$4*('Hospitality - DATA'!$K$4+'Hospitality - DATA'!$L$4))+'Hospitality - DATA'!$M$4)*'Hospitality - DATA'!$AJ$4)+(('Hospitality - DATA'!$J$4*('Hospitality - DATA'!$K$4+'Hospitality - DATA'!$L$4))+'Hospitality - DATA'!$M$4) -> 0
A14: Break / Pause | D14: ='Hospitality - DATA'!$O$3 -> 0 | E14: ='Hospitality - DATA'!$P$3 -> 0 | F14: 0 | G14: =IFERROR(H14/F14,0) -> 0 | H14: =((('Hospitality - DATA'!$N$3*('Hospitality - DATA'!$O$3+'Hospitality - DATA'!$P$3))+'Hospitality - DATA'!$Q$3)*'Hospitality - DATA'!$AJ$3)+(('Hospitality - DATA'!$N$3*('Hospitality - DATA'!$O$3+'Hospitality - DATA'!$P$3))+'Hospitality - DATA'!$Q$3) -> 0 | K14: Break / Pause | N14: ='Hospitality - DATA'!$O$4 -> 0 | O14: ='Hospitality - DATA'!$P$4 -> 0 | P14: =N14+O14 -> 0 | Q14: =IFERROR(R14/P14,0) -> 0 | R14: =((('Hospitality - DATA'!$N$4*('Hospitality - DATA'!$O$4+'Hospitality - DATA'!$P$4))+'Hospitality - DATA'!$Q$4)*'Hospitality - DATA'!$AJ$4)+(('Hospitality - DATA'!$N$4*('Hospitality - DATA'!$O$4+'Hospitality - DATA'!$P$4))+'Hospitality - DATA'!$Q$4) -> 0
A16: Dinner / Souper | D16: ='Hospitality - DATA'!$S$3 -> 0 | E16: ='Hospitality - DATA'!$T$3 -> 0 | F16: 0 | G16: =IFERROR(H16/F16,0) -> 0 | H16: =((('Hospitality - DATA'!$R$3*('Hospitality - DATA'!$S$3+'Hospitality - DATA'!$T$3))+'Hospitality - DATA'!$U$3)*'Hospitality - DATA'!$AJ$3)+(('Hospitality - DATA'!$R$3*('Hospitality - DATA'!$S$3+'Hospitality - DATA'!$T$3))+'Hospitality - DATA'!$U$3) -> 0 | K16: Dinner / Souper | N16: ='Hospitality - DATA'!$S$4 -> 0 | O16: ='Hospitality - DATA'!$T$4 -> 0 | P16: =N16+O16 -> 0 | Q16: =IFERROR(R16/P16,0) -> 0 | R16: =((('Hospitality - DATA'!$R$4*('Hospitality - DATA'!$S$4+'Hospitality - DATA'!$T$4))+'Hospitality - DATA'!$U$4)*'Hospitality - DATA'!$AJ$4)+(('Hospitality - DATA'!$R$4*('Hospitality - DATA'!$S$4+'Hospitality - DATA'!$T$4))+'Hospitality - DATA'!$U$4) -> 0
A18: Reception / Réception | D18: ='Hospitality - DATA'!$W$3 -> 0 | E18: ='Hospitality - DATA'!$X$3 -> 0 | F18: 0 | G18: =IFERROR(H18/F18,0) -> 0 | H18: =((('Hospitality - DATA'!$V$3*('Hospitality - DATA'!$W$3+'Hospitality - DATA'!$X$3))+'Hospitality - DATA'!$Y$3)*'Hospitality - DATA'!$AJ$3)+(('Hospitality - DATA'!$V$3*('Hospitality - DATA'!$W$3+'Hospitality - DATA'!$X$3))+'Hospitality - DATA'!$Y$3) -> 0 | K18: Reception / Réception | N18: ='Hospitality - DATA'!$W$4 -> 0 | O18: ='Hospitality - DATA'!$X$4 -> 0 | P18: =N18+O18 -> 0 | Q18: =IFERROR(R18/P18,0) -> 0 | R18: =((('Hospitality - DATA'!$V$4*('Hospitality - DATA'!$W$4+'Hospitality - DATA'!$X$4))+'Hospitality - DATA'!$Y$4)*'Hospitality - DATA'!$AJ$4)+(('Hospitality - DATA'!$V$4*('Hospitality - DATA'!$W$4+'Hospitality - DATA'!$X$4))+'Hospitality - DATA'!$Y$4) -> 0
A20: Other forms of hospitality / Autres formes d'accueil | D20: ='Hospitality - DATA'!$AD$3 -> 0 | E20: ='Hospitality - DATA'!$AE$3 -> 0 | F20: =D20+E20 -> 0 | G20: N/A - S/O | H20: ='Hospitality - DATA'!$AF$3 -> 0 | K20: Other forms of hospitality / Autres formes d'accueil | N20: ='Hospitality - DATA'!$AD$4 -> 0 | O20: ='Hospitality - DATA'!$AE$4 -> 0 | P20: =N20+O20 -> 0 | Q20: N/A - S/O | R20: ='Hospitality - DATA'!$AF$4 -> 0
A22: Exceptional forms of hospitality / Formes exceptionnelles d'accueil | D22: ='Hospitality - DATA'!$AG$3 -> 0 | E22: ='Hospitality - DATA'!$AH$3 -> 0 | F22: 0 | G22: N/A - S/O | H22: ='Hospitality - DATA'!$AI$3 -> 0 | K22: Exceptional forms of hospitality / Formes exceptionnelles d'accueil | N22: ='Hospitality - DATA'!$AG$4 -> 0 | O22: ='Hospitality - DATA'!$AH$4 -> 0 | P22: =N22+O22 -> 0 | Q22: N/A - S/O | R22: ='Hospitality - DATA'!$AI$4 -> 0
A24: Totals / Totaux | G24: =SUM(G8,G10,G12,G14,G16,G18) -> 0 | H24: =SUM(H8,H10,H12,H14,H16,H18,H20,H22) -> 0 | K24: Totals / Totaux | Q24: =SUM(Q8,Q10,Q12,Q14,Q16,Q18) -> 0 | R24: =SUM(R8,R10,R12,R14,R16,R18,R20,R22) -> 0
A27: Date: | B27: =IF('Hospitality - DATA'!A5="","",'Hospitality - DATA'!A5) ->  | K27: Date: | L27: =IF('Hospitality - DATA'!A6="","",'Hospitality - DATA'!A6) -> 
D28: Public Servants / Fonctionnaires | E28: Non-Public Servants / Autres | F28: Total Participants / Nombre total de participants | G28: Average Hospitality cost Per Capita / Coût moyen des frais d'accueil par personne | H28: Hospitality cost / Coût des frais d'accueil | N28: Public Servants / Fonctionnaires | O28: Non-Public Servants / Autres | P28: Total Participants / Nombre total de participants | Q28: Average Hospitality cost Per Capita / Coût moyen des frais d'accueil par personne | R28: Hospitality cost / Coût des frais d'accueil
A30: Breakfast / Déjeuner | D30: ='Hospitality - DATA'!$C$5 -> 0 | E30: ='Hospitality - DATA'!$D$5 -> 0 | F30: =D30+E30 -> 0 | G30: =IFERROR(H30/F30,0) -> 0 | H30: =((('Hospitality - DATA'!$B$5*('Hospitality - DATA'!$C$5+'Hospitality - DATA'!$D$5))+'Hospitality - DATA'!$E$5)*'Hospitality - DATA'!$AJ$5)+(('Hospitality - DATA'!$B$5*('Hospitality - DATA'!$C$5+'Hospitality - DATA'!$D$5))+'Hospitality - DATA'!$E$5) -> 0 | K30: Breakfast / Déjeuner | N30: ='Hospitality - DATA'!$C$6 -> 0 | O30: ='Hospitality - DATA'!$D$6 -> 0 | P30: =N30+O30 -> 0 | Q30: =IFERROR(R30/P30,0) -> 0 | R30: =((('Hospitality - DATA'!$B$6*('Hospitality - DATA'!$C$6+'Hospitality - DATA'!$D$6))+'Hospitality - DATA'!$E$6)*'Hospitality - DATA'!$AJ$6)+(('Hospitality - DATA'!$B$6*('Hospitality - DATA'!$C$6+'Hospitality - DATA'!$D$6))+'Hospitality - DATA'!$E$6) -> 0
A32: Break / Pause | D32: ='Hospitality - DATA'!$G$5 -> 0 | E32: ='Hospitality - DATA'!$H$5 -> 0 | F32: =D32+E32 -> 0 | G32: =IFERROR(H32/F32,0) -> 0 | H32: =((('Hospitality - DATA'!$F$5*('Hospitality - DATA'!$G$5+'Hospitality - DATA'!$H$5))+'Hospitality - DATA'!$I$5)*'Hospitality - DATA'!$AJ$5)+(('Hospitality - DATA'!$F$5*('Hospitality - DATA'!$G$5+'Hospitality - DATA'!$H$5))+'Hospitality - DATA'!$I$5) -> 0 | K32: Break / Pause | N32: ='Hospitality - DATA'!$G$6 -> 0 | O32: ='Hospitality - DATA'!$H$6 -> 0 | P32: =N32+O32 -> 0 | Q32: =IFERROR(R32/P32,0) -> 0 | R32: =((('Hospitality - DATA'!$F$6*('Hospitality - DATA'!$G$6+'Hospitality - DATA'!$H$6))+'Hospitality - DATA'!$I$6)*'Hospitality - DATA'!$AJ$6)+(('Hospitality - DATA'!$F$6*('Hospitality - DATA'!$G$6+'Hospitality - DATA'!$H$6))+'Hospitality - DATA'!$I$6) -> 0
A34: Lunch / Dîner | D34: ='Hospitality - DATA'!$K$5 -> 0 | E34: ='Hospitality - DATA'!$L$5 -> 0 | F34: =D34+E34 -> 0 | G34: =IFERROR(H34/F34,0) -> 0 | H34: =((('Hospitality - DATA'!$J$5*('Hospitality - DATA'!$K$5+'Hospitality - DATA'!$L$5))+'Hospitality - DATA'!$M$5)*'Hospitality - DATA'!$AJ$5)+(('Hospitality - DATA'!$J$5*('Hospitality - DATA'!$K$5+'Hospitality - DATA'!$L$5))+'Hospitality - DATA'!$M$5) -> 0 | K34: Lunch / Dîner | N34: ='Hospitality - DATA'!$K$6 -> 0 | O34: ='Hospitality - DATA'!$L$6 -> 0 | P34: =N34+O34 -> 0 | Q34: =IFERROR(R34/P34,0) -> 0 | R34: =((('Hospitality - DATA'!$J$6*('Hospitality - DATA'!$K$6+'Hospitality - DATA'!$L$6))+'Hospitality - DATA'!$M$6)*'Hospitality - DATA'!$AJ$6)+(('Hospitality - DATA'!$J$6*('Hospitality - DATA'!$K$6+'Hospitality - DATA'!$L$6))+'Hospitality - DATA'!$M$6) -> 0
A36: Break / Pause | D36: ='Hospitality - DATA'!$O$5 -> 0 | E36: ='Hospitality - DATA'!$P$5 -> 0 | F36: =D36+E36 -> 0 | G36: =IFERROR(H36/F36,0) -> 0 | H36: =((('Hospitality - DATA'!$N$5*('Hospitality - DATA'!$O$5+'Hospitality - DATA'!$P$5))+'Hospitality - DATA'!$Q$5)*'Hospitality - DATA'!$AJ$5)+(('Hospitality - DATA'!$N$5*('Hospitality - DATA'!$O$5+'Hospitality - DATA'!$P$5))+'Hospitality - DATA'!$Q$5) -> 0 | K36: Break / Pause | N36: ='Hospitality - DATA'!$O$6 -> 0 | O36: ='Hospitality - DATA'!$P$6 -> 0 | P36: =N36+O36 -> 0 | Q36: =IFERROR(R36/P36,0) -> 0 | R36: =((('Hospitality - DATA'!$N$6*('Hospitality - DATA'!$O$6+'Hospitality - DATA'!$P$6))+'Hospitality - DATA'!$Q$6)*'Hospitality - DATA'!$AJ$6)+(('Hospitality - DATA'!$N$6*('Hospitality - DATA'!$O$6+'Hospitality - DATA'!$P$6))+'Hospitality - DATA'!$Q$6) -> 0
A38: Dinner / Souper | D38: ='Hospitality - DATA'!$S$5 -> 0 | E38: ='Hospitality - DATA'!$T$5 -> 0 | F38: =D38+E38 -> 0 | G38: =IFERROR(H38/F38,0) -> 0 | H38: =((('Hospitality - DATA'!$R$5*('Hospitality - DATA'!$S$5+'Hospitality - DATA'!$T$5))+'Hospitality - DATA'!$U$5)*'Hospitality - DATA'!$AJ$5)+(('Hospitality - DATA'!$R$5*('Hospitality - DATA'!$S$5+'Hospitality - DATA'!$T$5))+'Hospitality - DATA'!$U$5) -> 0 | K38: Dinner / Souper | N38: ='Hospitality - DATA'!$S$6 -> 0 | O38: ='Hospitality - DATA'!$T$6 -> 0 | P38: =N38+O38 -> 0 | Q38: =IFERROR(R38/P38,0) -> 0 | R38: =((('Hospitality - DATA'!$R$6*('Hospitality - DATA'!$S$6+'Hospitality - DATA'!$T$6))+'Hospitality - DATA'!$U$6)*'Hospitality - DATA'!$AJ$6)+(('Hospitality - DATA'!$R$6*('Hospitality - DATA'!$S$6+'Hospitality - DATA'!$T$6))+'Hospitality - DATA'!$U$6) -> 0
A40: Reception / Réception | D40: ='Hospitality - DATA'!$W$5 -> 0 | E40: ='Hospitality - DATA'!$X$5 -> 0 | F40: =D40+E40 -> 0 | G40: =IFERROR(H40/F40,0) -> 0 | H40: =((('Hospitality - DATA'!$V$5*('Hospitality - DATA'!$W$5+'Hospitality - DATA'!$X$5))+'Hospitality - DATA'!$Y$5)*'Hospitality - DATA'!$AJ$5)+(('Hospitality - DATA'!$V$5*('Hospitality - DATA'!$W$5+'Hospitality - DATA'!$X$5))+'Hospitality - DATA'!$Y$5) -> 0 | K40: Reception / Réception | N40: ='Hospitality - DATA'!$W$6 -> 0 | O40: ='Hospitality - DATA'!$X$6 -> 0 | P40: =N40+O40 -> 0 | Q40: =IFERROR(R40/P40,0) -> 0 | R40: =((('Hospitality - DATA'!$V$6*('Hospitality - DATA'!$W$6+'Hospitality - DATA'!$X$6))+'Hospitality - DATA'!$Y$6)*'Hospitality - DATA'!$AJ$6)+(('Hospitality - DATA'!$V$6*('Hospitality - DATA'!$W$6+'Hospitality - DATA'!$X$6))+'Hospitality - DATA'!$Y$6) -> 0
A42: Other forms of hospitality / Autres formes d'accueil | D42: ='Hospitality - DATA'!$AD$5 -> 0 | E42: ='Hospitality - DATA'!$AE$5 -> 0 | F42: =D42+E42 -> 0 | G42: N/A - S/O | H42: ='Hospitality - DATA'!$AF$5 -> 0 | K42: Other forms of hospitality / Autres formes d'accueil | N42: ='Hospitality - DATA'!$AD$6 -> 0 | O42: ='Hospitality - DATA'!$AE$6 -> 0 | P42: =N42+O42 -> 0 | Q42: N/A - S/O | R42: ='Hospitality - DATA'!$AF$6 -> 0
A44: Exceptional forms of hospitality / Formes exceptionnelles d'accueil | D44: ='Hospitality - DATA'!$AG$5 -> 0 | E44: ='Hospitality - DATA'!$AH$5 -> 0 | F44: =D44+E44 -> 0 | G44: N/A - S/O | H44: ='Hospitality - DATA'!$AI$5 -> 0 | K44: Exceptional forms of hospitality / Formes exceptionnelles d'accueil | N44: ='Hospitality - DATA'!$AG$6 -> 0 | O44: ='Hospitality - DATA'!$AH$6 -> 0 | P44: =N44+O44 -> 0 | Q44: N/A - S/O | R44: ='Hospitality - DATA'!$AI$6 -> 0
A46: Totals / Totaux | G46: =SUM(G30,G32,G34,G36,G38,G40) -> 0 | H46: =SUM(H30,H32,H34,H36,H38,H40,H42,H44) -> 0 | K46: Totals / Totaux | Q46: =SUM(Q30,Q32,Q34,Q36,Q38,Q40) -> 0 | R46: =SUM(R30,R32,R34,R36,R38,R40,R42,R44) -> 0
A49: Date: | B49: =IF('Hospitality - DATA'!A7="","",'Hospitality - DATA'!A7) ->  | R49: Total Hospitality cost / Coût total des frais d'accueil
D50: Public Servants / Fonctionnaires | E50: Non-Public Servants / Autres | F50: Total Participants / Nombre total de participants | G50: Average Hospitality cost Per Capita / Coût moyen des frais d'accueil par personne | H50: Hospitality cost / Coût des frais d'accueil | L50: Day 1 / Jour 1 | N50: Day 2 / Jour2 | O50: Day 3 / Jour3 | P50: Day 4 / Jour4 | Q50: Day 5 / Jour 5
A52: Breakfast / Déjeuner | D52: ='Hospitality - DATA'!$C$7 -> 0 | E52: ='Hospitality - DATA'!$D$7 -> 0 | F52: =D52+E52 -> 0 | G52: =IFERROR(H52/F52,0) -> 0 | H52: =((('Hospitality - DATA'!$B$7*('Hospitality - DATA'!$C$7+'Hospitality - DATA'!$D$7))+'Hospitality - DATA'!$E$7)*'Hospitality - DATA'!$AJ$7)+(('Hospitality - DATA'!$B$7*('Hospitality - DATA'!$C$7+'Hospitality - DATA'!$D$7))+'Hospitality - DATA'!$E$7) -> 0 | K52: Breakfast / Déjeuner | L52: =H8 -> 0 | N52: =R8 -> 0 | O52: =H30 -> 0 | P52: =R30 -> 0 | Q52: =H52 -> 0 | R52: =SUM(L52:Q52) -> 0
A54: Break / Pause | D54: ='Hospitality - DATA'!$G$7 -> 0 | E54: ='Hospitality - DATA'!$H$7 -> 0 | F54: =D54+E54 -> 0 | G54: =IFERROR(H54/F54,0) -> 0 | H54: =((('Hospitality - DATA'!$F$7*('Hospitality - DATA'!$G$7+'Hospitality - DATA'!$H$7))+'Hospitality - DATA'!$I$7)*'Hospitality - DATA'!$AJ$7)+(('Hospitality - DATA'!$F$7*('Hospitality - DATA'!$G$7+'Hospitality - DATA'!$H$7))+'Hospitality - DATA'!$I$7) -> 0 | K54: Break / Pause | L54: =H10 -> 0 | N54: =R10 -> 0 | O54: =H32 -> 0 | P54: =R32 -> 0 | Q54: =H54 -> 0 | R54: =SUM(L54:Q54) -> 0
A56: Lunch / Dîner | D56: ='Hospitality - DATA'!$K$7 -> 0 | E56: ='Hospitality - DATA'!$L$7 -> 0 | F56: =D56+E56 -> 0 | G56: =IFERROR(H56/F56,0) -> 0 | H56: =((('Hospitality - DATA'!$J$7*('Hospitality - DATA'!$K$7+'Hospitality - DATA'!$L$7))+'Hospitality - DATA'!$M$7)*'Hospitality - DATA'!$AJ$7)+(('Hospitality - DATA'!$J$7*('Hospitality - DATA'!$K$7+'Hospitality - DATA'!$L$7))+'Hospitality - DATA'!$M$7) -> 0 | K56: Lunch / Dîner | L56: =H12 -> 0 | N56: =R12 -> 0 | O56: =H34 -> 0 | P56: =R34 -> 0 | Q56: =H56 -> 0 | R56: =SUM(L56:Q56) -> 0
A58: Break / Pause | D58: ='Hospitality - DATA'!$O$7 -> 0 | E58: ='Hospitality - DATA'!$P$7 -> 0 | F58: =D58+E58 -> 0 | G58: =IFERROR(H58/F58,0) -> 0 | H58: =((('Hospitality - DATA'!$N$7*('Hospitality - DATA'!$O$7+'Hospitality - DATA'!$P$7))+'Hospitality - DATA'!$Q$7)*'Hospitality - DATA'!$AJ$7)+(('Hospitality - DATA'!$N$7*('Hospitality - DATA'!$O$7+'Hospitality - DATA'!$P$7))+'Hospitality - DATA'!$Q$7) -> 0 | K58: Break / Pause | L58: =H14 -> 0 | N58: =R14 -> 0 | O58: =H36 -> 0 | P58: =R36 -> 0 | Q58: =H58 -> 0 | R58: =SUM(L58:Q58) -> 0
A60: Dinner / Souper | D60: ='Hospitality - DATA'!$S$7 -> 0 | E60: ='Hospitality - DATA'!$T$7 -> 0 | F60: =D60+E60 -> 0 | G60: =IFERROR(H60/F60,0) -> 0 | H60: =((('Hospitality - DATA'!$R$7*('Hospitality - DATA'!$S$7+'Hospitality - DATA'!$T$7))+'Hospitality - DATA'!$U$7)*'Hospitality - DATA'!$AJ$7)+(('Hospitality - DATA'!$R$7*('Hospitality - DATA'!$S$7+'Hospitality - DATA'!$T$7))+'Hospitality - DATA'!$U$7) -> 0 | K60: Dinner / Souper | L60: =H16 -> 0 | N60: =R16 -> 0 | O60: =H38 -> 0 | P60: =R38 -> 0 | Q60: =H60 -> 0 | R60: =SUM(L60:Q60) -> 0
A62: Reception / Réception | D62: ='Hospitality - DATA'!$W$7 -> 0 | E62: ='Hospitality - DATA'!$X$7 -> 0 | F62: =D62+E62 -> 0 | G62: =IFERROR(H62/F62,0) -> 0 | H62: =((('Hospitality - DATA'!$V$7*('Hospitality - DATA'!$W$7+'Hospitality - DATA'!$X$7))+'Hospitality - DATA'!$Y$7)*'Hospitality - DATA'!$AJ$7)+(('Hospitality - DATA'!$V$7*('Hospitality - DATA'!$W$7+'Hospitality - DATA'!$X$7))+'Hospitality - DATA'!$Y$7) -> 0 | K62: Reception / Réception | L62: =H18 -> 0 | N62: =R18 -> 0 | O62: =H40 -> 0 | P62: =R40 -> 0 | Q62: =H62 -> 0 | R62: =SUM(L62:Q62) -> 0
A64: Other forms of hospitality / Autres formes d'accueil | D64: ='Hospitality - DATA'!$AD$7 -> 0 | E64: ='Hospitality - DATA'!$AE$7 -> 0 | F64: =D64+E64 -> 0 | G64: N/A - S/O | H64: ='Hospitality - DATA'!$AF$7 -> 0 | K64: Other forms of hospitality / Autres formes d'accueil | L64: =H20 -> 0 | N64: =R20 -> 0 | O64: =H42 -> 0 | P64: =R42 -> 0 | Q64: =H64 -> 0 | R64: =SUM(L64:Q64) -> 0
A66: Exceptional forms of hospitality / Formes exceptionnelles d'accueil | D66: ='Hospitality - DATA'!$AG$7 -> 0 | E66: ='Hospitality - DATA'!$AH$7 -> 0 | F66: =D66+E66 -> 0 | G66: N/A - S/O | H66: ='Hospitality - DATA'!$AI$7 -> 0 | K66: Exceptional forms of hospitality / Formes exceptionnelles d'accueil | L66: =H22 -> 0 | N66: =R22 -> 0 | O66: =H44 -> 0 | P66: =R44 -> 0 | Q66: =H66 -> 0 | R66: =SUM(L66:Q66) -> 0
A68: Totals / Totaux | G68: =SUM(G52,G54,G56,G58,G60,G62,G66) -> 0 | H68: =SUM(H52,H54,H56,H58,H60,H62,H64,H66) -> 0 | K68: Totals / Totaux | L68: =SUM(L52,L54,L56,L58,L60,L62,L64,L66) -> 0 | N68: =SUM(N52,N54,N56,N58,N60,N62,N64,N66) -> 0 | O68: =SUM(O52,O54,O56,O58,O60,O62,O64,O66) -> 0 | P68: =SUM(P52,P54,P56,P58,P60,P62,P64,P66) -> 0 | Q68: =SUM(Q52,Q54,Q56,Q58,Q60,Q62,Q64,Q66) -> 0 | R68: =SUM(R52,R54,R56,R58,R60,R62,R64,R66) -> 0

Sheet Memo CheckList (EN) (hidden)
A1: Required information to include in the memo for THCEE approval | C1: Version française
A3: ☐ | B3: Memo addressed to the right authority and explain in the summary why this approval authority is required (ex: hospitality exceeds the standard cost per person, ADM is a participant in the hospitality, etc.).
A4: ☐ | B4: Type of request (Event Approval, Hospitality Approval, Amendment, After The Fact Acknowledgement) - included in title of the memo as well as the summary.
A5: ☐ | B5: For an after the fact request: make sure to use the word acknowledgement rather than approval throughout the memo.
A6: ☐ | B6: For an amendment request: provide an explanation as to why actual costs will exceed the requested amount by more than 25% if applicable.
A7: ☐ | B7: For Multi-Branch Event request: Provide a confirmation that each ADM has reviewed and signed their respective THCEE Authorization Form.
A8: ☐ | B8: Example of the first line in the Summary: The purpose of this memorandum is to seek (type of request- second bullet above) of $(amount) related to (activity name) to be held in (location - city, prov) from (dates).
A9: ☐ | B9: Name, date and location of the activity.
A10: ☐ | B10: Description, nature and purpose of the activity. If the memo is addressed to the DM/COO, provide a link to the strategic priorities.
A11: ☐ | B11: Who will attend the activity (EXs, managers, employees, regions, etc.) and justify the number of participants.
A12: ☐ | B12: Total cost for the Event or, if hospitality request, the total cost of the hospitality.
A13: ☐ | B13: When a government facility is not chosen provide details and conditions for the choice of the location and assurance that best efforts were made to locate a government facility.
A14: ☐ | B14: Frequency of the activity and justify why regular (quartely, etc.) meetings are required.
A15: ☐ | B15: Identification of the measures taken to ensure estimated costs represent best value for money and the most economical options have been chosen.
A16: ☐ | B16: Provide justification for offering hospitality as well as a brief description of the hospitality being offered. Provide a more in-depth justification for out of the ordinary forms of hospitality (ex: breakfast, small tokens of appreciation, alcohol, etc.).
A17: ☐ | B17: Average cost per person and justification for exceeding standard/maximum per person if applicable.
A18: ☐ | B18: Clarification as to why another government department, Province, or Territory is participating in an ESDC hosted Event but not covering their own costs (where applicable).
A19: ☐ | B19: Provide details of other internal meetings planned around the Event in order to minimize travel costs.
A20: ☐ | B20: The information in the memo is consistent with the information on the THCEE Authorization Form (ex: # of participants, dates, amounts, etc).
A21: ☐ | B21: Provide a rationale if professional services are required (speaker, technical equipment, etc.)
A23: Additional notes to include in the memo: (DO NOT INCLUDE in an after the fact request)
A24: ☐ | B24: The Event request conforms to all department and TB policies and complies with the amended Directive on Travel, Hospitality, Conference and Event Expenditures, as per the attached THCEE Authorization Form.
A25: ☐ | B25: *Note: Until Event approval has been given by the appropriate delegated authority, no components of the Event will be initiated or procured that would result in the establishment of a liability for the department (i.e. travel, hospitality, room or equipment rentals, etc.).
A27: If this is a recurring Event:
A28: ☐ | B28: Provide the following details of the previous Event: title, WebCIMS#, date, Internal Order, requested amount and actual costs.
A29: ☐ | B29: Confirmation of cost reduction from previous year, including amount by which costs have decreased and how the reduction was achieved; for instances where there is an increase from the previous year, a full explanation must be provided. I.e. Comparison between the amount being requested currently and the actual cost of the previous Event.

Sheet Memo CheckList (FR) (hidden)
A1: Renseignements devant être fournis dans la note de service pour l'approbation des DVACÉ | C1: English version
A3: ☐ | B3: Note de service adressée à l'autorité compétente; expliquer dans le résumé pourquoi l’autorisation est requise (p. ex., les coûts de l’accueil dépassent le coût standard par personne, le SMA participe à l’activité d’accueil, etc.).
A4: ☐ | B4: Type de demande (approbation d’Événements, approbation de l’accueil, modification, reconnaissance après les faits) – inclus dans le titre de la note de service et dans le résumé.
A5: ☐ | B5: Pour une demande de reconnaissance après les faits : ne pas oublier d’utiliser le mot « reconnaissance » plutôt que le terme « approbation » tout au long de la note de service.
A6: ☐ | B6: Pour une demande de modification : expliquer pourquoi les coûts réels ont dépassés le montant demandé de plus de 25 % (le cas échéant).
A7: ☐ | B7: Pour une demande d'Événement à multiples directions générales : Fournir une confirmation que chaque SMA a revu et signé leur formulaire d’autorisation des DVACÉ respectif.
A8: ☐ | B8: Exemple de la première ligne du résumé : La présente note de service vise à demander (type de demande – deuxième point ci-dessus) de $ (montant) lié au (nom de l’activité) qui doit se tenir à (endroit - ville, prov.) à partir de (dates).
A9: ☐ | B9: Nom, date et lieu de l’activité.
A10: ☐ | B10: Description, nature et but de l’activité. Si la note de service est adressée à la SM/CE, fournir le lien aux priorités stratégiques.
A11: ☐ | B11: Qui sont les participants à l’activité (Exs, gestionnaires, employés, régions, etc.) et fournir une justification pour le nombre de participants.
A12: ☐ | B12: Coût total de l’Événement ou, s’il s’agit d’une demande d’accueil, le coût total de l’accueil.
A13: ☐ | B13: Lorsqu’une installation gouvernementale n’est pas retenue, fournir les détails et les conditions pour le choix de l’emplacement et l’assurance que des efforts ont été déployés pour trouver une installation gouvernementale.
A14: ☐ | B14: Fréquence de l’activité et expliquer pouquoi les réunions régulières (trimestrielles, etc.) sont nécessaires.
A15: ☐ | B15: L’identification des mesures prises pour s’assurer que les coûts estimés représentent le meilleur rapport qualité-prix et que les options les plus économiques ont été choisies.
A16: ☐ | B16: Fournir une justification pour offrir l’activité d’accueil ainsi qu’une brève description de l’accueil offert. Fournir une justification plus approfondie des activités d’accueil qui sortent de l'ordinaire (p. ex. petit déjeuner, petites marques d'appréciation, boissons alcoolisées, etc.).
A17: ☐ | B17: Coût moyen par personne et justification du dépassement du coût standard/maximal par personne (le cas échéant).
A18: ☐ | B18: Précisions quant à la raison pour laquelle un autre ministère, ou un gouvernement provincial ou territorial participe à un Événement organisé par EDSC, mais ne couvre pas ses propres frais (le cas échéant).
A19: ☐ | B19: Fournir des détails sur d’autres réunions internes prévues autour de l’Événement afin de réduire au minimum les frais de voyages.
A20: ☐ | B20: L’information contenue dans la note de service est conforme à l’information contenue dans le formulaire d'autorisation DVACÉ (p. ex., nombre de participants, dates, montants).
A21: ☐ | B21: Fournir une justification si des services professionnels sont nécessaires (conférencier, équipement techniques, etc.)
A23: Remarques supplémentaires à inclure dans la note de service : (NE PAS INCLURE dans les demandes de reconnaissance après les faits)
A24: ☐ | B24: La demande est conforme à toutes les politiques du Ministère et du Conseil du Trésor ainsi qu'aux modifications à la Directive sur les dépenses de voyages, d’accueil, de conférences et d’Événements, conformément au formulaire d’autorisation DVACÉ ci-joint.
A25: ☐ | B25: *Remarque : Tant que l'approbation n'a pas été donné par le pouvoir délégué approprié, aucune composante de l’Événement sera initié ou acquis qui se traduirait par la mise en place d'un passif pour le Ministère (p. ex., les voyages, l’accueil, la location de salles ou de matériel) ne peut être entreprise ou acquise.
A27: S’il s’agit d’un Événement récurrent :
A28: ☐ | B28: Fournir les détails suivants de l’Événement précédent : titre, numéro WebCIMS, date, commande interne, montant demandé et coûts réels.
A29: ☐ | B29: Confirmation de la réduction des coûts par rapport à l’année précédente, incluant le montant de la diminution des coûts et la manière dont la réduction a été obtenue; dans les cas où il y a une augmentation par rapport à l’année précédente, une explication complète doit être fournie (comparaison entre le montant demandé maintenant et le coût réel de l’Événement précédent.

Sheet Memo - System (hidden)
A1: Authorization Form | C1: Memo - Events - Minister - ESDC - English | E1: Memo - Events - Minister - ESDC - French | G1: Memo - Events - Minister - Labour - English | I1: Memo - Events - Minister - Labour - French | K1: Memo - Events - COO - SC - English | M1: Memo - Events - COO - SC - French | O1: Memo - Events - DM - EDSC - English | Q1: Memo - Events - DM - EDSC - French | S1: Memo - Events - DM - Labor - English | U1: Memo - Events - DM - Labor - French
A2: Generate Template | B2: TRUE | C2: Generate Template | D2: =AND(Questionnaire!D248,OR(Approving_Entity=ESDC_Select,Approving_Entity=ServCan_Select),Event_Delegation_Level=5) -> FALSE | E2: Generate Template | F2: =AND(Questionnaire!D248,OR(Approving_Entity=ESDC_Select,Approving_Entity=ServCan_Select),Event_Delegation_Level=5) -> FALSE | G2: Generate Template | H2: =AND(Questionnaire!D248,OR(Approving_Entity=Labour_Select),Event_Delegation_Level=5) -> FALSE | I2: Generate Template | J2: =AND(Questionnaire!D248,OR(Approving_Entity=Labour_Select),Event_Delegation_Level=5) -> FALSE | K2: Generate Template | L2: =AND(Questionnaire!D248,Approving_Entity=ServCan_Select,Event_Delegation_Level>3.5,Event_Delegation_Level<4.5) -> FALSE | M2: Generate Template | N2: =AND(Questionnaire!D248,Approving_Entity=ServCan_Select,Event_Delegation_Level>3.5,Event_Delegation_Level<4.5) -> FALSE | O2: Generate Template | P2: =AND(Questionnaire!D248,Approving_Entity=ESDC_Select,Event_Delegation_Level>3.5,Event_Delegation_Level<4.5) -> FALSE | Q2: Generate Template | R2: =AND(Questionnaire!D248,Approving_Entity=ESDC_Select,Event_Delegation_Level>3.5,Event_Delegation_Level<4.5) -> FALSE | S2: Generate Template | T2: =AND(Questionnaire!D248,Approving_Entity=Labour_Select,Event_Delegation_Level>3.5,Event_Delegation_Level<4.5) -> FALSE | U2: Generate Template | V2: =AND(Questionnaire!D248,Approving_Entity=Labour_Select,Event_Delegation_Level>3.5,Event_Delegation_Level<4.5) -> FALSE
A3: Template Location | B3: =A416 -> http://dialogue/grp/AO-Transformation-OC/THCEE/ | C3: Template Location | D3: =C33 -> http://dialogue/grp/AO-Transformation-OC/THCEE/ | E3: Template Location | F3: =$D$3 -> http://dialogue/grp/AO-Transformation-OC/THCEE/ | G3: Template Location | H3: =$D$3 -> http://dialogue/grp/AO-Transformation-OC/THCEE/ | I3: Template Location | J3: =$D$3 -> http://dialogue/grp/AO-Transformation-OC/THCEE/ | K3: Template Location | L3: =$D$3 -> http://dialogue/grp/AO-Transformation-OC/THCEE/ | M3: Template Location | N3: =$D$3 -> http://dialogue/grp/AO-Transformation-OC/THCEE/ | O3: Template Location | P3: =$D$3 -> http://dialogue/grp/AO-Transformation-OC/THCEE/ | Q3: Template Location | R3: =$D$3 -> http://dialogue/grp/AO-Transformation-OC/THCEE/ | S3: Template Location | T3: =$D$3 -> http://dialogue/grp/AO-Transformation-OC/THCEE/ | U3: Template Location | V3: =$D$3 -> http://dialogue/grp/AO-Transformation-OC/THCEE/
A4: Template Name | B4: Autorisation_Authorization_Oct_2017.docx | C4: Template Name | D4: Event_memo_Minister_ESDC_V2.dotx | E4: Template Name | F4: Evenement_note_Ministre_EDSC_V2.dotx | G4: Template Name | H4: Event_memo_Minister_Labour.dotx | I4: Template Name | J4: Evenement_note_Ministre_Travail.dotx | K4: Template Name | L4: Event_memo_COO_SC.dotx | M4: Template Name | N4: Evenement_note_chef_operations_SC.dotx | O4: Template Name | P4: Event_memo_DM_ESDC_V2.dotx | Q4: Template Name | R4: Evenement_note_SM_EDSC_V2.dotx | S4: Template Name | T4: Event_memo_DM_Labour_V2.dotx | U4: Template Name | V4: Evenement_note_SM_Travail_V2.dotx
A5: webCIMSID | B5: =IF(WebCIMS_ID=0," ",WebCIMS_ID) ->  | C5: webCIMSID | D5: =IF(WebCIMS_ID=0," ",WebCIMS_ID) ->  | E5: webCIMSID | F5: =IF(WebCIMS_ID=0," ",WebCIMS_ID) ->  | G5: webCIMSID | H5: =IF(WebCIMS_ID=0," ",WebCIMS_ID) ->  | I5: webCIMSID | J5: =IF(WebCIMS_ID=0," ",WebCIMS_ID) ->  | K5: webCIMSID | L5: =IF(WebCIMS_ID=0," ",WebCIMS_ID) ->  | M5: webCIMSID | N5: =IF(WebCIMS_ID=0," ",WebCIMS_ID) ->  | O5: webCIMSID | P5: =IF(WebCIMS_ID=0," ",WebCIMS_ID) ->  | Q5: webCIMSID | R5: =IF(WebCIMS_ID=0," ",WebCIMS_ID) ->  | S5: webCIMSID | T5: =IF(WebCIMS_ID=0," ",WebCIMS_ID) ->  | U5: webCIMSID | V5: =IF(WebCIMS_ID=0," ",WebCIMS_ID) -> 
A6: internalIO | C6: activityTitle | D6: =IF(Activity_Title=0," ",UPPER(Activity_Title)) ->  | E6: activityTitle | F6: =IF(Activity_Title_French=0,D6,UPPER(Activity_Title_French)) ->  | G6: activityTitle | H6: =IF(Activity_Title=0," ",UPPER(Activity_Title)) ->  | I6: activityTitle | J6: =IF(Activity_Title_French=0,H6,UPPER(Activity_Title_French)) ->  | K6: activityTitle | L6: =IF(Activity_Title=0," ",UPPER(Activity_Title)) ->  | M6: activityTitle | N6: =IF(Activity_Title_French=0,L6,UPPER(Activity_Title_French)) ->  | O6: activityTitle | P6: =IF(Activity_Title=0," ",UPPER(Activity_Title)) ->  | Q6: activityTitle | R6: =IF(Activity_Title_French=0,P6,UPPER(Activity_Title_French)) ->  | S6: activityTitle | T6: =IF(Activity_Title=0," ",UPPER(Activity_Title)) ->  | U6: activityTitle | V6: =IF(Activity_Title_French=0,T6,UPPER(Activity_Title_French)) -> 
A7: event | B7: =IF(Activity_is_Event,"bntChecked","btnUnchecked") -> btnUnchecked | C7: activityDate | D7: =IF(UNKNOWN_DATE," ",IF(Activity_To_Date-Activity_From_Date=0,DAY(Activity_From_Date)&"-"&MONTH(Activity_From_Date)&"-"&YEAR(Activity_From_Date),"From "&DAY(Activity_From_Date)&"-"&MONTH(Activity_From_Date)&"-"&YEAR(Activity_From_Date)&" to "&DAY(Activity_To_Date)&"-"&MONTH(Activity_To_Date)&"-"&YEAR(Activity_To_Date))) -> 22-10-2021 | E7: activityDate | F7: =IF(UNKNOWN_DATE," ",IF(Activity_To_Date-Activity_From_Date=0,DAY(Activity_From_Date)&"-"&MONTH(Activity_From_Date)&"-"&YEAR(Activity_From_Date),"du "&DAY(Activity_From_Date)&"-"&MONTH(Activity_From_Date)&"-"&YEAR(Activity_From_Date)&" au "&DAY(Activity_To_Date)&"-"&MONTH(Activity_To_Date)&"-"&YEAR(Activity_To_Date))) -> 22-10-2021 | G7: activityDate | H7: =IF(UNKNOWN_DATE," ",IF(Activity_To_Date-Activity_From_Date=0,DAY(Activity_From_Date)&"-"&MONTH(Activity_From_Date)&"-"&YEAR(Activity_From_Date),"From "&DAY(Activity_From_Date)&"-"&MONTH(Activity_From_Date)&"-"&YEAR(Activity_From_Date)&" to "&DAY(Activity_To_Date)&"-"&MONTH(Activity_To_Date)&"-"&YEAR(Activity_To_Date))) -> 22-10-2021 | I7: activityDate | J7: =IF(UNKNOWN_DATE," ",IF(Activity_To_Date-Activity_From_Date=0,DAY(Activity_From_Date)&"-"&MONTH(Activity_From_Date)&"-"&YEAR(Activity_From_Date),"du "&DAY(Activity_From_Date)&"-"&MONTH(Activity_From_Date)&"-"&YEAR(Activity_From_Date)&" au "&DAY(Activity_To_Date)&"-"&MONTH(Activity_To_Date)&"-"&YEAR(Activity_To_Date))) -> 22-10-2021 | K7: activityDate | L7: =IF(UNKNOWN_DATE," ",IF(Activity_To_Date-Activity_From_Date=0,DAY(Activity_From_Date)&"-"&MONTH(Activity_From_Date)&"-"&YEAR(Activity_From_Date),"From "&DAY(Activity_From_Date)&"-"&MONTH(Activity_From_Date)&"-"&YEAR(Activity_From_Date)&" to "&DAY(Activity_To_Date)&"-"&MONTH(Activity_To_Date)&"-"&YEAR(Activity_To_Date))) -> 22-10-2021 | M7: activityDate | N7: =IF(UNKNOWN_DATE," ",IF(Activity_To_Date-Activity_From_Date=0,DAY(Activity_From_Date)&"-"&MONTH(Activity_From_Date)&"-"&YEAR(Activity_From_Date),"du "&DAY(Activity_From_Date)&"-"&MONTH(Activity_From_Date)&"-"&YEAR(Activity_From_Date)&" au "&DAY(Activity_To_Date)&"-"&MONTH(Activity_To_Date)&"-"&YEAR(Activity_To_Date))) -> 22-10-2021 | O7: activityDate | P7: =IF(UNKNOWN_DATE," ",IF(Activity_To_Date-Activity_From_Date=0,DAY(Activity_From_Date)&"-"&MONTH(Activity_From_Date)&"-"&YEAR(Activity_From_Date),"From "&DAY(Activity_From_Date)&"-"&MONTH(Activity_From_Date)&"-"&YEAR(Activity_From_Date)&" to "&DAY(Activity_To_Date)&"-"&MONTH(Activity_To_Date)&"-"&YEAR(Activity_To_Date))) -> 22-10-2021 | Q7: activityDate | R7: =IF(UNKNOWN_DATE," ",IF(Activity_To_Date-Activity_From_Date=0,DAY(Activity_From_Date)&"-"&MONTH(Activity_From_Date)&"-"&YEAR(Activity_From_Date),"du "&DAY(Activity_From_Date)&"-"&MONTH(Activity_From_Date)&"-"&YEAR(Activity_From_Date)&" au "&DAY(Activity_To_Date)&"-"&MONTH(Activity_To_Date)&"-"&YEAR(Activity_To_Date))) -> 22-10-2021 | S7: activityDate | T7: =IF(UNKNOWN_DATE," ",IF(Activity_To_Date-Activity_From_Date=0,DAY(Activity_From_Date)&"-"&MONTH(Activity_From_Date)&"-"&YEAR(Activity_From_Date),"From "&DAY(Activity_From_Date)&"-"&MONTH(Activity_From_Date)&"-"&YEAR(Activity_From_Date)&" to "&DAY(Activity_To_Date)&"-"&MONTH(Activity_To_Date)&"-"&YEAR(Activity_To_Date))) -> 22-10-2021 | U7: activityDate | V7: =IF(UNKNOWN_DATE," ",IF(Activity_To_Date-Activity_From_Date=0,DAY(Activity_From_Date)&"-"&MONTH(Activity_From_Date)&"-"&YEAR(Activity_From_Date),"du "&DAY(Activity_From_Date)&"-"&MONTH(Activity_From_Date)&"-"&YEAR(Activity_From_Date)&" au "&DAY(Activity_To_Date)&"-"&MONTH(Activity_To_Date)&"-"&YEAR(Activity_To_Date))) -> 22-10-2021
A8: operational | B8: =IF(Activity_is_Event,"btnUnchecked","btnChecked") -> btnChecked | C8: eventTotalCost | D8: =E28 -> $0.00 | E8: eventTotalCost | F8: =E29 -> 0,00 $ | G8: eventTotalCost | H8: =D8 -> $0.00 | I8: eventTotalCost | J8: =F8 -> 0,00 $ | K8: eventTotalCost | L8: =H8 -> $0.00 | M8: eventTotalCost | N8: =J8 -> 0,00 $ | O8: eventTotalCost | P8: =L8 -> $0.00 | Q8: eventTotalCost | R8: =N8 -> 0,00 $ | S8: eventTotalCost | T8: =P8 -> $0.00 | U8: eventTotalCost | V8: =R8 -> 0,00 $
A9: retreat | B9: =IF(btnTypeEventOper=1,"bntChecked","btnUnchecked") -> btnUnchecked | C9: activityTitle2 | D9: =Activity_Title -> 0 | E9: activityTitle2 | F9: =Activity_Title_French -> 0 | G9: activityTitle2 | H9: =Activity_Title -> 0 | I9: activityTitle2 | J9: =Activity_Title_French -> 0 | K9: activityTitle2 | L9: =Activity_Title -> 0 | M9: activityTitle2 | N9: =Activity_Title_French -> 0 | O9: activityTitle2 | P9: =Activity_Title -> 0 | Q9: activityTitle2 | R9: =Activity_Title_French -> 0 | S9: activityTitle2 | T9: =Activity_Title -> 0 | U9: activityTitle2 | V9: =Activity_Title_French -> 0
A10: award | B10: =IF(btnTypeEventOper=2,"bntChecked","btnUnchecked") -> btnUnchecked | C10: activityLocation | D10: =Activity_Location -> 0 | E10: activityLocation | F10: =Activity_Location -> 0 | G10: activityLocation | H10: =Activity_Location -> 0 | I10: activityLocation | J10: =Activity_Location -> 0 | K10: activityLocation | L10: =Activity_Location -> 0 | M10: activityLocation | N10: =Activity_Location -> 0 | O10: activityLocation | P10: =Activity_Location -> 0 | Q10: activityLocation | R10: =Activity_Location -> 0 | S10: activityLocation | T10: =Activity_Location -> 0 | U10: activityLocation | V10: =Activity_Location -> 0
A11: ceremony | B11: =IF(btnTypeEventOper=3,"bntChecked","btnUnchecked") -> btnUnchecked | C11: dateLiaison | D11: ="Delete" -> Delete | E11: dateLiaison | F11: ="Delete" -> Delete | G11: dateLiaison | H11: ="Delete" -> Delete | I11: dateLiaison | J11: ="Delete" -> Delete | K11: dateLiaison | L11: ="Delete" -> Delete | M11: dateLiaison | N11: ="Delete" -> Delete | O11: dateLiaison | P11: ="Delete" -> Delete | Q11: dateLiaison | R11: ="Delete" -> Delete | S11: dateLiaison | T11: ="Delete" -> Delete | U11: dateLiaison | V11: ="Delete" -> Delete
A12: conference | B12: =IF(btnTypeEventOper=4,"bntChecked","btnUnchecked") -> btnUnchecked | C12: activityDate2 | D12: =IF(UNKNOWN_DATE,".",IF(Activity_To_Date-Activity_From_Date=0," on " &DAY(Activity_From_Date)&"-"&MONTH(Activity_From_Date)&"-"&YEAR(Activity_From_Date)& "."," from "&DAY(Activity_From_Date)&"-"&MONTH(Activity_From_Date)&"-"&YEAR(Activity_From_Date)&" to "&DAY(Activity_To_Date)&"-"&MONTH(Activity_To_Date)&"-"&YEAR(Activity_To_Date)&".")) -> on 22-10-2021. | E12: activityDate2 | F12: =IF(UNKNOWN_DATE,".",IF(Activity_To_Date-Activity_From_Date=0," le " &DAY(Activity_From_Date)&"-"&MONTH(Activity_From_Date)&"-"&YEAR(Activity_From_Date)& "."," du "&DAY(Activity_From_Date)&"-"&MONTH(Activity_From_Date)&"-"&YEAR(Activity_From_Date)&" au "&DAY(Activity_To_Date)&"-"&MONTH(Activity_To_Date)&"-"&YEAR(Activity_To_Date)&".")) -> le 22-10-2021. | G12: activityDate2 | H12: =IF(UNKNOWN_DATE,".",IF(Activity_To_Date-Activity_From_Date=0," on " &DAY(Activity_From_Date)&"-"&MONTH(Activity_From_Date)&"-"&YEAR(Activity_From_Date)& "."," from "&DAY(Activity_From_Date)&"-"&MONTH(Activity_From_Date)&"-"&YEAR(Activity_From_Date)&" to "&DAY(Activity_To_Date)&"-"&MONTH(Activity_To_Date)&"-"&YEAR(Activity_To_Date)&".")) -> on 22-10-2021. | I12: activityDate2 | J12: =IF(UNKNOWN_DATE,".",IF(Activity_To_Date-Activity_From_Date=0," le " &DAY(Activity_From_Date)&"-"&MONTH(Activity_From_Date)&"-"&YEAR(Activity_From_Date)& "."," du "&DAY(Activity_From_Date)&"-"&MONTH(Activity_From_Date)&"-"&YEAR(Activity_From_Date)&" au "&DAY(Activity_To_Date)&"-"&MONTH(Activity_To_Date)&"-"&YEAR(Activity_To_Date)&".")) -> le 22-10-2021. | K12: activityDate2 | L12: =IF(UNKNOWN_DATE,".",IF(Activity_To_Date-Activity_From_Date=0," on " &DAY(Activity_From_Date)&"-"&MONTH(Activity_From_Date)&"-"&YEAR(Activity_From_Date)& "."," from "&DAY(Activity_From_Date)&"-"&MONTH(Activity_From_Date)&"-"&YEAR(Activity_From_Date)&" to "&DAY(Activity_To_Date)&"-"&MONTH(Activity_To_Date)&"-"&YEAR(Activity_To_Date)&".")) -> on 22-10-2021. | M12: activityDate2 | N12: =IF(UNKNOWN_DATE,".",IF(Activity_To_Date-Activity_From_Date=0," le " &DAY(Activity_From_Date)&"-"&MONTH(Activity_From_Date)&"-"&YEAR(Activity_From_Date)& "."," du "&DAY(Activity_From_Date)&"-"&MONTH(Activity_From_Date)&"-"&YEAR(Activity_From_Date)&" au "&DAY(Activity_To_Date)&"-"&MONTH(Activity_To_Date)&"-"&YEAR(Activity_To_Date)&".")) -> le 22-10-2021. | O12: activityDate2 | P12: =IF(UNKNOWN_DATE,".",IF(Activity_To_Date-Activity_From_Date=0," on " &DAY(Activity_From_Date)&"-"&MONTH(Activity_From_Date)&"-"&YEAR(Activity_From_Date)& "."," from "&DAY(Activity_From_Date)&"-"&MONTH(Activity_From_Date)&"-"&YEAR(Activity_From_Date)&" to "&DAY(Activity_To_Date)&"-"&MONTH(Activity_To_Date)&"-"&YEAR(Activity_To_Date)&".")) -> on 22-10-2021. | Q12: activityDate2 | R12: =IF(UNKNOWN_DATE,".",IF(Activity_To_Date-Activity_From_Date=0," le " &DAY(Activity_From_Date)&"-"&MONTH(Activity_From_Date)&"-"&YEAR(Activity_From_Date)& "."," du "&DAY(Activity_From_Date)&"-"&MONTH(Activity_From_Date)&"-"&YEAR(Activity_From_Date)&" au "&DAY(Activity_To_Date)&"-"&MONTH(Activity_To_Date)&"-"&YEAR(Activity_To_Date)&".")) -> le 22-10-2021. | S12: activityDate2 | T12: =IF(UNKNOWN_DATE,".",IF(Activity_To_Date-Activity_From_Date=0," on " &DAY(Activity_From_Date)&"-"&MONTH(Activity_From_Date)&"-"&YEAR(Activity_From_Date)& "."," from "&DAY(Activity_From_Date)&"-"&MONTH(Activity_From_Date)&"-"&YEAR(Activity_From_Date)&" to "&DAY(Activity_To_Date)&"-"&MONTH(Activity_To_Date)&"-"&YEAR(Activity_To_Date)&".")) -> on 22-10-2021. | U12: activityDate2 | V12: =IF(UNKNOWN_DATE,".",IF(Activity_To_Date-Activity_From_Date=0," le " &DAY(Activity_From_Date)&"-"&MONTH(Activity_From_Date)&"-"&YEAR(Activity_From_Date)& "."," du "&DAY(Activity_From_Date)&"-"&MONTH(Activity_From_Date)&"-"&YEAR(Activity_From_Date)&" au "&DAY(Activity_To_Date)&"-"&MONTH(Activity_To_Date)&"-"&YEAR(Activity_To_Date)&".")) -> le 22-10-2021.
A13: outHead | B13: =IF(btnTypeEventOper=5,"bntChecked","btnUnchecked") -> btnUnchecked | C13: summaryApprovalJusticication | D13: =IF(TRUE,IF(ISERROR(VLOOKUP(Event_Delegation_Level,Delegation!A4:B14,2,FALSE)),0,VLOOKUP(Event_Delegation_Level,Delegation!A4:B14,2,FALSE))&" approval is required in cases where " & Memo_Text_En &" I confirm that the proposed expenditures provide value for money and the most economical options have been selected.","") ->  | E13: summaryApprovalJusticication | F13: =IF(TRUE,"L’approbation du "&IF(ISERROR(VLOOKUP(Event_Delegation_Level,Delegation!A4:C14,3,FALSE)),0,VLOOKUP(Event_Delegation_Level,Delegation!A4:C14,3,FALSE))&" est requise dans les circonstances où " & Memo_Text_FR &" Je confirme que les dépenses proposées contribuent à l’optimisation des ressources et que les solutions les plus économiques ont été choisies.","") ->  | G13: summaryApprovalJusticication | H13: =IF(TRUE,IF(ISERROR(VLOOKUP(Event_Delegation_Level,Delegation!A4:B14,2,FALSE)),0,VLOOKUP(Event_Delegation_Level,Delegation!A4:B14,2,FALSE))&" approval is required in cases where " & Memo_Text_En &" I confirm that the proposed expenditures provide value for money and the most economical options have been selected.","") ->  | I13: summaryApprovalJusticication | J13: =IF(TRUE,"L’approbation du "&IF(ISERROR(VLOOKUP(Event_Delegation_Level,Delegation!A4:C14,3,FALSE)),0,VLOOKUP(Event_Delegation_Level,Delegation!A4:C14,3,FALSE))&" est requise dans les circonstances où " & Memo_Text_FR &" Je confirme que les dépenses proposées contribuent à l’optimisation des ressources et que les solutions les plus économiques ont été choisies.","") ->  | K13: summaryApprovalJusticication | L13: =IF(TRUE,IF(ISERROR(VLOOKUP(Event_Delegation_Level,Delegation!A4:B14,2,FALSE)),0,VLOOKUP(Event_Delegation_Level,Delegation!A4:B14,2,FALSE))&" approval is required in cases where " & Memo_Text_En &" I confirm that the proposed expenditures provide value for money and the most economical options have been selected.","") ->  | M13: summaryApprovalJusticication | N13: =IF(TRUE,"L’approbation du "&IF(ISERROR(VLOOKUP(Event_Delegation_Level,Delegation!A4:C14,3,FALSE)),0,VLOOKUP(Event_Delegation_Level,Delegation!A4:C14,3,FALSE))&" est requise dans les circonstances où " & Memo_Text_FR &" Je confirme que les dépenses proposées contribuent à l’optimisation des ressources et que les solutions les plus économiques ont été choisies.","") ->  | O13: summaryApprovalJusticication | P13: =IF(TRUE,IF(ISERROR(VLOOKUP(Event_Delegation_Level,Delegation!A4:B14,2,FALSE)),0,VLOOKUP(Event_Delegation_Level,Delegation!A4:B14,2,FALSE))&" approval is required in cases where " & Memo_Text_En &" I confirm that the proposed expenditures provide value for money and the most economical options have been selected.","") ->  | Q13: summaryApprovalJusticication | R13: =IF(TRUE,"L’approbation du "&IF(ISERROR(VLOOKUP(Event_Delegation_Level,Delegation!A4:C14,3,FALSE)),0,VLOOKUP(Event_Delegation_Level,Delegation!A4:C14,3,FALSE))&" est requise dans les circonstances où " & Memo_Text_FR &" Je confirme que les dépenses proposées contribuent à l’optimisation des ressources et que les solutions les plus économiques ont été choisies.","") ->  | S13: summaryApprovalJusticication | T13: =IF(TRUE,IF(ISERROR(VLOOKUP(Event_Delegation_Level,Delegation!A4:B14,2,FALSE)),0,VLOOKUP(Event_Delegation_Level,Delegation!A4:B14,2,FALSE))&" approval is required in cases where " & Memo_Text_En &" I confirm that the proposed expenditures provide value for money and the most economical options have been selected.","") ->  | U13: summaryApprovalJusticication | V13: =IF(TRUE,"L’approbation du "&IF(ISERROR(VLOOKUP(Event_Delegation_Level,Delegation!A4:C14,3,FALSE)),0,VLOOKUP(Event_Delegation_Level,Delegation!A4:C14,3,FALSE))&" est requise dans les circonstances où " & Memo_Text_FR &" Je confirme que les dépenses proposées contribuent à l’optimisation des ressources et que les solutions les plus économiques ont été choisies.","") -> 
A14: nonOperational | B14: =IF(btnTypeEventOper=6,"bntChecked","btnUnchecked") -> btnUnchecked | C14: hospLabelToDelete | D14: ="Delete" -> Delete | E14: hospLabelToDelete | F14: ="Delete" -> Delete | G14: hospLabelToDelete | H14: ="Delete" -> Delete | I14: hospLabelToDelete | J14: ="Delete" -> Delete | K14: hospLabelToDelete | L14: ="Delete" -> Delete | M14: hospLabelToDelete | N14: ="Delete" -> Delete | O14: hospLabelToDelete | P14: ="Delete" -> Delete | Q14: hospLabelToDelete | R14: ="Delete" -> Delete | S14: hospLabelToDelete | T14: ="Delete" -> Delete | U14: hospLabelToDelete | V14: ="Delete" -> Delete
A15: lessor15k | B15: =IF(AND(Activity_is_Event,Event_Total_Cost<=15000),"bntChecked","btnUnchecked") -> btnUnchecked | C15: hospitalityAmount | D15: =G28 -> $0.00 | E15: hospitalityAmount | F15: =G29 -> 0,00 $ | G15: hospitalityAmount | H15: =D15 -> $0.00 | I15: hospitalityAmount | J15: =F15 -> 0,00 $ | K15: hospitalityAmount | L15: =H15 -> $0.00 | M15: hospitalityAmount | N15: =J15 -> 0,00 $ | O15: hospitalityAmount | P15: =L15 -> $0.00 | Q15: hospitalityAmount | R15: =N15 -> 0,00 $ | S15: hospitalityAmount | T15: =P15 -> $0.00 | U15: hospitalityAmount | V15: =R15 -> 0,00 $
A16: between15and25K | B16: =IF(AND(Activity_is_Event,Event_Total_Cost>15000,Event_Total_Cost<=25000),"bntChecked","btnUnchecked") -> btnUnchecked | C16: hospitalityBlock | D16: =IF(AND(Hospitality_Expenses=Yes_Select,Hospitality_Total_Cost>0.01),"","Delete") -> Delete | E16: hospitalityBlock | F16: =IF(AND(Hospitality_Expenses=Yes_Select,Hospitality_Total_Cost>0.01),"","Delete") -> Delete | G16: hospitalityBlock | H16: =IF(AND(Hospitality_Expenses=Yes_Select,Hospitality_Total_Cost>0.01),"","Delete") -> Delete | I16: hospitalityBlock | J16: =IF(AND(Hospitality_Expenses=Yes_Select,Hospitality_Total_Cost>0.01),"","Delete") -> Delete | K16: hospitalityBlock | L16: =IF(AND(Hospitality_Expenses=Yes_Select,Hospitality_Total_Cost>0.01),"","Delete") -> Delete | M16: hospitalityBlock | N16: =IF(AND(Hospitality_Expenses=Yes_Select,Hospitality_Total_Cost>0.01),"","Delete") -> Delete | O16: hospitalityBlock | P16: =IF(AND(Hospitality_Expenses=Yes_Select,Hospitality_Total_Cost>0.01),"","Delete") -> Delete | Q16: hospitalityBlock | R16: =IF(AND(Hospitality_Expenses=Yes_Select,Hospitality_Total_Cost>0.01),"","Delete") -> Delete | S16: hospitalityBlock | T16: =IF(AND(Hospitality_Expenses=Yes_Select,Hospitality_Total_Cost>0.01),"","Delete") -> Delete | U16: hospitalityBlock | V16: =IF(AND(Hospitality_Expenses=Yes_Select,Hospitality_Total_Cost>0.01),"","Delete") -> Delete
A17: between25and50K | B17: =IF(AND(Activity_is_Event,Event_Total_Cost>25000,Event_Total_Cost<=50000),"bntChecked","btnUnchecked") -> btnUnchecked | C17: totalAmount | D17: =D8 -> $0.00 | E17: totalAmount | F17: =F8 -> 0,00 $ | G17: totalAmount | H17: =H8 -> $0.00 | I17: totalAmount | J17: =F17 -> 0,00 $ | K17: totalAmount | L17: =L8 -> $0.00 | M17: totalAmount | N17: =J17 -> 0,00 $ | O17: totalAmount | P17: =P8 -> $0.00 | Q17: totalAmount | R17: =N17 -> 0,00 $ | S17: totalAmount | T17: =T8 -> $0.00 | U17: totalAmount | V17: =R17 -> 0,00 $
A18: over50K | B18: =IF(AND(Activity_is_Event,Event_Total_Cost>50000),"bntChecked","btnUnchecked") -> btnUnchecked
A19: belowStandard | B19: =IF(AND(Hospitality_Expenses=Yes_Select,SUM(Meals_Exceeding_Standard)=0),"bntChecked","btnUnchecked") -> btnUnchecked
A20: overStandard | B20: =IF(AND(Hospitality_Expenses=Yes_Select,SUM(Meals_Exceeding_Standard)>0,SUM(Meals_Exceeding_Maximum)=0), "Checked","Unchecked") -> Unchecked
A21: overMaximum | B21: =IF(AND(Hospitality_Expenses=Yes_Select,SUM(Meals_Exceeding_Maximum)>0),"bntChecked","btnUnchecked") -> btnUnchecked | E21: eventTotalCost | G21: hospitalityAmount
A22: hospLess2k | B22: =IF(AND(Hospitality_Expenses=Yes_Select,Hospitality_Total_Cost>0,Hospitality_Total_Cost<=2000),"bntChecked","btnUnchecked") -> btnUnchecked | C22: Value | E22: =Event_Total_Cost -> 0 | G22: =Hospitality_Total_Cost -> 0
A23: hosp2to3K | B23: =IF(AND(Hospitality_Expenses=Yes_Select,Hospitality_Total_Cost>2000,Hospitality_Total_Cost<=3000),"bntChecked","btnUnchecked") -> btnUnchecked | C23: Thousands | E23: =TRUNC(E22/1000) -> 0 | G23: =TRUNC(G22/1000) -> 0
A24: hosp3to10K | B24: =IF(AND(Hospitality_Expenses=Yes_Select,Hospitality_Total_Cost>3000,Hospitality_Total_Cost<=10000),"bntChecked","btnUnchecked") -> btnUnchecked | C24: Hundreds + 1000 | E24: =TRUNC(E22) -> 0 | G24: =TRUNC(G22) -> 0
A25: hospOver10k | B25: =IF(AND(Hospitality_Expenses=Yes_Select,Hospitality_Total_Cost>10000),"bntChecked","btnUnchecked") -> btnUnchecked | C25: Hundreds Final | E25: =RIGHT(E24,3) -> 0 | G25: =RIGHT(G24,3) -> 0
A26: travelDomestic | B26: =IF(AND(Travel_Expenses=Yes_Select,Travel_Type=Travel_Domestic_Select),"bntChecked","btnUnchecked") -> btnUnchecked | C26: Decimals Raw | E26: =ROUND(E22-TRUNC(E22),2) -> 0 | G26: =ROUND(G22-TRUNC(G22),2) -> 0
A27: travelIntPlan | B27: =IF(AND(Travel_Expenses=Yes_Select,Travel_Type=Travel_International_Select,Travel_On_Plan=Yes_Select),"bntChecked","btnUnchecked") -> btnUnchecked | C27: Decimals Final | E27: =IF(E26<0.001,"00",IF(LEN(E26)=3,RIGHT(E26,1)&"0",RIGHT(E26,2))) -> 00 | G27: =IF(G26<0.001,"00",IF(LEN(G26)=3,RIGHT(G26,1)&"0",RIGHT(G26,2))) -> 00
A28: travelIntAdHoc | B28: =IF(AND(Travel_Expenses=Yes_Select,Travel_Type=Travel_International_Select,NOT(Travel_On_Plan=Yes_Select)),"bntChecked","btnUnchecked") -> btnUnchecked | C28: English Memo | E28: ="$"&IF(E23>0,E23&",","")&IF(E25>0,E25,"0")&"."&E27 -> $0.00 | G28: ="$"&IF(G23>0,G23&",","")&IF(G25>0,G25,"0")&"."&G27 -> $0.00
A29: activityTitle | B29: =IF(Activity_Title=0,"",Activity_Title &IF(Activity_Title_French=0,""," / " &Activity_Title_French)) ->  | C29: French Memo | E29: =IF(E23>0,E23&CHAR(160),"")&IF(E25>0,E25,"0")&","&E27&CHAR(160)&"$" -> 0,00 $ | G29: =IF(G23>0,G23&CHAR(160),"")&IF(G25>0,G25,"0")&","&G27&CHAR(160)&"$" -> 0,00 $
A30: nature | B30: =IF(Purpose=0," ",Purpose) -> 
A31: hospitalityAmount | B31: =IF(Hospitality_Expenses=Yes_Select,Hospitality_Total_Cost,0) -> 0
A32: conferenceAmount | B32: =IF(AND(Conference_Fees=Yes_Select,Conference),Conference_Total_Cost,0) -> 0 | C32: Location of Word Templates
A33: trainingAmount | B33: =IF(AND(Conference_Fees=Yes_Select,Training),Conference_Total_Cost,0) -> 0 | C33: http://dialogue/grp/AO-Transformation-OC/THCEE/
A34: travelAmount | B34: =IF(Travel_Expenses=Yes_Select,Travel_Total_Cost,0) -> 0
A35: otherAmount | B35: =Other_Total_Cost -> 0
A36: totalAmount | B36: =SUM(B31:B35) -> 0
A37: oneFC | B37: =IF(Activity_Paid_By=One_RC_Select,"bntChecked","btnUnchecked") -> btnUnchecked
A38: multipleFC | B38: =IF(Activity_Paid_By=Multiple_RC_Select,"bntChecked","btnUnchecked") -> btnUnchecked
A39: paidByOther | B39: =IF(Is_Cost_For_OGD=Yes_Select,"bntChecked","btnUnchecked") -> btnUnchecked
A40: location | B40: =IF(Activity_Location=0,"",Activity_Location) -> 
A41: from | B41: =IF(OR(Activity_From_Date=0,UNKNOWN_DATE),"", YEAR(Activity_From_Date)&"/"&MONTH(Activity_From_Date)&"/"&DAY(Activity_From_Date)) -> 2021/10/22
A42: au | B42: =IF(OR(Activity_To_Date=0,UNKNOWN_DATE),"",YEAR(Activity_To_Date)&"/"&MONTH(Activity_To_Date)&"/"&DAY(Activity_To_Date)) -> 2021/10/22
A43: publicServant | B43: =PS_Participants -> 
A44: nonPS | B44: =Non_PS_Participants -> 
A45: justificationPS | B45: =IF(AND(PS_Participants>0,NOT(PS_Participants_Justification=0)),PS_Participants_Justification,"") -> 
A46: costOGD | B46: =Cost_For_OGD -> 0
A47: totalCostGC | B47: =B36+B46 -> 0
A48: totalAtendees | B48: =B43+B44 -> 
A49: avrgCostTrav | B49: =IF(Number_of_Travellers=0,0,B34/Number_of_Travellers) -> 0
A50: avrgCostPerson | B50: =IF(B48=0,0,B36/B48) -> 
A51: govFacilityYes | B51: =IF(Government_Facility=Yes_Select,"bntChecked","btnUnchecked") -> btnUnchecked
A52: govFacilityNo | B52: =IF(Government_Facility=Yes_Select,"btnUnchecked","btnChecked") -> btnChecked
A53: noDiscretion | B53: =IF(Facility_Reason1_Selected=Yes_Select,"bntChecked","btnUnchecked") -> btnUnchecked
A54: needInfrastructure | B54: =IF(Facility_Reason2_Selected=Yes_Select,"bntChecked","btnUnchecked") -> btnUnchecked
A55: notInGeoArea | B55: =IF(Facility_Reason3_Selected=Yes_Select,"bntChecked","btnUnchecked") -> btnUnchecked
A56: notAvailable | B56: =IF(Facility_Reason4_Selected=Yes_Select,"bntChecked","btnUnchecked") -> btnUnchecked
A57: notCostEffective | B57: =IF(Facility_Reason5_Selected=Yes_Select,"bntChecked","btnUnchecked") -> btnUnchecked
A58: facilityOtherComments | B58: =IF(Comments_For_Approver=0," ",Comments_For_Approver) -> 
A59: purposeHospitality | B59: =IF(OR(Hospitality_Justification=0,Hospitality_Expenses=No_Select),"",Hospitality_Justification) -> 
A60: breakfastCheck | B60: =IF(AND(Hospitality_Expenses=Yes_Select,SUM(Hospitality_Breakfast_Tcost)>0),"bntChecked","btnUnchecked") -> btnUnchecked
A61: breakfastDays | B61: =COUNTIF(Hospitality_Breakfast_Tcost,"<>0") -> 0
A62: breakfastAverage | B62: =IF(B61=0,0,B63/B61) -> 0
A63: breakfastTC | B63: =IF(Hospitality_Expenses=Yes_Select,SUM(Hospitality_Breakfast_Tcost),0) -> 0
A64: lunchCheck | B64: =IF(AND(Hospitality_Expenses=Yes_Select,SUM(Hospitality_Lunch_Tcost)>0),"bntChecked","btnUnchecked") -> btnUnchecked
A65: lunchDays | B65: =COUNTIF(Hospitality_Lunch_Tcost,"<>0") -> 0
A66: lunchAverage | B66: =IF(B65=0,0,B67/B65) -> 0
A67: lunchTC | B67: =IF(Hospitality_Expenses=Yes_Select,SUM(Hospitality_Lunch_Tcost),0) -> 0
A68: dinnerCheck | B68: =IF(AND(Hospitality_Expenses=Yes_Select,SUM(Hospitality_Dinner_Tcost)>0),"bntChecked","btnUnchecked") -> btnUnchecked
A69: dinnerDays | B69: =COUNTIF(Hospitality_Dinner_Tcost,"<>0") -> 0
A70: dinnerAverage | B70: =IF(B69=0,0,B71/B69) -> 0
A71: dinnerTC | B71: =IF(Hospitality_Expenses=Yes_Select,SUM(Hospitality_Dinner_Tcost),0) -> 0
A72: refreshAMCheck | B72: =IF(AND(Hospitality_Expenses=Yes_Select,SUM(Hospitality_Morning_Break_Tcost)>0),"bntChecked","btnUnchecked") -> btnUnchecked
A73: refreshAMDays | B73: =COUNTIF(Hospitality_Morning_Break_Tcost,"<>0") -> 0
A74: refreshAMAverage | B74: =IF(B73=0,0,B75/B73) -> 0
A75: refreshAMTC | B75: =IF(Hospitality_Expenses=Yes_Select,SUM(Hospitality_Morning_Break_Tcost),0) -> 0
A76: refreshPMCheck | B76: =IF(AND(Hospitality_Expenses=Yes_Select,SUM(Hospitality_Afternoon_Break_Tcost)>0),"bntChecked","btnUnchecked") -> btnUnchecked
A77: refreshPMDays | B77: =COUNTIF(Hospitality_Afternoon_Break_Tcost,"<>0") -> 0
A78: refreshPMAverage | B78: =IF(B77=0,0,B79/B77) -> 0
A79: refreshPMTC | B79: =IF(Hospitality_Expenses=Yes_Select,SUM(Hospitality_Afternoon_Break_Tcost),0) -> 0
A80: receptionCheck | B80: =IF(AND(Hospitality_Expenses=Yes_Select,SUM(Hospitality_Reception_Tcost)>0),"bntChecked","btnUnchecked") -> btnUnchecked
A81: receptionDays | B81: =COUNTIF(Hospitality_Reception_Tcost,"<>0") -> 0
A82: receptionAverage | B82: =IF(B81=0,0,B83/B81) -> 0
A83: receptionTC | B83: =IF(Hospitality_Expenses=Yes_Select,SUM(Hospitality_Reception_Tcost),0) -> 0
A84: otherFormCheck | B84: =IF(AND(Hospitality_Expenses=Yes_Select,SUM(Hospitality_Others_TotalCost)>0),"bntChecked","btnUnchecked") -> btnUnchecked
A85: otherFormDays | B85: =COUNTIF(Hospitality_Others_TotalCost,"<>0") -> 0
A86: otherFormAverage | B86: =IF(B85=0,0,B87/B85) -> 0
A87: otherFormTC | B87: =IF(Hospitality_Expenses=Yes_Select,SUM(Hospitality_Others_TotalCost),0) -> 0
A88: exceptionalCheck | B88: =IF(AND(Hospitality_Expenses=Yes_Select,T114>0),"bntChecked","btnUnchecked") -> btnUnchecked
A89: exceptionalDays | B89: =COUNTIF(Hospitality_Others_Exceptional_TotalCost,"<>0") -> 0
A90: exceptionalAverage | B90: =IF(B89=0,0,B91/B89) -> 0
A91: exceptionalTC | B91: =IF(Hospitality_Expenses=Yes_Select,SUM(Hospitality_Others_Exceptional_TotalCost),0) -> 0
A92: alcoholNo | B92: =IF(AND(Hospitality_Expenses=Yes_Select,Hospitality_Alcohol=No_Select),"bntChecked","btnUnchecked") -> btnUnchecked
A93: alcoholYes | B93: =IF(AND(Hospitality_Expenses=Yes_Select,Hospitality_Alcohol=Yes_Select),"bntChecked","btnUnchecked") -> btnUnchecked
A94: spouseNo | B94: =IF(AND(Hospitality_Expenses=Yes_Select,Exc_Spouse_Hospitality=No_Select),"bntChecked","btnUnchecked") -> btnUnchecked
A95: spouseYes | B95: =IF(AND(Hospitality_Expenses=Yes_Select,Exc_Spouse_Hospitality=Yes_Select),"bntChecked","btnUnchecked") -> btnUnchecked
A96: residenceNo | B96: =IF(AND(Hospitality_Expenses=Yes_Select,Hospitality_In_Residence=No_Select),"bntChecked","btnUnchecked") -> btnUnchecked
A97: residenceYes | B97: =IF(AND(Hospitality_Expenses=Yes_Select,Hospitality_In_Residence=Yes_Select),"bntChecked","btnUnchecked") -> btnUnchecked
A98: hospitalityJustification | B98: =IF(Hospitality_Expenses=Yes_Select,IF(AND(NOT(Hospitality_Alcohol=No_Select),NOT(Hospitality_Alcohol_Justification=0)),Hospitality_Alcohol_Justification&IF(AND(Exc_Spouse_Hospitality=Yes_Select,NOT(Exc_Spouse_Hospitality_Justification=0)),CHAR(10)&Exc_Spouse_Hospitality_Justification&IF(AND(Hospitality_In_Residence=Yes_Select,NOT(Hospitality_In_Residence_Justification=0)),CHAR(10)&Hospitality_In_Residence_Justification,""),IF(AND(Hospitality_In_Residence=Yes_Select,NOT(Hospitality_In_Residence_Justification=0)),CHAR(10)&Hospitality_In_Residence_Justification,"")),IF(AND(Exc_Spouse_Hospitality=Yes_Select,NOT(Exc_Spouse_Hospitality_Justification=0)),Exc_Spouse_Hospitality_Justification&IF(AND(Hospitality_In_Residence=Yes_Select,NOT(Hospitality_In_Residence_Justification=0)),CHAR(10)&Hospitality_In_Residence_Justification,""),IF(AND(Hospitality_In_Residence=Yes_Select,NOT(Hospitality_In_Residence_Justification=0)),Hospitality_In_Residence_Justification,"")))&IF(AND(Hospitality_Other_Exceptional>0,NOT(Other_Exceptional_Justification=0)),CHAR(10)&Other_Exceptional_Justification,""),"")&IF(AND(Hospitality_Expenses=Yes_Select,NOT(Hospitality_BreakFast_Justification=0)),CHAR(10)&Hospitality_BreakFast_Justification,"") -> 
A99: conferenceCost | B99: =Conference_Cost -> 0
A100: infoOnProdServ | B100: =IF(btnConfParticipation=1,"bntChecked","btnUnchecked") -> btnUnchecked
A101: promoteDept | B101: =IF(btnConfParticipation=2,"bntChecked","btnUnchecked") -> btnUnchecked
A102: eventProfDev | B102: =IF(btnConfParticipation=3,"bntChecked","btnUnchecked") -> btnUnchecked
A103: trainingProfDev | B103: =IF(AND(btnConfParticipation=3,btnConfList=1),"bntChecked","btnUnchecked") -> btnUnchecked
A104: confSponsorship | B104: =IF(Conference_Sponsorship=Yes_Select,"bntChecked","btnUnchecked") -> btnUnchecked
A105: travelCategory | B105: =IF(AND(Travel_Expenses=Yes_Select,NOT(Travel_Category="")), VLOOKUP(Travel_Category,'Travel - System'!T3:V7,2,FALSE)&CHAR(10)&CHAR(10)&VLOOKUP(Travel_Category,'Travel - System'!T3:V7,3,FALSE) &IF(Travel_Category=5,CHAR(10)&CHAR(10)&Travel_CategoryOther,""), "") -> 
A106: virtualPresence | B106: =IF(AND(Travel_Expenses=Yes_Select,NOT(Virtual_Presence_Justification="")),Virtual_Presence_Justification,"") -> 
A107: branch1 | B107: ='Authorisation - Autorisation'!B126 -> 
A108: branch1TravellerCount | B108: ='Authorisation - Autorisation'!F126 -> 0
A109: branch1TransportCost | B109: ='Authorisation - Autorisation'!H126 -> 0
A110: branch1AccommodationCost | B110: ='Authorisation - Autorisation'!K126 -> 0
A111: branch1MealCost | B111: ='Authorisation - Autorisation'!N126 -> 0
A112: branch1IncidentalCost | B112: ='Authorisation - Autorisation'!P126 -> 0
A113: branch1TotalCost | B113: ='Authorisation - Autorisation'!S126 -> 0
A114: branch2 | B114: ='Authorisation - Autorisation'!B127 -> 
A115: branch2TravellerCount | B115: ='Authorisation - Autorisation'!F127 -> 0
A116: branch2TransportCost | B116: ='Authorisation - Autorisation'!H127 -> 0
A117: branch2AccommodationCost | B117: ='Authorisation - Autorisation'!K127 -> 0
A118: branch2MealCost | B118: ='Authorisation - Autorisation'!N127 -> 0
A119: branch2IncidentalCost | B119: ='Authorisation - Autorisation'!P127 -> 0
A120: branch2TotalCost | B120: ='Authorisation - Autorisation'!S127 -> 0
A121: branch3 | B121: ='Authorisation - Autorisation'!B128 -> 
A122: branch3TravellerCount | B122: ='Authorisation - Autorisation'!F128 -> 0
A123: branch3TransportCost | B123: ='Authorisation - Autorisation'!H128 -> 0
A124: branch3AccommodationCost | B124: ='Authorisation - Autorisation'!K128 -> 0
A125: branch3MealCost | B125: ='Authorisation - Autorisation'!N128 -> 0
A126: branch3IncidentalCost | B126: ='Authorisation - Autorisation'!P128 -> 0
A127: branch3TotalCost | B127: ='Authorisation - Autorisation'!S128 -> 0
A128: branch4 | B128: ='Authorisation - Autorisation'!B129 -> 
A129: branch4TravellerCount | B129: ='Authorisation - Autorisation'!F129 -> 0
A130: branch4TransportCost | B130: ='Authorisation - Autorisation'!H129 -> 0
A131: branch4AccommodationCost | B131: ='Authorisation - Autorisation'!K129 -> 0
A132: branch4MealCost | B132: ='Authorisation - Autorisation'!N129 -> 0
A133: branch4IncidentalCost | B133: ='Authorisation - Autorisation'!P129 -> 0
A134: branch4TotalCost | B134: ='Authorisation - Autorisation'!S129 -> 0
A135: branch5 | B135: ='Authorisation - Autorisation'!B130 -> 
A136: branch5TravellerCount | B136: ='Authorisation - Autorisation'!F130 -> 0
A137: branch5TransportCost | B137: ='Authorisation - Autorisation'!H130 -> 0
A138: branch5AccommodationCost | B138: ='Authorisation - Autorisation'!K130 -> 0
A139: branch5MealCost | B139: ='Authorisation - Autorisation'!N130 -> 0
A140: branch5IncidentalCost | B140: ='Authorisation - Autorisation'!P130 -> 0
A141: branch5TotalCost | B141: ='Authorisation - Autorisation'!S130 -> 0
A142: branch6 | B142: ='Authorisation - Autorisation'!B131 -> 
A143: branch6TravellerCount | B143: ='Authorisation - Autorisation'!F131 -> 0
A144: branch6TransportCost | B144: ='Authorisation - Autorisation'!H131 -> 0
A145: branch6AccommodationCost | B145: ='Authorisation - Autorisation'!K131 -> 0
A146: branch6MealCost | B146: ='Authorisation - Autorisation'!N131 -> 0
A147: branch6IncidentalCost | B147: ='Authorisation - Autorisation'!P131 -> 0
A148: branch6TotalCost | B148: ='Authorisation - Autorisation'!S131 -> 0
A149: branch7 | B149: ='Authorisation - Autorisation'!B132 -> 
A150: branch7TravellerCount | B150: ='Authorisation - Autorisation'!F132 -> 0
A151: branch7TransportCost | B151: ='Authorisation - Autorisation'!H132 -> 0
A152: branch7AccommodationCost | B152: ='Authorisation - Autorisation'!K132 -> 0
A153: branch7MealCost | B153: ='Authorisation - Autorisation'!N132 -> 0
A154: branch7IncidentalCost | B154: ='Authorisation - Autorisation'!P132 -> 0
A155: branch7TotalCost | B155: ='Authorisation - Autorisation'!S132 -> 0
A156: branch8 | B156: ='Authorisation - Autorisation'!B133 -> 
A157: branch8TravellerCount | B157: ='Authorisation - Autorisation'!F133 -> 0
A158: branch8TransportCost | B158: ='Authorisation - Autorisation'!H133 -> 0
A159: branch8AccommodationCost | B159: ='Authorisation - Autorisation'!K133 -> 0
A160: branch8MealCost | B160: ='Authorisation - Autorisation'!N133 -> 0
A161: branch8IncidentalCost | B161: ='Authorisation - Autorisation'!P133 -> 0
A162: branch8TotalCost | B162: ='Authorisation - Autorisation'!S133 -> 0
A163: branch9 | B163: ='Authorisation - Autorisation'!B134 -> 
A164: branch9TravellerCount | B164: ='Authorisation - Autorisation'!F134 -> 0
A165: branch9TransportCost | B165: ='Authorisation - Autorisation'!H134 -> 0
A166: branch9AccommodationCost | B166: ='Authorisation - Autorisation'!K134 -> 0
A167: branch9MealCost | B167: ='Authorisation - Autorisation'!N134 -> 0
A168: branch9IncidentalCost | B168: ='Authorisation - Autorisation'!P134 -> 0
A169: branch9TotalCost | B169: ='Authorisation - Autorisation'!S134 -> 0
A170: branch10 | B170: ='Authorisation - Autorisation'!B135 -> 
A171: branch10TravellerCount | B171: ='Authorisation - Autorisation'!F135 -> 0
A172: branch10TransportCost | B172: ='Authorisation - Autorisation'!H135 -> 0
A173: branch10AccommodationCost | B173: ='Authorisation - Autorisation'!K135 -> 0
A174: branch10MealCost | B174: ='Authorisation - Autorisation'!N135 -> 0
A175: branch10IncidentalCost | B175: ='Authorisation - Autorisation'!P135 -> 0
A176: branch10TotalCost | B176: ='Authorisation - Autorisation'!S135 -> 0
A177: branch1NPS | B177: ='Authorisation - Autorisation'!B140 -> 0
A178: branch1TravellerCountNPS | B178: ='Authorisation - Autorisation'!F140 -> 0
A179: branch1TransportCostNPS | B179: ='Authorisation - Autorisation'!H140 -> 0
A180: branch1AccommodationCostNPS | B180: ='Authorisation - Autorisation'!K140 -> 0
A181: branch1MealCostNPS | B181: ='Authorisation - Autorisation'!N140 -> 0
A182: branch1TotalCostNPS | B182: ='Authorisation - Autorisation'!S140 -> 0
A183: branch2NPS | B183: ='Authorisation - Autorisation'!B141 -> 
A184: branch2TravellerCountNPS | B184: ='Authorisation - Autorisation'!F141 -> 0
A185: branch2TransportCostNPS | B185: ='Authorisation - Autorisation'!H141 -> 0
A186: branch2AccommodationCostNPS | B186: ='Authorisation - Autorisation'!K141 -> 0
A187: branch2MealCostNPS | B187: ='Authorisation - Autorisation'!N141 -> 0
A188: branch2TotalCostNPS | B188: ='Authorisation - Autorisation'!S141 -> 0
A189: branch3NPS | B189: ='Authorisation - Autorisation'!B142 -> 
A190: branch3TravellerCountNPS | B190: ='Authorisation - Autorisation'!F142 -> 0
A191: branch3TransportCostNPS | B191: ='Authorisation - Autorisation'!H142 -> 0
A192: branch3AccommodationCostNPS | B192: ='Authorisation - Autorisation'!K142 -> 0
A193: branch3MealCostNPS | B193: ='Authorisation - Autorisation'!N142 -> 0
A194: branch3TotalCostNPS | B194: ='Authorisation - Autorisation'!S142 -> 0
A195: branch4NPS | B195: ='Authorisation - Autorisation'!B143 -> 
A196: branch4TravellerCountNPS | B196: ='Authorisation - Autorisation'!F143 -> 0
A197: branch4TransportCostNPS | B197: ='Authorisation - Autorisation'!H143 -> 0
A198: branch4AccommodationCostNPS | B198: ='Authorisation - Autorisation'!K143 -> 0
A199: branch4MealCostNPS | B199: ='Authorisation - Autorisation'!N143 -> 0
A200: branch4TotalCostNPS | B200: ='Authorisation - Autorisation'!S143 -> 0
... 76 more rows

Sheet System - Messages (hidden)
A1: MessageID | B1: MessageEN | C1: MessageFR
A2: 1 | B2: Warning! The English and French versions of the memorandum generated by this tool are draft only. They must be reviewed and adapted to your situation. If changes are made to a previous THCEE scenario, the Tool will generate a completely new memo. If you have saved the previous memo with modifications of your own, these corrections will not be taken into account by the new memo. If need be, be sure to keep backup copies of your previous memo. | C2: Avertissement! Les notes anglaises et françaises générées par ce système sont des ébauches. Elles doivent être revues et adaptées à votre situation. Si des modifications sont apportées à un scénario DVACÉ existant, l’Outil va générer une note entièrement nouvelle. Si vous avez sauvegardé la note précédente après y avoir fait des ajouts personnels, la nouvelle note ne va pas en tenir compte. S’il y a lieu, assurez-vous de conserver une copie de la note précédente.
A3: 2 | B3: The template is currently not available | C3: Le gabarit n'est présentement pas disponible
A4: 3 | B4: You already entered travel expenses not authorized for local travel | C4: Vous avez déjà saisi des dépenses de voyage incompatibles avec les déplacements locaux
A5: 4 | B5: You must enter a valid numeric value! | C5: Vous devez entrer une valeur numérique!
A6: 5 | B6: Input must be a date in the format: "dd/mm/yyyy" | C6: Vous devez entrer une date dans le format: "jj/mm/aaaa"
A7: 6 | B7: The worksheet must contain at least one traveller | C7: La grille doit contenir au moins un voyageur
A8: 7 | B8: All fields identified with red asterisk must be completed. | C8: Tous les champs identifiés par un astérisque rouge doivent être complétés.
A9: 8 | B9: All fields identified with red asterisk must be completed. | C9: Tous les champs identifiés par un astérisque rouge doivent être complétés.
A10: 9 | B10: All fields identified with red asterisk must be completed. | C10: Tous les champs identifiés par un astérisque rouge doivent être complétés.
A11: 10 | B11: As a matter of protocol, small tokens of appreciation (little no market value - chocolates, flowers, etc.) may be given when a non-government employee renders a service without remuneration. | C11: Des symboles d’appréciation (peu ou pas de valeur marchande - chocolats, fleurs, etc.) peuvent être remis, à titre protocolaire, lorsque des employés qui ne sont pas des fonctionnaires rendent un service sans rémunération.
A12: 11 | B12: Warning! If you had already answered questions related to events, the information will be lost. Continue?. | C12: Avertissement! Si vous avez déjà répondu à certaines questions relatives aux événements, l'information entrée sera effacée. Poursuivre?
A13: 12 | B13: All fields identified with red asterisk must be completed. | C13: Tous les champs identifiés par un astérisque rouge doivent être complétés.
A14: 13 | B14: All fields identified with red asterisk must be completed. | C14: Tous les champs identifiés par un astérisque rouge doivent être complétés.
A15: 14 | B15: All fields identified with red asterisk must be completed. | C15: Tous les champs identifiés par un astérisque rouge doivent être complétés.
A16: 15 | B16: All fields identified with red asterisk must be completed. | C16: Tous les champs identifiés par un astérisque rouge doivent être complétés.
A17: 16 | B17: All fields identified with red asterisk must be completed. | C17: Tous les champs identifiés par un astérisque rouge doivent être complétés.
A18: 17 | B18: All fields identified with red asterisk must be completed. | C18: Tous les champs identifiés par un astérisque rouge doivent être complétés.
A19: 18 | B19: All fields identified with red asterisk must be completed. | C19: Tous les champs identifiés par un astérisque rouge doivent être complétés.
A20: 19 | B20: - Gifts of greater resale value or that have a set monetary value (e. g. gift cards). - Entertainment such as tickets to theatre or sporting events, tours of the national capital. - In exceptional circumstances, official hospitality may include other items such as room rental, equipment rental, decorations etc. for the purpose of hosting a function (i.e. the event is held in a tipi to share a cultural experience with a foreign dignitary). | C20: - Cadeaux ayant une plus grande valeur de revente ou qui ont une valeur monétaire précise (par exemple des cartes-cadeaux). - Divertissements tels que des billets pour le théâtre ou des manifestations sportives, visites de la Capitale nationale. - Dans des circonstances exceptionnelles, l’accueil officiel peut inclure d'autres éléments tels que la location de salle, location d’équipements, décorations, etc. nécessaires pour la tenue d’une activité à caractère officiel (par exemple lorsque l'événement est tenu dans un tipi afin de partager une expérience culturelle avec un dignitaire étranger).
A21: 20 | B21: Travel start date must occur before travel end date, or at least be the same. | C21: La date de retour doit être, au minimum, la même que la date de départ, ou lui être postérieure.
